Body Name,Trans. Date,Department Code,Department,Expense Area Code,Expense Area,Expense type code,Expense type,Amount Paid (�),Supplier name,Extended description,TransNo,Period
Rother District Council,17/07/2019,081ACQUISIT,"Acquisitions, Transformation and Regeneration",20154,Committee Property Account,B2422,Sewerage,26.85,Scottish Water Business Stream Limited,Sewerage - Sewerage Charges,2018130,202004
Rother District Council,08/08/2019,081ACQUISIT,"Acquisitions, Transformation and Regeneration",20146,West Trading Estate,B2202,Gas,73.78,Gazprom Marketing & Trading Retail Ltd,Gas - Gas Charges,2018741,202005
Rother District Council,10/09/2019,081ACQUISIT,"Acquisitions, Transformation and Regeneration",20146,West Trading Estate,B2202,Gas,73.78,Gazprom Marketing & Trading Retail Ltd,Gas - Gas Charges,2018742,202005
Rother District Council,10/10/2019,081ACQUISIT,"Acquisitions, Transformation and Regeneration",20146,West Trading Estate,B2202,Gas,71.4,Gazprom Marketing & Trading Retail Ltd,Gas - Gas Charges,2018743,202005
Rother District Council,21/10/2019,091HOUSING,Housing and Community Services,20120,Neighbourhood Services,A2203,Training,723,APSE Southern Region,Training,2019212,202005
Rother District Council,23/10/2019,081ACQUISIT,"Acquisitions, Transformation and Regeneration",20144,Property Management,D1201,Equipment & Materials,26,Bexhill Locksmiths / Alarms & First Windows,Equipment & Materials - Radar Keys,2019132,202005
Rother District Council,30/10/2019,081ACQUISIT,"Acquisitions, Transformation and Regeneration",20154,Committee Property Account,B2422,Sewerage,22.12,Scottish Water Business Stream Limited,Sewerage - Sewerage Charges,2018132,202004
Rother District Council,12/11/2019,081ACQUISIT,"Acquisitions, Transformation and Regeneration",20146,West Trading Estate,B2202,Gas,73.78,Gazprom Marketing & Trading Retail Ltd,Gas - Gas Charges,2018744,202005
Rother District Council,25/11/2019,101RESOURCES,Resources,20239,Computer Services,A2203,Training,380,PDP,Training,2018422,202004
Rother District Council,09/12/2019,081ACQUISIT,"Acquisitions, Transformation and Regeneration",20146,West Trading Estate,B2202,Gas,71.4,Gazprom Marketing & Trading Retail Ltd,Gas - Gas Charges,2018745,202005
Rother District Council,03/01/2020,091HOUSING,Housing and Community Services,20234,Battle Community Help Point,B2311,Rents and service charges,75,Battle Town Council,Rents and service charges - Rents-CHP Battle,2018588,202004
Rother District Council,10/01/2020,081ACQUISIT,"Acquisitions, Transformation and Regeneration",20146,West Trading Estate,B2202,Gas,49.29,Gazprom Marketing & Trading Retail Ltd,Gas - Gas Charges,2018746,202005
Rother District Council,10/02/2020,041ENVIRON,Environmental Services,32138,EH Health and Safety and IDs R + W Partnership,D1203,Books And Publications,108.99,Amazon.co.uk,Books And Publications - EnvH Books+Publications (Pollution),2017777,202004
Rother District Council,10/02/2020,031RESOURCES,Executive Directors & Corporate Core,20173,Administrative Offices - Town Hall,B2612,Cleaning materials,76.12,Aspli.com,Cleaning materials - Premises,2017777,202004
Rother District Council,10/02/2020,031RESOURCES,Executive Directors & Corporate Core,20173,Administrative Offices - Town Hall,B2612,Cleaning materials,265.99,Aspli.com,Cleaning materials - Premises,2017777,202004
Rother District Council,10/02/2020,031RESOURCES,Executive Directors & Corporate Core,20173,Administrative Offices - Town Hall,B2612,Cleaning materials,33.22,Aspli.com,Cleaning materials - Premises,2017777,202004
Rother District Council,10/02/2020,031RESOURCES,Executive Directors & Corporate Core,20173,Administrative Offices - Town Hall,B2612,Cleaning materials,83.04,Aspli.com,Cleaning materials - Premises,2017777,202004
Rother District Council,10/02/2020,081ACQUISIT,"Acquisitions, Transformation and Regeneration",20272,Major Projects unit,D2633,Computer Equipment,68.32,Amazon.co.uk,Computer Equipment - Carry Case,2017777,202004
Rother District Council,10/02/2020,101RESOURCES,Resources,20239,Computer Services,D2635,Computer Licences,15.99,123 Reg,Computer Licences - Domain Name Renewal,2017777,202004
Rother District Council,10/02/2020,101RESOURCES,Resources,20239,Computer Services,D2635,Computer Licences,15.99,123 Reg,Computer Licences - Domain Name Renewal,2017777,202004
Rother District Council,10/02/2020,041ENVIRON,Environmental Services,20141,Private Sector Housing,D1201,Equipment & Materials,113.5,Amazon.co.uk,Equipment & materials - Miscellaneous,2017777,202004
Rother District Council,10/02/2020,031RESOURCES,Executive Directors & Corporate Core,20159,Corporate Policy Making,D1201,Equipment & Materials,37.18,Amazon.co.uk,Equipment & Materials - Purchase of Tools,2017777,202004
Rother District Council,10/02/2020,999NOREPORT,Resources,70742,Capital - New Website Development,N1010,Software Purchase,77.75,Fonticons Inc,Software Purchase,2017777,202004
Rother District Council,10/02/2020,999NOREPORT,Resources,70742,Capital - New Website Development,N1010,Software Purchase,62.47,Oasis Workflow Pro/Nugget Solutions Inc,Software Purchase,2017777,202004
Rother District Council,10/02/2020,999NOREPORT,Resources,70742,Capital - New Website Development,N1010,Software Purchase,53.01,ACF,Software Purchase,2017777,202004
Rother District Council,10/02/2020,999NOREPORT,Resources,70742,Capital - New Website Development,N1010,Software Purchase,77.08,Publishpress.com,Software Purchase,2017777,202004
Rother District Council,13/02/2020,101RESOURCES,Resources,20209,Corporate management,D2513,Hired and Contracted services,689.58,True Commerce (Oldham) Ltd,Hired and Contracted services,2018725,202005
Rother District Council,15/02/2020,101RESOURCES,Resources,20242,Communications-Phones,D2621,Telephones,577,TalkTalk Communications Ltd T/A TalkTalk Business,Telephones - Telephone Call Costs+Line Rental,2016854,202004
Rother District Council,17/02/2020,101RESOURCES,Resources,20239,Computer Services,D2633,Computer Equipment,670,Apple Retail UK Ltd,Computer Equipment - New - Computer Hardware,2016855,202004
Rother District Council,29/02/2020,041ENVIRON,Environmental Services,32142,EH Taxi and Private Hire Licenses R + W Partnership,D2513,Hired and Contracted services,440,DBS The Disclosure and Barring Service,Hired and contracted services - Service fee paid,2018374,202004
Rother District Council,02/03/2020,091HOUSING,Housing and Community Services,20261,"TA Purchases (prev - 41 Jameson Mews, Bexhill on Sea)",D2513,Hired and Contracted services,850,Meridian Surveyors,Hired and contracted services - Service fee paid,2019557,202006
Rother District Council,02/03/2020,101RESOURCES,Resources,20242,Communications-Phones,D2621,Telephones,35.53,TalkTalk Communications Ltd T/A TalkTalk Business,Telephones - Telephone Call Costs+Line Rental,2016861,202004
Rother District Council,05/03/2020,081ACQUISIT,"Acquisitions, Transformation and Regeneration",20155,Investment properties,B1100,Repairs to Premises,1023,Alfa Electric Ltd,Repairs to Premises - Specified Repairs and Works listed,2018232,202004
Rother District Council,05/03/2020,091HOUSING,Housing and Community Services,20145,Maintenance Services,A2203,Training,295.83,Lessonbase Projects Ltd,Training,2019502,202006
Rother District Council,05/03/2020,091HOUSING,Housing and Community Services,20145,Maintenance Services,A2203,Training,140,Lessonbase Projects Ltd,Training,2019502,202006
Rother District Council,09/03/2020,081ACQUISIT,"Acquisitions, Transformation and Regeneration",20144,Property Management,D2518,Advertising,37.5,Friday Ad,Advertising - Newspapers/Magazine,2018378,202004
Rother District Council,09/03/2020,081ACQUISIT,"Acquisitions, Transformation and Regeneration",20144,Property Management,D2518,Advertising,37.5,Friday Ad,Advertising - Newspapers/Magazine,2018378,202004
Rother District Council,09/03/2020,081ACQUISIT,"Acquisitions, Transformation and Regeneration",20144,Property Management,D2518,Advertising,37.5,Friday Ad,Advertising - Newspapers/Magazine,2018378,202004
Rother District Council,09/03/2020,031RESOURCES,Executive Directors & Corporate Core,20173,Administrative Offices - Town Hall,B2612,Cleaning materials,-33.22,Aspli.com,Cleaning materials - Premises,2018378,202004
Rother District Council,09/03/2020,031RESOURCES,Executive Directors & Corporate Core,20180,Emergency Planning,D2352,Clothing and Uniforms,453,Safequip Ltd,Clothing and Uniforms - Mens Protective-Other,2018376,202004
Rother District Council,09/03/2020,031RESOURCES,Executive Directors & Corporate Core,20276,COVID19 RDC expenditure,D2352,Clothing and Uniforms,329,Brosch Direct ltd,Clothing and Uniforms - Mens Protective-Other,2018379,202004
Rother District Council,09/03/2020,101RESOURCES,Resources,20239,Computer Services,D2633,Computer Equipment,91.66,Amazon.co.uk,Computer Equipment - Carry Case,2018378,202004
Rother District Council,09/03/2020,101RESOURCES,Resources,20239,Computer Services,D2635,Computer Licences,25.98,123 Reg Ltd,Computer Licences - Domain Name Renewal,2018378,202004
Rother District Council,09/03/2020,101RESOURCES,Resources,20239,Computer Services,D2635,Computer Licences,63.96,123 Reg Ltd,Computer Licences - Domain Name Renewal,2018378,202004
Rother District Council,09/03/2020,091HOUSING,Housing and Community Services,20145,Maintenance Services,D1201,Equipment & Materials,79.74,Amazon.co.uk/ Techgear Solutions Direct Ltd,Equipment & Materials - Purchase of Tools,2018379,202004
Rother District Council,09/03/2020,081ACQUISIT,"Acquisitions, Transformation and Regeneration",20273,Environment Sustainability Strategy,D2420,General office supplies (Stationery purchased from ext suppliers),210,www.hotline.co.uk,General office supplies - Stationery (Stationery Services to buy ONLY),2018378,202004
Rother District Council,09/03/2020,101RESOURCES,Resources,20241,Stationery,D2420,General office supplies (Stationery purchased from ext suppliers),105,Idealenvelo,General office supplies - Stationery (Stationery Services to buy ONLY),2018378,202004
Rother District Council,09/03/2020,091HOUSING,Housing and Community Services,20206,Syrians,D2513,Hired and Contracted services,1129.63,"Various - Staegecoach, Southern Railway, Pest Control Direct",Hired and contracted services - Syrian Misc,2018375,202004
Rother District Council,09/03/2020,101RESOURCES,Resources,20242,Communications-Phones,D2621,Telephones,67.5,TalkTalk Communications Ltd T/A TalkTalk Business,Telephones - Telephone Call Costs+Line Rental,2018187,202004
Rother District Council,09/03/2020,071STRAT,Strategy and Planning,20246,Planning Applications,A2203,Training,305,RTPI,Training,2018376,202004
Rother District Council,09/03/2020,101RESOURCES,Resources,20222,Accountancy,A2203,Training,337.87,Powdermills Hotel,Training,2018377,202004
Rother District Council,09/03/2020,091HOUSING,Housing and Community Services,20145,Maintenance Services,C1101,Vehicle Repairs & Servicing,46.45,Number 1 Plates,Vehicle Repairs & Servicing,2018379,202004
Rother District Council,11/03/2020,081ACQUISIT,"Acquisitions, Transformation and Regeneration",20146,West Trading Estate,B2201,Electricity,46.11,Gazprom Marketing & Trading Retail Ltd,Gas - Gas Charges,2018747,202005
Rother District Council,13/03/2020,999NOREPORT,Environmental Services,70706,Capital - Disable Facilities Grant,N1012,Capital Advances,934.12,Peabody South East Ltd,Capital Advances Disabled Facilities Grant,2018495,202004
Rother District Council,17/03/2020,081ACQUISIT,"Acquisitions, Transformation and Regeneration",20154,Committee Property Account,B2422,Sewerage,29.77,Scottish Water Business Stream Limited,Sewerage - Sewerage Charges,2018049,202004
Rother District Council,18/03/2020,091HOUSING,Housing and Community Services,20108,Bexhill Promenade & Foreshore,B1100,Repairs to Premises,129.32,Alfa Electric Ltd,Repairs to Premises - Repairs - Electrical Works,2018233,202004
Rother District Council,24/03/2020,091HOUSING,Housing and Community Services,20128,Public Conveniences,B2422,Sewerage,393.47,Scottish Water Business Stream Limited,Sewerage - Sewerage Charges,2018019,202004
Rother District Council,24/03/2020,091HOUSING,Housing and Community Services,20137,Car Parks,B2422,Sewerage,116.95,Scottish Water Business Stream Limited,Sewerage - Sewerage Charges,2018019,202004
Rother District Council,24/03/2020,091HOUSING,Housing and Community Services,20128,Public Conveniences,B2421,Water,203.02,Scottish Water Business Stream Limited,Water - Water Charges,2018019,202004
Rother District Council,24/03/2020,091HOUSING,Housing and Community Services,20137,Car Parks,B2421,Water,65.04,Scottish Water Business Stream Limited,Water - Water Charges,2018019,202004
Rother District Council,26/03/2020,091HOUSING,Housing and Community Services,20115,Rye Area Parks & Gardens,B2422,Sewerage,142.18,Scottish Water Business Stream Limited,Sewerage - Sewerage Charges,2018043,202004
Rother District Council,26/03/2020,091HOUSING,Housing and Community Services,20115,Rye Area Parks & Gardens,B2421,Water,99.85,Scottish Water Business Stream Limited,Water - Water Charges,2018043,202004
Rother District Council,27/03/2020,999NOREPORT,Environmental Services,70706,Capital - Disable Facilities Grant,N1012,Capital Advances,4795,Prestige Stairlifts Ltd,Capital Advances Disabled Facilities Grant,2018497,202004
Rother District Council,28/03/2020,091HOUSING,Housing and Community Services,20200,Housing Needs - HB (Housing Benefit),D2508,Removals and Storage,495,1066 Removal Services,Removals and Storage,2018498,202004
Rother District Council,30/03/2020,101RESOURCES,Resources,20239,Computer Services,D2635,Computer Licences,308.44,Civica UK Ltd,Computer Licences - Website Management,2019371,202006
Rother District Council,31/03/2020,999NOREPORT,Housing and Community Services,70705,Capital - Fairlight Coastal Protection Scheme (Preservational Trust),N1007,Plant & Machinery,2354.3,TPGEO,Capital - Plant and Property,2018179,202004
Rother District Council,31/03/2020,999NOREPORT,Environmental Services,70706,Capital - Disable Facilities Grant,N1012,Capital Advances,7029.76,The Build Works,Capital Advances Disabled Facilities Grant,2019489,202006
Rother District Council,31/03/2020,071STRAT,Strategy and Planning,20255,Local Development Framework,D2513,Hired and Contracted services,7754,REDACTED PERSONAL DATA,Hired and contracted services - LDF Consultancy,2016372,202004
Rother District Council,31/03/2020,071STRAT,Strategy and Planning,20255,Local Development Framework,D2513,Hired and Contracted services,42,REDACTED PERSONAL DATA,Hired and contracted services - LDF Consultancy,2016372,202004
Rother District Council,31/03/2020,041ENVIRON,Environmental Services,32142,EH Taxi and Private Hire Licenses R + W Partnership,D2513,Hired and Contracted services,240,DBS The Disclosure and Barring Service,Hired and contracted services - Service fee paid,2018373,202004
Rother District Council,31/03/2020,091HOUSING,Housing and Community Services,20128,Public Conveniences,B2422,Sewerage,641.53,Scottish Water Business Stream Limited,Sewerage - Sewerage Charges,2018028,202004
Rother District Council,31/03/2020,091HOUSING,Housing and Community Services,20128,Public Conveniences,B2421,Water,386.76,Scottish Water Business Stream Limited,Water - Water Charges,2018028,202004
Rother District Council,01/04/2020,101RESOURCES,Resources,20216,Cost Of Collection,D2513,Hired and Contracted services,1568.3,Lloyds Bank,Bank Charges,2018197,202004
Rother District Council,01/04/2020,101RESOURCES,Resources,20216,Cost Of Collection,D2513,Hired and Contracted services,20,Lloyds Bank,Bank Charges,2018188,202004
Rother District Council,01/04/2020,101RESOURCES,Resources,20216,Cost Of Collection,D2513,Hired and Contracted services,20,Lloyds Bank,Bank Charges,2018189,202004
Rother District Council,01/04/2020,101RESOURCES,Resources,20216,Cost Of Collection,D2513,Hired and Contracted services,20,Lloyds Bank,Bank Charges,2018190,202004
Rother District Council,01/04/2020,101RESOURCES,Resources,20216,Cost Of Collection,D2513,Hired and Contracted services,20,Lloyds Bank,Bank Charges,2018191,202004
Rother District Council,01/04/2020,101RESOURCES,Resources,20216,Cost Of Collection,D2513,Hired and Contracted services,20,Lloyds Bank,Bank Charges,2018192,202004
Rother District Council,01/04/2020,101RESOURCES,Resources,20216,Cost Of Collection,D2513,Hired and Contracted services,20,Lloyds Bank,Bank Charges,2018193,202004
Rother District Council,01/04/2020,101RESOURCES,Resources,20216,Cost Of Collection,D2513,Hired and Contracted services,20.5,Lloyds Bank,Bank Charges,2018194,202004
Rother District Council,01/04/2020,101RESOURCES,Resources,20216,Cost Of Collection,D2513,Hired and Contracted services,148.05,Lloyds Bank,Bank Charges,2018195,202004
Rother District Council,01/04/2020,101RESOURCES,Resources,20216,Cost Of Collection,D2513,Hired and Contracted services,978.36,Lloyds Bank,Bank Charges,2018196,202004
Rother District Council,01/04/2020,091HOUSING,Housing and Community Services,20128,Public Conveniences,B2611,Contract cleaning,558.13,Specialist Hygiene Services Ltd,Contract cleaning - Public Conveniences Cleaning Servic,2019148,202005
Rother District Council,01/04/2020,091HOUSING,Housing and Community Services,20128,Public Conveniences,B2611,Contract cleaning,826.03,Specialist Hygiene Services Ltd,Contract cleaning - Public Conveniences Cleaning Servic,2019148,202005
Rother District Council,01/04/2020,091HOUSING,Housing and Community Services,20128,Public Conveniences,B2611,Contract cleaning,730.66,Specialist Hygiene Services Ltd,Contract cleaning - Public Conveniences Cleaning Servic,2019148,202005
Rother District Council,01/04/2020,091HOUSING,Housing and Community Services,20128,Public Conveniences,B2611,Contract cleaning,192.78,Specialist Hygiene Services Ltd,Contract cleaning - Public Conveniences Cleaning Servic,2019148,202005
Rother District Council,01/04/2020,091HOUSING,Housing and Community Services,20128,Public Conveniences,B2611,Contract cleaning,688.31,Specialist Hygiene Services Ltd,Contract cleaning - Public Conveniences Cleaning Servic,2019148,202005
Rother District Council,01/04/2020,091HOUSING,Housing and Community Services,20128,Public Conveniences,B2611,Contract cleaning,495.62,Specialist Hygiene Services Ltd,Contract cleaning - Public Conveniences Cleaning Servic,2019148,202005
Rother District Council,01/04/2020,091HOUSING,Housing and Community Services,20128,Public Conveniences,B2611,Contract cleaning,826.03,Specialist Hygiene Services Ltd,Contract cleaning - Public Conveniences Cleaning Servic,2019148,202005
Rother District Council,01/04/2020,091HOUSING,Housing and Community Services,20128,Public Conveniences,B2611,Contract cleaning,495.62,Specialist Hygiene Services Ltd,Contract cleaning - Public Conveniences Cleaning Servic,2019148,202005
Rother District Council,01/04/2020,091HOUSING,Housing and Community Services,20128,Public Conveniences,B2611,Contract cleaning,605.67,Specialist Hygiene Services Ltd,Contract cleaning - Public Conveniences Cleaning Servic,2019148,202005
Rother District Council,01/04/2020,091HOUSING,Housing and Community Services,20128,Public Conveniences,B2611,Contract cleaning,275.34,Specialist Hygiene Services Ltd,Contract cleaning - Public Conveniences Cleaning Servic,2019148,202005
Rother District Council,01/04/2020,091HOUSING,Housing and Community Services,20128,Public Conveniences,B2611,Contract cleaning,330.41,Specialist Hygiene Services Ltd,Contract cleaning - Public Conveniences Cleaning Servic,2019148,202005
Rother District Council,01/04/2020,091HOUSING,Housing and Community Services,20128,Public Conveniences,B2611,Contract cleaning,578.18,Specialist Hygiene Services Ltd,Contract cleaning - Public Conveniences Cleaning Servic,2019148,202005
Rother District Council,01/04/2020,091HOUSING,Housing and Community Services,20128,Public Conveniences,B2611,Contract cleaning,523.11,Specialist Hygiene Services Ltd,Contract cleaning - Public Conveniences Cleaning Servic,2019148,202005
Rother District Council,01/04/2020,091HOUSING,Housing and Community Services,20128,Public Conveniences,B2611,Contract cleaning,247.77,Specialist Hygiene Services Ltd,Contract cleaning - Public Conveniences Cleaning Servic,2019148,202005
Rother District Council,01/04/2020,091HOUSING,Housing and Community Services,20128,Public Conveniences,B2611,Contract cleaning,550.6,Specialist Hygiene Services Ltd,Contract cleaning - Public Conveniences Cleaning Servic,2019148,202005
Rother District Council,01/04/2020,091HOUSING,Housing and Community Services,20128,Public Conveniences,B2611,Contract cleaning,302.83,Specialist Hygiene Services Ltd,Contract cleaning - Public Conveniences Cleaning Servic,2019148,202005
Rother District Council,01/04/2020,091HOUSING,Housing and Community Services,20128,Public Conveniences,B2611,Contract cleaning,495.62,Specialist Hygiene Services Ltd,Contract cleaning - Public Conveniences Cleaning Servic,2019148,202005
Rother District Council,01/04/2020,091HOUSING,Housing and Community Services,20128,Public Conveniences,B2611,Contract cleaning,730.15,Specialist Hygiene Services Ltd,Contract cleaning - Public Conveniences Cleaning Servic,2019148,202005
Rother District Council,01/04/2020,091HOUSING,Housing and Community Services,20128,Public Conveniences,B2611,Contract cleaning,1195.2,Specialist Hygiene Services Ltd,Contract cleaning - Public Conveniences Cleaning Servic,2019148,202005
Rother District Council,01/04/2020,091HOUSING,Housing and Community Services,20128,Public Conveniences,B2611,Contract cleaning,464.97,Specialist Hygiene Services Ltd,Contract cleaning - Public Conveniences Cleaning Servic,2019148,202005
Rother District Council,01/04/2020,091HOUSING,Housing and Community Services,20128,Public Conveniences,B2611,Contract cleaning,912.6,Specialist Hygiene Services Ltd,Contract cleaning - Public Conveniences Cleaning Servic,2019148,202005
Rother District Council,01/04/2020,091HOUSING,Housing and Community Services,20128,Public Conveniences,B2611,Contract cleaning,1211.08,Specialist Hygiene Services Ltd,Contract cleaning - Public Conveniences Cleaning Servic,2019148,202005
Rother District Council,01/04/2020,091HOUSING,Housing and Community Services,20128,Public Conveniences,B2611,Contract cleaning,1211.08,Specialist Hygiene Services Ltd,Contract cleaning - Public Conveniences Cleaning Servic,2019148,202005
Rother District Council,01/04/2020,091HOUSING,Housing and Community Services,20128,Public Conveniences,B2611,Contract cleaning,1721.81,Specialist Hygiene Services Ltd,Contract cleaning - Public Conveniences Cleaning Servic,2019148,202005
Rother District Council,01/04/2020,091HOUSING,Housing and Community Services,20128,Public Conveniences,B2611,Contract cleaning,285.84,Specialist Hygiene Services Ltd,Contract cleaning - Public Conveniences Cleaning Servic,2019148,202005
Rother District Council,01/04/2020,091HOUSING,Housing and Community Services,20128,Public Conveniences,B2611,Contract cleaning,381.21,Specialist Hygiene Services Ltd,Contract cleaning - Public Conveniences Cleaning Servic,2019148,202005
Rother District Council,01/04/2020,091HOUSING,Housing and Community Services,20128,Public Conveniences,B2611,Contract cleaning,317.69,Specialist Hygiene Services Ltd,Contract cleaning - Public Conveniences Cleaning Servic,2019148,202005
Rother District Council,01/04/2020,091HOUSING,Housing and Community Services,20128,Public Conveniences,B2611,Contract cleaning,349.45,Specialist Hygiene Services Ltd,Contract cleaning - Public Conveniences Cleaning Servic,2019148,202005
Rother District Council,01/04/2020,091HOUSING,Housing and Community Services,20128,Public Conveniences,B2611,Contract cleaning,381.21,Specialist Hygiene Services Ltd,Contract cleaning - Public Conveniences Cleaning Servic,2019148,202005
Rother District Council,01/04/2020,091HOUSING,Housing and Community Services,20128,Public Conveniences,B2611,Contract cleaning,285.8,Specialist Hygiene Services Ltd,Contract cleaning - Public Conveniences Cleaning Servic,2019148,202005
Rother District Council,01/04/2020,101RESOURCES,Resources,20209,Corporate management,D2513,Hired and Contracted services,20.09,Merchant Rentals Ltd,Hired and contracted services - Streamline Machine-Rental,2018146,202004
Rother District Council,01/04/2020,121PRECEPTS,Precepts,42203,Parish Precepts,F1201,Parish precepts,4047.9,Guestling Parish Council,Parish precepts,2018005,202004
Rother District Council,02/04/2020,101RESOURCES,Resources,20242,Communications-Phones,D2621,Telephones,28.62,TalkTalk Communications Ltd T/A TalkTalk Business,Telephones - Telephone Call Costs+Line Rental,2019089,202006
Rother District Council,03/04/2020,101RESOURCES,Resources,20222,Accountancy,D2922,Subscriptions,2467,Association for Public Service Excellence (APSE),Subscriptions - Subscription to Organisations,2018704,202005
Rother District Council,06/04/2020,101RESOURCES,Resources,20209,Corporate management,D2513,Hired and Contracted services,106,Lloyds Bank,Bank Charges,2019079,202005
Rother District Council,09/04/2020,101RESOURCES,Resources,20239,Computer Services,D2631,Computer Equip Maintenance,260.4,Canon (UK) Ltd,Computer Equip Maintenance - Maintenance re Colourwave Printer,2017424,202004
Rother District Council,13/04/2020,031RESOURCES,Executive Directors & Corporate Core,20171,Human Resources,D2622,Mobile Phones,10,O2 (UK) Ltd,Mobile Phones,2018149,202004
Rother District Council,13/04/2020,031RESOURCES,Executive Directors & Corporate Core,20171,Human Resources,D2622,Mobile Phones,10,O2 (UK) Ltd,Mobile Phones,2018149,202004
Rother District Council,13/04/2020,031RESOURCES,Executive Directors & Corporate Core,20158,Committee Service General Exp,D2622,Mobile Phones,10,O2 (UK) Ltd,Mobile Phones,2018149,202004
Rother District Council,13/04/2020,031RESOURCES,Executive Directors & Corporate Core,20162,Electoral Registration,D2622,Mobile Phones,10,O2 (UK) Ltd,Mobile Phones,2018149,202004
Rother District Council,13/04/2020,031RESOURCES,Executive Directors & Corporate Core,20183,Executive Directors,D2622,Mobile Phones,10,O2 (UK) Ltd,Mobile Phones,2018149,202004
Rother District Council,13/04/2020,031RESOURCES,Executive Directors & Corporate Core,20183,Executive Directors,D2622,Mobile Phones,30,O2 (UK) Ltd,Mobile Phones,2018149,202004
Rother District Council,13/04/2020,031RESOURCES,Executive Directors & Corporate Core,20183,Executive Directors,D2622,Mobile Phones,10,O2 (UK) Ltd,Mobile Phones,2018149,202004
Rother District Council,13/04/2020,031RESOURCES,Executive Directors & Corporate Core,20180,Emergency Planning,D2622,Mobile Phones,10,O2 (UK) Ltd,Mobile Phones,2018149,202004
Rother District Council,13/04/2020,031RESOURCES,Executive Directors & Corporate Core,20180,Emergency Planning,D2622,Mobile Phones,10,O2 (UK) Ltd,Mobile Phones,2018149,202004
Rother District Council,13/04/2020,031RESOURCES,Executive Directors & Corporate Core,20180,Emergency Planning,D2622,Mobile Phones,4.5,O2 (UK) Ltd,Mobile Phones,2018149,202004
Rother District Council,13/04/2020,031RESOURCES,Executive Directors & Corporate Core,20179,Communications,D2622,Mobile Phones,10,O2 (UK) Ltd,Mobile Phones,2018149,202004
Rother District Council,13/04/2020,031RESOURCES,Executive Directors & Corporate Core,32132,Joint Waste Contract Client Unit,D2622,Mobile Phones,10,O2 (UK) Ltd,Mobile Phones,2018149,202004
Rother District Council,13/04/2020,031RESOURCES,Executive Directors & Corporate Core,32132,Joint Waste Contract Client Unit,D2622,Mobile Phones,10,O2 (UK) Ltd,Mobile Phones,2018149,202004
Rother District Council,13/04/2020,041ENVIRON,Environmental Services,20197,Service Manager Env Serv,D2622,Mobile Phones,10,O2 (UK) Ltd,Mobile Phones,2018186,202004
Rother District Council,13/04/2020,041ENVIRON,Environmental Services,20198,Licensing Team,D2622,Mobile Phones,10,O2 (UK) Ltd,Mobile Phones,2018186,202004
Rother District Council,13/04/2020,041ENVIRON,Environmental Services,20198,Licensing Team,D2622,Mobile Phones,10,O2 (UK) Ltd,Mobile Phones,2018186,202004
Rother District Council,13/04/2020,041ENVIRON,Environmental Services,20198,Licensing Team,D2622,Mobile Phones,10,O2 (UK) Ltd,Mobile Phones,2018186,202004
Rother District Council,13/04/2020,041ENVIRON,Environmental Services,20198,Licensing Team,D2622,Mobile Phones,10.23,O2 (UK) Ltd,Mobile Phones,2018186,202004
Rother District Council,13/04/2020,041ENVIRON,Environmental Services,20198,Licensing Team,D2622,Mobile Phones,10,O2 (UK) Ltd,Mobile Phones,2018186,202004
Rother District Council,13/04/2020,041ENVIRON,Environmental Services,20198,Licensing Team,D2622,Mobile Phones,10,O2 (UK) Ltd,Mobile Phones,2018186,202004
Rother District Council,13/04/2020,041ENVIRON,Environmental Services,20198,Licensing Team,D2622,Mobile Phones,10,O2 (UK) Ltd,Mobile Phones,2018186,202004
Rother District Council,13/04/2020,081ACQUISIT,"Acquisitions, Transformation and Regeneration",20263,"Head of Service Acquisitions, Transformation and Regeneration",D2622,Mobile Phones,10,O2 (UK) Ltd,Mobile Phones,2018181,202004
Rother District Council,13/04/2020,081ACQUISIT,"Acquisitions, Transformation and Regeneration",20122,Economic Development,D2622,Mobile Phones,10,O2 (UK) Ltd,Mobile Phones,2018181,202004
Rother District Council,13/04/2020,081ACQUISIT,"Acquisitions, Transformation and Regeneration",20122,Economic Development,D2622,Mobile Phones,10,O2 (UK) Ltd,Mobile Phones,2018181,202004
Rother District Council,13/04/2020,081ACQUISIT,"Acquisitions, Transformation and Regeneration",20122,Economic Development,D2622,Mobile Phones,10,O2 (UK) Ltd,Mobile Phones,2018181,202004
Rother District Council,13/04/2020,081ACQUISIT,"Acquisitions, Transformation and Regeneration",20122,Economic Development,D2622,Mobile Phones,10,O2 (UK) Ltd,Mobile Phones,2018181,202004
Rother District Council,13/04/2020,081ACQUISIT,"Acquisitions, Transformation and Regeneration",20122,Economic Development,D2622,Mobile Phones,10,O2 (UK) Ltd,Mobile Phones,2018181,202004
Rother District Council,13/04/2020,081ACQUISIT,"Acquisitions, Transformation and Regeneration",20122,Economic Development,D2622,Mobile Phones,10,O2 (UK) Ltd,Mobile Phones,2018181,202004
Rother District Council,13/04/2020,071STRAT,Strategy and Planning,20246,Planning Applications,D2622,Mobile Phones,10,,Mobile Phones,2018180,202004
Rother District Council,13/04/2020,071STRAT,Strategy and Planning,20246,Planning Applications,D2622,Mobile Phones,10,O2 (UK) Ltd,Mobile Phones,2018180,202004
Rother District Council,13/04/2020,071STRAT,Strategy and Planning,20247,Service Manager Strategy and Planning,D2622,Mobile Phones,10,O2 (UK) Ltd,Mobile Phones,2018180,202004
Rother District Council,13/04/2020,071STRAT,Strategy and Planning,20248,"Complaints,Compliance,Enforce",D2622,Mobile Phones,10,O2 (UK) Ltd,Mobile Phones,2018180,202004
Rother District Council,13/04/2020,071STRAT,Strategy and Planning,20248,"Complaints,Compliance,Enforce",D2622,Mobile Phones,10,O2 (UK) Ltd,Mobile Phones,2018180,202004
Rother District Council,13/04/2020,071STRAT,Strategy and Planning,20248,"Complaints,Compliance,Enforce",D2622,Mobile Phones,10,O2 (UK) Ltd,Mobile Phones,2018180,202004
Rother District Council,13/04/2020,041ENVIRON,Environmental Services,20199,Food and Safety Team,D2622,Mobile Phones,10,O2 (UK) Ltd,Mobile Phones,2018186,202004
Rother District Council,13/04/2020,041ENVIRON,Environmental Services,20199,Food and Safety Team,D2622,Mobile Phones,10,O2 (UK) Ltd,Mobile Phones,2018186,202004
Rother District Council,13/04/2020,041ENVIRON,Environmental Services,20199,Food and Safety Team,D2622,Mobile Phones,10,O2 (UK) Ltd,Mobile Phones,2018186,202004
Rother District Council,13/04/2020,041ENVIRON,Environmental Services,20199,Food and Safety Team,D2622,Mobile Phones,10,O2 (UK) Ltd,Mobile Phones,2018186,202004
Rother District Council,13/04/2020,041ENVIRON,Environmental Services,20199,Food and Safety Team,D2622,Mobile Phones,10,O2 (UK) Ltd,Mobile Phones,2018186,202004
Rother District Council,13/04/2020,041ENVIRON,Environmental Services,20199,Food and Safety Team,D2622,Mobile Phones,10,O2 (UK) Ltd,Mobile Phones,2018186,202004
Rother District Council,13/04/2020,041ENVIRON,Environmental Services,20199,Food and Safety Team,D2622,Mobile Phones,10,O2 (UK) Ltd,Mobile Phones,2018186,202004
Rother District Council,13/04/2020,041ENVIRON,Environmental Services,20199,Food and Safety Team,D2622,Mobile Phones,10.06,O2 (UK) Ltd,Mobile Phones,2018186,202004
Rother District Council,13/04/2020,041ENVIRON,Environmental Services,20199,Food and Safety Team,D2622,Mobile Phones,10,O2 (UK) Ltd,Mobile Phones,2018186,202004
Rother District Council,13/04/2020,041ENVIRON,Environmental Services,20199,Food and Safety Team,D2622,Mobile Phones,10,O2 (UK) Ltd,Mobile Phones,2018186,202004
Rother District Council,13/04/2020,041ENVIRON,Environmental Services,20199,Food and Safety Team,D2622,Mobile Phones,10,O2 (UK) Ltd,Mobile Phones,2018186,202004
Rother District Council,13/04/2020,041ENVIRON,Environmental Services,20199,Food and Safety Team,D2622,Mobile Phones,11.32,O2 (UK) Ltd,Mobile Phones,2018186,202004
Rother District Council,13/04/2020,041ENVIRON,Environmental Services,20199,Food and Safety Team,D2622,Mobile Phones,10,O2 (UK) Ltd,Mobile Phones,2018186,202004
Rother District Council,13/04/2020,041ENVIRON,Environmental Services,20199,Food and Safety Team,D2622,Mobile Phones,10,O2 (UK) Ltd,Mobile Phones,2018186,202004
Rother District Council,13/04/2020,041ENVIRON,Environmental Services,20265,Pollution Team,D2622,Mobile Phones,10,O2 (UK) Ltd,Mobile Phones,2018186,202004
Rother District Council,13/04/2020,041ENVIRON,Environmental Services,20265,Pollution Team,D2622,Mobile Phones,10,O2 (UK) Ltd,Mobile Phones,2018186,202004
Rother District Council,13/04/2020,041ENVIRON,Environmental Services,20265,Pollution Team,D2622,Mobile Phones,10,O2 (UK) Ltd,Mobile Phones,2018186,202004
Rother District Council,13/04/2020,041ENVIRON,Environmental Services,20265,Pollution Team,D2622,Mobile Phones,10,O2 (UK) Ltd,Mobile Phones,2018186,202004
Rother District Council,13/04/2020,041ENVIRON,Environmental Services,20265,Pollution Team,D2622,Mobile Phones,10,O2 (UK) Ltd,Mobile Phones,2018186,202004
Rother District Council,13/04/2020,041ENVIRON,Environmental Services,20265,Pollution Team,D2622,Mobile Phones,10,O2 (UK) Ltd,Mobile Phones,2018186,202004
Rother District Council,13/04/2020,041ENVIRON,Environmental Services,20265,Pollution Team,D2622,Mobile Phones,10,O2 (UK) Ltd,Mobile Phones,2018186,202004
Rother District Council,13/04/2020,041ENVIRON,Environmental Services,20265,Pollution Team,D2622,Mobile Phones,10,O2 (UK) Ltd,Mobile Phones,2018186,202004
Rother District Council,13/04/2020,041ENVIRON,Environmental Services,20265,Pollution Team,D2622,Mobile Phones,10,O2 (UK) Ltd,Mobile Phones,2018186,202004
Rother District Council,13/04/2020,041ENVIRON,Environmental Services,20265,Pollution Team,D2622,Mobile Phones,10,O2 (UK) Ltd,Mobile Phones,2018186,202004
Rother District Council,13/04/2020,041ENVIRON,Environmental Services,20265,Pollution Team,D2622,Mobile Phones,10,O2 (UK) Ltd,Mobile Phones,2018186,202004
Rother District Council,13/04/2020,041ENVIRON,Environmental Services,20265,Pollution Team,D2622,Mobile Phones,10,O2 (UK) Ltd,Mobile Phones,2018186,202004
Rother District Council,13/04/2020,041ENVIRON,Environmental Services,20265,Pollution Team,D2622,Mobile Phones,10,O2 (UK) Ltd,Mobile Phones,2018186,202004
Rother District Council,13/04/2020,041ENVIRON,Environmental Services,20265,Pollution Team,D2622,Mobile Phones,10,O2 (UK) Ltd,Mobile Phones,2018186,202004
Rother District Council,13/04/2020,081ACQUISIT,"Acquisitions, Transformation and Regeneration",20121,Programme and Policy Office,D2622,Mobile Phones,11.24,O2 (UK) Ltd,Mobile Phones,2018181,202004
Rother District Council,13/04/2020,081ACQUISIT,"Acquisitions, Transformation and Regeneration",20243,Business Improvement,D2622,Mobile Phones,10,O2 (UK) Ltd,Mobile Phones,2018181,202004
Rother District Council,13/04/2020,081ACQUISIT,"Acquisitions, Transformation and Regeneration",20243,Business Improvement,D2622,Mobile Phones,10,O2 (UK) Ltd,Mobile Phones,2018181,202004
Rother District Council,13/04/2020,081ACQUISIT,"Acquisitions, Transformation and Regeneration",20272,Major Projects unit,D2622,Mobile Phones,10,O2 (UK) Ltd,Mobile Phones,2018181,202004
Rother District Council,13/04/2020,091HOUSING,Housing and Community Services,20109,Sports Development,D2622,Mobile Phones,10,O2 (UK) Ltd,Mobile Phones,2018183,202004
Rother District Council,13/04/2020,091HOUSING,Housing and Community Services,20262,Head of Service Housing and Community Services,D2622,Mobile Phones,10,O2 (UK) Ltd,Mobile Phones,2018183,202004
Rother District Council,13/04/2020,101RESOURCES,Resources,20222,Accountancy,D2622,Mobile Phones,10,O2 (UK) Ltd,Mobile Phones,2018182,202004
Rother District Council,13/04/2020,101RESOURCES,Resources,20222,Accountancy,D2622,Mobile Phones,10,O2 (UK) Ltd,Mobile Phones,2018182,202004
Rother District Council,13/04/2020,101RESOURCES,Resources,20226,Service Manager Finance and Welfare,D2622,Mobile Phones,10,O2 (UK) Ltd,Mobile Phones,2018149,202004
Rother District Council,13/04/2020,101RESOURCES,Resources,20210,Treasury Management,D2622,Mobile Phones,10,O2 (UK) Ltd,Mobile Phones,2018183,202004
Rother District Council,13/04/2020,101RESOURCES,Resources,20210,Treasury Management,D2622,Mobile Phones,10,O2 (UK) Ltd,Mobile Phones,2018183,202004
Rother District Council,13/04/2020,101RESOURCES,Resources,20210,Treasury Management,D2622,Mobile Phones,10,O2 (UK) Ltd,Mobile Phones,2018183,202004
Rother District Council,13/04/2020,101RESOURCES,Resources,20210,Treasury Management,D2622,Mobile Phones,10,O2 (UK) Ltd,Mobile Phones,2018183,202004
Rother District Council,13/04/2020,101RESOURCES,Resources,20210,Treasury Management,D2622,Mobile Phones,10,O2 (UK) Ltd,Mobile Phones,2018183,202004
Rother District Council,13/04/2020,101RESOURCES,Resources,20210,Treasury Management,D2622,Mobile Phones,10,O2 (UK) Ltd,Mobile Phones,2018183,202004
Rother District Council,13/04/2020,101RESOURCES,Resources,20210,Treasury Management,D2622,Mobile Phones,10,O2 (UK) Ltd,Mobile Phones,2018183,202004
Rother District Council,13/04/2020,101RESOURCES,Resources,20210,Treasury Management,D2622,Mobile Phones,10,O2 (UK) Ltd,Mobile Phones,2018183,202004
Rother District Council,13/04/2020,101RESOURCES,Resources,20210,Treasury Management,D2622,Mobile Phones,10,O2 (UK) Ltd,Mobile Phones,2018183,202004
Rother District Council,13/04/2020,101RESOURCES,Resources,20210,Treasury Management,D2622,Mobile Phones,10,O2 (UK) Ltd,Mobile Phones,2018183,202004
Rother District Council,13/04/2020,101RESOURCES,Resources,20210,Treasury Management,D2622,Mobile Phones,10,O2 (UK) Ltd,Mobile Phones,2018183,202004
Rother District Council,13/04/2020,101RESOURCES,Resources,20210,Treasury Management,D2622,Mobile Phones,10,O2 (UK) Ltd,Mobile Phones,2018183,202004
Rother District Council,13/04/2020,101RESOURCES,Resources,20210,Treasury Management,D2622,Mobile Phones,10,O2 (UK) Ltd,Mobile Phones,2018183,202004
Rother District Council,13/04/2020,101RESOURCES,Resources,20210,Treasury Management,D2622,Mobile Phones,32.02,O2 (UK) Ltd,Mobile Phones,2018183,202004
Rother District Council,13/04/2020,101RESOURCES,Resources,20210,Treasury Management,D2622,Mobile Phones,10,O2 (UK) Ltd,Mobile Phones,2018183,202004
Rother District Council,13/04/2020,101RESOURCES,Resources,20210,Treasury Management,D2622,Mobile Phones,10,O2 (UK) Ltd,Mobile Phones,2018183,202004
Rother District Council,13/04/2020,101RESOURCES,Resources,20210,Treasury Management,D2622,Mobile Phones,10,O2 (UK) Ltd,Mobile Phones,2018183,202004
Rother District Council,13/04/2020,101RESOURCES,Resources,20210,Treasury Management,D2622,Mobile Phones,10,O2 (UK) Ltd,Mobile Phones,2018183,202004
Rother District Council,13/04/2020,101RESOURCES,Resources,20210,Treasury Management,D2622,Mobile Phones,10,O2 (UK) Ltd,Mobile Phones,2018183,202004
Rother District Council,13/04/2020,101RESOURCES,Resources,20210,Treasury Management,D2622,Mobile Phones,10,O2 (UK) Ltd,Mobile Phones,2018183,202004
Rother District Council,13/04/2020,101RESOURCES,Resources,20210,Treasury Management,D2622,Mobile Phones,10,O2 (UK) Ltd,Mobile Phones,2018183,202004
Rother District Council,13/04/2020,101RESOURCES,Resources,20210,Treasury Management,D2622,Mobile Phones,10,O2 (UK) Ltd,Mobile Phones,2018183,202004
Rother District Council,13/04/2020,101RESOURCES,Resources,20210,Treasury Management,D2622,Mobile Phones,10,O2 (UK) Ltd,Mobile Phones,2018183,202004
Rother District Council,13/04/2020,101RESOURCES,Resources,20210,Treasury Management,D2622,Mobile Phones,10,O2 (UK) Ltd,Mobile Phones,2018183,202004
Rother District Council,13/04/2020,101RESOURCES,Resources,20210,Treasury Management,D2622,Mobile Phones,10,O2 (UK) Ltd,Mobile Phones,2018183,202004
Rother District Council,13/04/2020,101RESOURCES,Resources,20210,Treasury Management,D2622,Mobile Phones,10,O2 (UK) Ltd,Mobile Phones,2018183,202004
Rother District Council,13/04/2020,101RESOURCES,Resources,20210,Treasury Management,D2622,Mobile Phones,10,O2 (UK) Ltd,Mobile Phones,2018183,202004
Rother District Council,13/04/2020,101RESOURCES,Resources,20210,Treasury Management,D2622,Mobile Phones,10,O2 (UK) Ltd,Mobile Phones,2018183,202004
Rother District Council,13/04/2020,101RESOURCES,Resources,20210,Treasury Management,D2622,Mobile Phones,14.22,O2 (UK) Ltd,Mobile Phones,2018183,202004
Rother District Council,13/04/2020,101RESOURCES,Resources,20210,Treasury Management,D2622,Mobile Phones,10,O2 (UK) Ltd,Mobile Phones,2018183,202004
Rother District Council,13/04/2020,091HOUSING,Housing and Community Services,20204,Housing Administration Account,D2622,Mobile Phones,10,O2 (UK) Ltd,Mobile Phones,2018183,202004
Rother District Council,13/04/2020,091HOUSING,Housing and Community Services,20204,Housing Administration Account,D2622,Mobile Phones,10,O2 (UK) Ltd,Mobile Phones,2018183,202004
Rother District Council,13/04/2020,091HOUSING,Housing and Community Services,20204,Housing Administration Account,D2622,Mobile Phones,10,O2 (UK) Ltd,Mobile Phones,2018183,202004
Rother District Council,13/04/2020,091HOUSING,Housing and Community Services,20204,Housing Administration Account,D2622,Mobile Phones,10,O2 (UK) Ltd,Mobile Phones,2018183,202004
Rother District Council,13/04/2020,091HOUSING,Housing and Community Services,20204,Housing Administration Account,D2622,Mobile Phones,10,O2 (UK) Ltd,Mobile Phones,2018183,202004
Rother District Council,13/04/2020,091HOUSING,Housing and Community Services,20204,Housing Administration Account,D2622,Mobile Phones,10,O2 (UK) Ltd,Mobile Phones,2018183,202004
Rother District Council,13/04/2020,091HOUSING,Housing and Community Services,20204,Housing Administration Account,D2622,Mobile Phones,10.59,O2 (UK) Ltd,Mobile Phones,2018183,202004
Rother District Council,13/04/2020,091HOUSING,Housing and Community Services,20204,Housing Administration Account,D2622,Mobile Phones,10,O2 (UK) Ltd,Mobile Phones,2018183,202004
Rother District Council,13/04/2020,091HOUSING,Housing and Community Services,20204,Housing Administration Account,D2622,Mobile Phones,10,O2 (UK) Ltd,Mobile Phones,2018183,202004
Rother District Council,13/04/2020,091HOUSING,Housing and Community Services,20204,Housing Administration Account,D2622,Mobile Phones,10,O2 (UK) Ltd,Mobile Phones,2018183,202004
Rother District Council,13/04/2020,091HOUSING,Housing and Community Services,20204,Housing Administration Account,D2622,Mobile Phones,10,O2 (UK) Ltd,Mobile Phones,2018183,202004
Rother District Council,13/04/2020,091HOUSING,Housing and Community Services,20204,Housing Administration Account,D2622,Mobile Phones,10,O2 (UK) Ltd,Mobile Phones,2018183,202004
Rother District Council,13/04/2020,091HOUSING,Housing and Community Services,20204,Housing Administration Account,D2622,Mobile Phones,10,O2 (UK) Ltd,Mobile Phones,2018183,202004
Rother District Council,13/04/2020,091HOUSING,Housing and Community Services,20204,Housing Administration Account,D2622,Mobile Phones,10,O2 (UK) Ltd,Mobile Phones,2018183,202004
Rother District Council,13/04/2020,091HOUSING,Housing and Community Services,20204,Housing Administration Account,D2622,Mobile Phones,10,O2 (UK) Ltd,Mobile Phones,2018183,202004
Rother District Council,13/04/2020,091HOUSING,Housing and Community Services,20204,Housing Administration Account,D2622,Mobile Phones,10,O2 (UK) Ltd,Mobile Phones,2018183,202004
Rother District Council,13/04/2020,091HOUSING,Housing and Community Services,20264,Property Maintenance Team,D2622,Mobile Phones,10,O2 (UK) Ltd,Mobile Phones,2018183,202004
Rother District Council,13/04/2020,091HOUSING,Housing and Community Services,20264,Property Maintenance Team,D2622,Mobile Phones,20,O2 (UK) Ltd,Mobile Phones,2018183,202004
Rother District Council,13/04/2020,091HOUSING,Housing and Community Services,20264,Property Maintenance Team,D2622,Mobile Phones,51.06,O2 (UK) Ltd,Mobile Phones,2018183,202004
Rother District Council,13/04/2020,091HOUSING,Housing and Community Services,20264,Property Maintenance Team,D2622,Mobile Phones,10.14,O2 (UK) Ltd,Mobile Phones,2018183,202004
Rother District Council,13/04/2020,091HOUSING,Housing and Community Services,20264,Property Maintenance Team,D2622,Mobile Phones,10,O2 (UK) Ltd,Mobile Phones,2018183,202004
Rother District Council,13/04/2020,091HOUSING,Housing and Community Services,20264,Property Maintenance Team,D2622,Mobile Phones,10,O2 (UK) Ltd,Mobile Phones,2018183,202004
Rother District Council,13/04/2020,091HOUSING,Housing and Community Services,20264,Property Maintenance Team,D2622,Mobile Phones,10,O2 (UK) Ltd,Mobile Phones,2018183,202004
Rother District Council,13/04/2020,091HOUSING,Housing and Community Services,20264,Property Maintenance Team,D2622,Mobile Phones,10,O2 (UK) Ltd,Mobile Phones,2018183,202004
Rother District Council,13/04/2020,091HOUSING,Housing and Community Services,20236,Customer Services and Development,D2622,Mobile Phones,15,O2 (UK) Ltd,Mobile Phones,2018183,202004
Rother District Council,13/04/2020,101RESOURCES,Resources,20215,Revenue and Benefits,D2622,Mobile Phones,10,O2 (UK) Ltd,Mobile Phones,2018182,202004
Rother District Council,13/04/2020,101RESOURCES,Resources,20215,Revenue and Benefits,D2622,Mobile Phones,10,O2 (UK) Ltd,Mobile Phones,2018182,202004
Rother District Council,13/04/2020,101RESOURCES,Resources,20215,Revenue and Benefits,D2622,Mobile Phones,10,O2 (UK) Ltd,Mobile Phones,2018182,202004
Rother District Council,13/04/2020,101RESOURCES,Resources,20215,Revenue and Benefits,D2622,Mobile Phones,10,O2 (UK) Ltd,Mobile Phones,2018182,202004
Rother District Council,13/04/2020,101RESOURCES,Resources,20215,Revenue and Benefits,D2622,Mobile Phones,10,O2 (UK) Ltd,Mobile Phones,2018182,202004
Rother District Council,13/04/2020,101RESOURCES,Resources,20215,Revenue and Benefits,D2622,Mobile Phones,10,O2 (UK) Ltd,Mobile Phones,2018182,202004
Rother District Council,13/04/2020,101RESOURCES,Resources,20239,Computer Services,D2622,Mobile Phones,10,O2 (UK) Ltd,Mobile Phones,2018182,202004
Rother District Council,13/04/2020,101RESOURCES,Resources,20239,Computer Services,D2622,Mobile Phones,10,O2 (UK) Ltd,Mobile Phones,2018182,202004
Rother District Council,13/04/2020,101RESOURCES,Resources,20239,Computer Services,D2622,Mobile Phones,10,O2 (UK) Ltd,Mobile Phones,2018182,202004
Rother District Council,13/04/2020,101RESOURCES,Resources,20239,Computer Services,D2622,Mobile Phones,78.73,O2 (UK) Ltd,Mobile Phones,2018182,202004
Rother District Council,13/04/2020,101RESOURCES,Resources,20239,Computer Services,D2622,Mobile Phones,10,O2 (UK) Ltd,Mobile Phones,2018182,202004
Rother District Council,13/04/2020,101RESOURCES,Resources,20239,Computer Services,D2622,Mobile Phones,10,O2 (UK) Ltd,Mobile Phones,2018182,202004
Rother District Council,14/04/2020,101RESOURCES,Resources,20209,Corporate management,D2513,Hired and Contracted services,0.75,Lloyds Bank,Bank Charges,2018138,202004
Rother District Council,14/04/2020,081ACQUISIT,"Acquisitions, Transformation and Regeneration",20267,Property Investment Strategy - 18-40 Beeching Road ( Land and Buildings),B2202,Gas,49.29,Gazprom Marketing & Trading Retail Ltd,Gas - Gas Charges,2018748,202005
Rother District Council,15/04/2020,041ENVIRON,Environmental Services,32136,EH Pest Control R + W Partnership,C1104,Derv,3.8,Allstar Business Solutions,Derv - Fuel Service fee payable on fuel cards,2017998,202004
Rother District Council,15/04/2020,041ENVIRON,Environmental Services,32136,EH Pest Control R + W Partnership,C1104,Derv,36.67,Allstar Business Solutions,Derv,2017998,202004
Rother District Council,15/04/2020,041ENVIRON,Environmental Services,32136,EH Pest Control R + W Partnership,C1104,Derv,36.25,Allstar Business Solutions,Derv,2017998,202004
Rother District Council,15/04/2020,091HOUSING,Housing and Community Services,20139,Abandoned Vehicles,D2513,Hired and Contracted services,600,The Automobile Association,Hired and Contracted services,2018823,202005
Rother District Council,15/04/2020,091HOUSING,Housing and Community Services,20145,Maintenance Services,C1104,Derv,27.5,Allstar Business Solutions,Derv,2017998,202004
Rother District Council,16/04/2020,999NOREPORT,Environmental Services,70706,Capital - Disable Facilities Grant,N1012,Capital Advances,1147.51,Peabody South East Ltd,Capital Advances Disabled Facilities Grant,2019678,202006
Rother District Council,22/04/2020,091HOUSING,Housing and Community Services,20128,Public Conveniences,B2422,Sewerage,428.86,Scottish Water Business Stream Limited,Sewerage - Sewerage Charges,2018015,202004
Rother District Council,22/04/2020,091HOUSING,Housing and Community Services,20128,Public Conveniences,B2422,Sewerage,170.3,Scottish Water Business Stream Limited,Sewerage - Sewerage Charges,2018042,202004
Rother District Council,23/04/2020,081ACQUISIT,"Acquisitions, Transformation and Regeneration",20146,West Trading Estate,B2202,Gas,49.29,Gazprom Marketing & Trading Retail Ltd,Gas - Gas Charges,2018749,202005
Rother District Council,27/04/2020,101RESOURCES,Resources,20219,Support To Elect Bodies/Grant,D2922,Subscriptions,9187.77,Local Government Association,Subscriptions - Subscription to Organisations,2018013,202004
Rother District Council,30/04/2020,101RESOURCES,Resources,20239,Computer Services,D2635,Computer Licences,390.43,Civica UK Ltd,Computer Licences - Website Management,2019366,202006
Rother District Council,30/04/2020,041ENVIRON,Environmental Services,32136,EH Pest Control R + W Partnership,C1104,Derv,3.8,Allstar Business Solutions,Derv - Fuel Service fee payable on fuel cards,2018000,202004
Rother District Council,30/04/2020,091HOUSING,Housing and Community Services,20107,Camber Beach & Foreshore,C1104,Derv,1.9,Allstar Business Solutions,Derv - Fuel Service fee payable on fuel cards,2018000,202004
Rother District Council,30/04/2020,091HOUSING,Housing and Community Services,20137,Car Parks,D1201,Equipment & Materials,942.3,Fleet (Line Markers) Ltd,Equipment & Materials - Car Parks various,2018347,202004
Rother District Council,30/04/2020,101RESOURCES,Resources,20209,Corporate management,D2513,Hired and Contracted services,960.42,allpay.net Ltd,Hired and contracted services - Allpay Card/Rep/Let Chrg - Vatable,2018220,202004
Rother District Council,30/04/2020,101RESOURCES,Resources,20209,Corporate management,D2513,Hired and Contracted services,21.37,allpay.net Ltd,Hired and contracted services - Allpay Card/Rep/Let Chrg - Vatable,2018221,202004
Rother District Council,30/04/2020,101RESOURCES,Resources,20209,Corporate management,D2513,Hired and Contracted services,11.88,allpay.net Ltd,Hired and contracted services - Allpay Card/Rep/Let Chrg - Vatable,2018222,202004
Rother District Council,30/04/2020,101RESOURCES,Resources,20209,Corporate management,D2513,Hired and Contracted services,14.57,allpay.net Ltd,Hired and contracted services - Allpay Card/Rep/Let Chrg - Vatable,2018223,202004
Rother District Council,30/04/2020,081ACQUISIT,"Acquisitions, Transformation and Regeneration",20267,Property Investment Strategy - 18-40 Beeching Road ( Land and Buildings),B2422,Sewerage,8.13,Scottish Water Business Stream Limited,Sewerage - Sewerage Charges,2018047,202004
Rother District Council,30/04/2020,041ENVIRON,Environmental Services,32136,EH Pest Control R + W Partnership,C1104,Derv,35.01,Allstar Business Solutions,Derv,2018000,202004
Rother District Council,30/04/2020,041ENVIRON,Environmental Services,32136,EH Pest Control R + W Partnership,C1104,Derv,39.17,Allstar Business Solutions,Derv,2018000,202004
Rother District Council,30/04/2020,041ENVIRON,Environmental Services,32136,EH Pest Control R + W Partnership,C1104,Derv,45.83,Allstar Business Solutions,Derv,2018000,202004
Rother District Council,30/04/2020,091HOUSING,Housing and Community Services,20107,Camber Beach & Foreshore,C1104,Derv,42.12,Allstar Business Solutions,Derv,2018000,202004
Rother District Council,01/05/2020,101RESOURCES,Resources,20216,Cost Of Collection,D2513,Hired and Contracted services,1993.82,Lloyds Bank,Bank Charges,2018200,202004
Rother District Council,01/05/2020,101RESOURCES,Resources,20216,Cost Of Collection,D2513,Hired and Contracted services,1.07,Lloyds Bank,Bank Charges,2018198,202004
Rother District Council,01/05/2020,101RESOURCES,Resources,20216,Cost Of Collection,D2513,Hired and Contracted services,1258.19,Lloyds Bank,Bank Charges,2018199,202004
Rother District Council,01/05/2020,041ENVIRON,Environmental Services,32134,EH Pollution R + W Partnership,D2513,Hired and Contracted services,990,Mallard Consultancy Ltd,Hired and contracted services - Service fee paid,2018111,202004
Rother District Council,01/05/2020,101RESOURCES,Resources,20209,Corporate management,D2513,Hired and Contracted services,20.09,Merchant Rentals Ltd,Hired and contracted services - Streamline Machine-Rental,2018147,202004
Rother District Council,01/05/2020,091HOUSING,Housing and Community Services,20235,Rye Community Help Point,D2621,Telephones,101.9,Beaming Ltd,Telephones - Broadband Connection,2017996,202004
Rother District Council,02/05/2020,031RESOURCES,Executive Directors & Corporate Core,20159,Corporate Policy Making,D2513,Hired and Contracted services,2895,The Information Commissioner,Hired and contracted services - Data Protection Act,2019798,202006
Rother District Council,02/05/2020,091HOUSING,Housing and Community Services,20128,Public Conveniences,B2422,Sewerage,551.09,Scottish Water Business Stream Limited,Sewerage - Sewerage Charges,2018045,202004
Rother District Council,02/05/2020,091HOUSING,Housing and Community Services,20128,Public Conveniences,B2422,Sewerage,275.42,Scottish Water Business Stream Limited,Sewerage - Sewerage Charges,2018024,202004
Rother District Council,02/05/2020,091HOUSING,Housing and Community Services,20102,Rother Museum Services,B2422,Sewerage,68.86,Scottish Water Business Stream Limited,Sewerage - Sewerage Charges,2018024,202004
Rother District Council,02/05/2020,101RESOURCES,Resources,20242,Communications-Phones,D2621,Telephones,25.72,TalkTalk Communications Ltd T/A TalkTalk Business,Telephones - Telephone Call Costs+Line Rental,2019088,202006
Rother District Council,03/05/2020,101RESOURCES,Resources,20239,Computer Services,D2636,Computer Software,300,ElseWare Limited,Computer Licences - BACS Software,2019299,202006
Rother District Council,04/05/2020,101RESOURCES,Resources,20239,Computer Services,D2635,Computer Licences,645,NCC Services Ltd (T/A NCC Group Escrow Ltd),Computer Licences - Advance Pay ESCROW Agreement,2019323,202006
Rother District Council,04/05/2020,091HOUSING,Housing and Community Services,20261,"TA Purchases (prev - 41 Jameson Mews, Bexhill on Sea)",B1100,Repairs to Premises,2534.37,Alfa Electric Ltd,Repairs to Premises - Repairs Refurbishment of premises,2018855,202005
Rother District Council,04/05/2020,091HOUSING,Housing and Community Services,20261,"TA Purchases (prev - 41 Jameson Mews, Bexhill on Sea)",B1100,Repairs to Premises,723.34,Alfa Electric Ltd,Repairs to Premises - Repairs Refurbishment of premises,2018907,202005
Rother District Council,05/05/2020,101RESOURCES,Resources,20209,Corporate management,D2513,Hired and Contracted services,203,Lloyds Bank,Bank Charges,2019082,202005
Rother District Council,05/05/2020,031RESOURCES,Executive Directors & Corporate Core,20170,Communications-Postages,D2626,Postages,0.48,Royal Mail Group Ltd,Postages - Response Service-Royal Mail Chg,2018201,202004
Rother District Council,05/05/2020,031RESOURCES,Executive Directors & Corporate Core,20170,Communications-Postages,D2626,Postages,207.93,Royal Mail Group Ltd,Postages - Response Service-Royal Mail Chg,2018201,202004
Rother District Council,06/05/2020,101RESOURCES,Resources,20239,Computer Services,D2633,Computer Equipment,788.91,Incom Telecommunications,Computer Equipment - Computer peripherals,2018435,202004
Rother District Council,06/05/2020,101RESOURCES,Resources,20239,Computer Services,D2635,Computer Licences,400,Trustmarque Solutions Ltd t/a S3,Computer Licences - Maintenance/Upgrading of Software,2017909,202004
Rother District Council,06/05/2020,071STRAT,Strategy and Planning,20255,Local Development Framework,D2513,Hired and Contracted services,3856,REDACTED PERSONAL DATA,Hired and contracted services - LDF Consultancy,2017046,202004
Rother District Council,06/05/2020,071STRAT,Strategy and Planning,20255,Local Development Framework,D2513,Hired and Contracted services,42,REDACTED PERSONAL DATA,Hired and contracted services - LDF Consultancy,2017046,202004
Rother District Council,06/05/2020,091HOUSING,Housing and Community Services,20128,Public Conveniences,B2421,Water,11.31,Scottish Water Business Stream Limited,Water - Water Charges,2018040,202004
Rother District Council,07/05/2020,091HOUSING,Housing and Community Services,20261,"TA Purchases (prev - 41 Jameson Mews, Bexhill on Sea)",B1100,Repairs to Premises,758.05,Alfa Electric Ltd,Repairs to Premises - Repairs - Electrical Works,2018108,202004
Rother District Council,07/05/2020,041ENVIRON,Environmental Services,32144,EH Environmental Services Admin R + W Partnership,A2203,Training,165,Institute of Licensing (Events) Ltd,Training,2018499,202004
Rother District Council,09/05/2020,101RESOURCES,Resources,20242,Communications-Phones,D2621,Telephones,-103.32,TalkTalk Communications Ltd T/A TalkTalk Business,Telephones - Telephone Call Costs+Line Rental,2018218,202004
Rother District Council,11/05/2020,091HOUSING,Housing and Community Services,20107,Camber Beach & Foreshore,B1100,Repairs to Premises,132.19,Alfa Electric Ltd,Repairs to Premises - Beach maintenance,2018348,202004
Rother District Council,12/05/2020,101RESOURCES,Resources,20209,Corporate management,D2513,Hired and Contracted services,223.95,Lloyds Bank,Bank Charges,2018134,202004
Rother District Council,12/05/2020,101RESOURCES,Resources,20209,Corporate management,D2513,Hired and Contracted services,34.19,Lloyds Bank,Bank Charges,2018137,202004
Rother District Council,12/05/2020,101RESOURCES,Resources,20209,Corporate management,D2513,Hired and Contracted services,191.59,Capita Business Services Ltd,Bank Charges,2018004,202004
Rother District Council,12/05/2020,031RESOURCES,Executive Directors & Corporate Core,20173,Administrative Offices - Town Hall,B2422,Sewerage,854.02,Scottish Water Business Stream Limited,Sewerage - Sewerage Charges,2018016,202004
Rother District Council,12/05/2020,081ACQUISIT,"Acquisitions, Transformation and Regeneration",20154,Committee Property Account,B2422,Sewerage,35.37,Scottish Water Business Stream Limited,Sewerage - Sewerage Charges,2018032,202004
Rother District Council,13/05/2020,101RESOURCES,Resources,20216,Cost Of Collection,D2513,Hired and Contracted services,30,H M Land Registry,Hired and contracted services - Council Tax-Land Registry Enquiries,2018009,202004
Rother District Council,13/05/2020,071STRAT,Strategy and Planning,20258,BC Dangerous Structures H+R Partnership,D2513,Hired and Contracted services,9,H M Land Registry,Hired and contracted services - Env H-Land Registry,2018009,202004
Rother District Council,13/05/2020,091HOUSING,Housing and Community Services,20200,Housing Needs - HB (Housing Benefit),D2513,Hired and Contracted services,3,H M Land Registry,Hired and contracted services - Housing-Land Registry,2018009,202004
Rother District Council,13/05/2020,071STRAT,Strategy and Planning,20246,Planning Applications,D2513,Hired and Contracted services,9,H M Land Registry,Hired and contracted services - Land Registry-Planning,2018009,202004
Rother District Council,13/05/2020,031RESOURCES,Executive Directors & Corporate Core,20171,Human Resources,D2622,Mobile Phones,10,O2 (UK) Ltd,Mobile Phones,2019075,202005
Rother District Council,13/05/2020,031RESOURCES,Executive Directors & Corporate Core,20171,Human Resources,D2622,Mobile Phones,10,O2 (UK) Ltd,Mobile Phones,2019075,202005
Rother District Council,13/05/2020,031RESOURCES,Executive Directors & Corporate Core,20158,Committee Service General Exp,D2622,Mobile Phones,10,O2 (UK) Ltd,Mobile Phones,2019075,202005
Rother District Council,13/05/2020,031RESOURCES,Executive Directors & Corporate Core,20162,Electoral Registration,D2622,Mobile Phones,10,O2 (UK) Ltd,Mobile Phones,2019075,202005
Rother District Council,13/05/2020,031RESOURCES,Executive Directors & Corporate Core,20183,Executive Directors,D2622,Mobile Phones,10,O2 (UK) Ltd,Mobile Phones,2019075,202005
Rother District Council,13/05/2020,031RESOURCES,Executive Directors & Corporate Core,20183,Executive Directors,D2622,Mobile Phones,30,O2 (UK) Ltd,Mobile Phones,2019075,202005
Rother District Council,13/05/2020,031RESOURCES,Executive Directors & Corporate Core,20183,Executive Directors,D2622,Mobile Phones,10,O2 (UK) Ltd,Mobile Phones,2019075,202005
Rother District Council,13/05/2020,031RESOURCES,Executive Directors & Corporate Core,20180,Emergency Planning,D2622,Mobile Phones,10,O2 (UK) Ltd,Mobile Phones,2019075,202005
Rother District Council,13/05/2020,031RESOURCES,Executive Directors & Corporate Core,20180,Emergency Planning,D2622,Mobile Phones,10,O2 (UK) Ltd,Mobile Phones,2019075,202005
Rother District Council,13/05/2020,031RESOURCES,Executive Directors & Corporate Core,20180,Emergency Planning,D2622,Mobile Phones,4.5,O2 (UK) Ltd,Mobile Phones,2019075,202005
Rother District Council,13/05/2020,041ENVIRON,Environmental Services,20197,Service Manager Env Serv,D2622,Mobile Phones,10,O2 (UK) Ltd,Mobile Phones,2019076,202005
Rother District Council,13/05/2020,041ENVIRON,Environmental Services,20198,Licensing Team,D2622,Mobile Phones,10,O2 (UK) Ltd,Mobile Phones,2019076,202005
Rother District Council,13/05/2020,041ENVIRON,Environmental Services,20198,Licensing Team,D2622,Mobile Phones,10,O2 (UK) Ltd,Mobile Phones,2019076,202005
Rother District Council,13/05/2020,041ENVIRON,Environmental Services,20198,Licensing Team,D2622,Mobile Phones,10,O2 (UK) Ltd,Mobile Phones,2019076,202005
Rother District Council,13/05/2020,041ENVIRON,Environmental Services,20198,Licensing Team,D2622,Mobile Phones,10,O2 (UK) Ltd,Mobile Phones,2019076,202005
Rother District Council,13/05/2020,041ENVIRON,Environmental Services,20198,Licensing Team,D2622,Mobile Phones,10,O2 (UK) Ltd,Mobile Phones,2019076,202005
Rother District Council,13/05/2020,041ENVIRON,Environmental Services,20198,Licensing Team,D2622,Mobile Phones,10,O2 (UK) Ltd,Mobile Phones,2019076,202005
Rother District Council,13/05/2020,041ENVIRON,Environmental Services,20198,Licensing Team,D2622,Mobile Phones,10,O2 (UK) Ltd,Mobile Phones,2019076,202005
Rother District Council,13/05/2020,031RESOURCES,Executive Directors & Corporate Core,32132,Joint Waste Contract Client Unit,D2622,Mobile Phones,10,O2 (UK) Ltd,Mobile Phones,2019075,202005
Rother District Council,13/05/2020,031RESOURCES,Executive Directors & Corporate Core,32132,Joint Waste Contract Client Unit,D2622,Mobile Phones,23.18,O2 (UK) Ltd,Mobile Phones,2019075,202005
Rother District Council,13/05/2020,031RESOURCES,Executive Directors & Corporate Core,20179,Communications,D2622,Mobile Phones,10,O2 (UK) Ltd,Mobile Phones,2019075,202005
Rother District Council,13/05/2020,081ACQUISIT,"Acquisitions, Transformation and Regeneration",20122,Economic Development,D2622,Mobile Phones,10,O2 (UK) Ltd,Mobile Phones,2019061,202005
Rother District Council,13/05/2020,081ACQUISIT,"Acquisitions, Transformation and Regeneration",20122,Economic Development,D2622,Mobile Phones,10,O2 (UK) Ltd,Mobile Phones,2019061,202005
Rother District Council,13/05/2020,081ACQUISIT,"Acquisitions, Transformation and Regeneration",20122,Economic Development,D2622,Mobile Phones,10,O2 (UK) Ltd,Mobile Phones,2019061,202005
Rother District Council,13/05/2020,081ACQUISIT,"Acquisitions, Transformation and Regeneration",20122,Economic Development,D2622,Mobile Phones,10,O2 (UK) Ltd,Mobile Phones,2019061,202005
Rother District Council,13/05/2020,081ACQUISIT,"Acquisitions, Transformation and Regeneration",20122,Economic Development,D2622,Mobile Phones,10,O2 (UK) Ltd,Mobile Phones,2019061,202005
Rother District Council,13/05/2020,081ACQUISIT,"Acquisitions, Transformation and Regeneration",20122,Economic Development,D2622,Mobile Phones,10,O2 (UK) Ltd,Mobile Phones,2019061,202005
Rother District Council,13/05/2020,081ACQUISIT,"Acquisitions, Transformation and Regeneration",20263,"Head of Service Acquisitions, Transformation and Regeneration",D2622,Mobile Phones,10,O2 (UK) Ltd,Mobile Phones,2019061,202005
Rother District Council,13/05/2020,041ENVIRON,Environmental Services,20199,Food and Safety Team,D2622,Mobile Phones,10,O2 (UK) Ltd,Mobile Phones,2019076,202005
Rother District Council,13/05/2020,041ENVIRON,Environmental Services,20199,Food and Safety Team,D2622,Mobile Phones,10,O2 (UK) Ltd,Mobile Phones,2019076,202005
Rother District Council,13/05/2020,041ENVIRON,Environmental Services,20199,Food and Safety Team,D2622,Mobile Phones,10,O2 (UK) Ltd,Mobile Phones,2019076,202005
Rother District Council,13/05/2020,041ENVIRON,Environmental Services,20199,Food and Safety Team,D2622,Mobile Phones,10,O2 (UK) Ltd,Mobile Phones,2019076,202005
Rother District Council,13/05/2020,041ENVIRON,Environmental Services,20199,Food and Safety Team,D2622,Mobile Phones,10,O2 (UK) Ltd,Mobile Phones,2019076,202005
Rother District Council,13/05/2020,041ENVIRON,Environmental Services,20199,Food and Safety Team,D2622,Mobile Phones,10,O2 (UK) Ltd,Mobile Phones,2019076,202005
Rother District Council,13/05/2020,041ENVIRON,Environmental Services,20199,Food and Safety Team,D2622,Mobile Phones,10,O2 (UK) Ltd,Mobile Phones,2019076,202005
Rother District Council,13/05/2020,041ENVIRON,Environmental Services,20199,Food and Safety Team,D2622,Mobile Phones,10,O2 (UK) Ltd,Mobile Phones,2019076,202005
Rother District Council,13/05/2020,041ENVIRON,Environmental Services,20199,Food and Safety Team,D2622,Mobile Phones,10,O2 (UK) Ltd,Mobile Phones,2019076,202005
Rother District Council,13/05/2020,041ENVIRON,Environmental Services,20199,Food and Safety Team,D2622,Mobile Phones,10.68,O2 (UK) Ltd,Mobile Phones,2019076,202005
Rother District Council,13/05/2020,041ENVIRON,Environmental Services,20265,Pollution Team,D2622,Mobile Phones,10,O2 (UK) Ltd,Mobile Phones,2019076,202005
Rother District Council,13/05/2020,041ENVIRON,Environmental Services,20265,Pollution Team,D2622,Mobile Phones,10,O2 (UK) Ltd,Mobile Phones,2019076,202005
Rother District Council,13/05/2020,041ENVIRON,Environmental Services,20265,Pollution Team,D2622,Mobile Phones,10,O2 (UK) Ltd,Mobile Phones,2019076,202005
Rother District Council,13/05/2020,041ENVIRON,Environmental Services,20265,Pollution Team,D2622,Mobile Phones,10,O2 (UK) Ltd,Mobile Phones,2019076,202005
Rother District Council,13/05/2020,041ENVIRON,Environmental Services,20265,Pollution Team,D2622,Mobile Phones,10,O2 (UK) Ltd,Mobile Phones,2019076,202005
Rother District Council,13/05/2020,041ENVIRON,Environmental Services,20265,Pollution Team,D2622,Mobile Phones,10,O2 (UK) Ltd,Mobile Phones,2019076,202005
Rother District Council,13/05/2020,041ENVIRON,Environmental Services,20265,Pollution Team,D2622,Mobile Phones,10,O2 (UK) Ltd,Mobile Phones,2019076,202005
Rother District Council,13/05/2020,041ENVIRON,Environmental Services,20265,Pollution Team,D2622,Mobile Phones,10,O2 (UK) Ltd,Mobile Phones,2019076,202005
Rother District Council,13/05/2020,041ENVIRON,Environmental Services,20265,Pollution Team,D2622,Mobile Phones,10,O2 (UK) Ltd,Mobile Phones,2019076,202005
Rother District Council,13/05/2020,041ENVIRON,Environmental Services,20265,Pollution Team,D2622,Mobile Phones,10,O2 (UK) Ltd,Mobile Phones,2019076,202005
Rother District Council,13/05/2020,041ENVIRON,Environmental Services,20265,Pollution Team,D2622,Mobile Phones,10,O2 (UK) Ltd,Mobile Phones,2019076,202005
Rother District Council,13/05/2020,041ENVIRON,Environmental Services,20265,Pollution Team,D2622,Mobile Phones,10,O2 (UK) Ltd,Mobile Phones,2019076,202005
Rother District Council,13/05/2020,041ENVIRON,Environmental Services,20265,Pollution Team,D2622,Mobile Phones,10,O2 (UK) Ltd,Mobile Phones,2019076,202005
Rother District Council,13/05/2020,041ENVIRON,Environmental Services,20265,Pollution Team,D2622,Mobile Phones,10,O2 (UK) Ltd,Mobile Phones,2019076,202005
Rother District Council,13/05/2020,041ENVIRON,Environmental Services,20199,Food and Safety Team,D2622,Mobile Phones,10,O2 (UK) Ltd,Mobile Phones,2019076,202005
Rother District Council,13/05/2020,041ENVIRON,Environmental Services,20199,Food and Safety Team,D2622,Mobile Phones,10,O2 (UK) Ltd,Mobile Phones,2019076,202005
Rother District Council,13/05/2020,041ENVIRON,Environmental Services,20199,Food and Safety Team,D2622,Mobile Phones,10,O2 (UK) Ltd,Mobile Phones,2019076,202005
Rother District Council,13/05/2020,041ENVIRON,Environmental Services,20199,Food and Safety Team,D2622,Mobile Phones,10,O2 (UK) Ltd,Mobile Phones,2019076,202005
Rother District Council,13/05/2020,071STRAT,Strategy and Planning,20247,Service Manager Strategy and Planning,D2622,Mobile Phones,10,O2 (UK) Ltd,Mobile Phones,2019077,202005
Rother District Council,13/05/2020,071STRAT,Strategy and Planning,20246,Planning Applications,D2622,Mobile Phones,10,O2 (UK) Ltd,Mobile Phones,2019077,202005
Rother District Council,13/05/2020,071STRAT,Strategy and Planning,20246,Planning Applications,D2622,Mobile Phones,10,O2 (UK) Ltd,Mobile Phones,2019077,202005
Rother District Council,13/05/2020,071STRAT,Strategy and Planning,20248,"Complaints,Compliance,Enforce",D2622,Mobile Phones,10,O2 (UK) Ltd,Mobile Phones,2019077,202005
Rother District Council,13/05/2020,071STRAT,Strategy and Planning,20248,"Complaints,Compliance,Enforce",D2622,Mobile Phones,10,O2 (UK) Ltd,Mobile Phones,2019077,202005
Rother District Council,13/05/2020,071STRAT,Strategy and Planning,20248,"Complaints,Compliance,Enforce",D2622,Mobile Phones,10,O2 (UK) Ltd,Mobile Phones,2019077,202005
Rother District Council,13/05/2020,081ACQUISIT,"Acquisitions, Transformation and Regeneration",20121,Programme and Policy Office,D2622,Mobile Phones,10,O2 (UK) Ltd,Mobile Phones,2019061,202005
Rother District Council,13/05/2020,081ACQUISIT,"Acquisitions, Transformation and Regeneration",20272,Major Projects unit,D2622,Mobile Phones,10,O2 (UK) Ltd,Mobile Phones,2019061,202005
Rother District Council,13/05/2020,081ACQUISIT,"Acquisitions, Transformation and Regeneration",20243,Business Improvement,D2622,Mobile Phones,10,O2 (UK) Ltd,Mobile Phones,2019061,202005
Rother District Council,13/05/2020,081ACQUISIT,"Acquisitions, Transformation and Regeneration",20243,Business Improvement,D2622,Mobile Phones,10,O2 (UK) Ltd,Mobile Phones,2019061,202005
Rother District Council,13/05/2020,091HOUSING,Housing and Community Services,20109,Sports Development,D2622,Mobile Phones,10,O2 (UK) Ltd,Mobile Phones,2018184,202004
Rother District Council,13/05/2020,091HOUSING,Housing and Community Services,20120,Neighbourhood Services,D2622,Mobile Phones,10,O2 (UK) Ltd,Mobile Phones,2018184,202004
Rother District Council,13/05/2020,091HOUSING,Housing and Community Services,20120,Neighbourhood Services,D2622,Mobile Phones,10,O2 (UK) Ltd,Mobile Phones,2018184,202004
Rother District Council,13/05/2020,091HOUSING,Housing and Community Services,20120,Neighbourhood Services,D2622,Mobile Phones,10,O2 (UK) Ltd,Mobile Phones,2018184,202004
Rother District Council,13/05/2020,091HOUSING,Housing and Community Services,20120,Neighbourhood Services,D2622,Mobile Phones,10,O2 (UK) Ltd,Mobile Phones,2018184,202004
Rother District Council,13/05/2020,091HOUSING,Housing and Community Services,20120,Neighbourhood Services,D2622,Mobile Phones,10,O2 (UK) Ltd,Mobile Phones,2018184,202004
Rother District Council,13/05/2020,091HOUSING,Housing and Community Services,20120,Neighbourhood Services,D2622,Mobile Phones,10,O2 (UK) Ltd,Mobile Phones,2018184,202004
Rother District Council,13/05/2020,091HOUSING,Housing and Community Services,20120,Neighbourhood Services,D2622,Mobile Phones,10,O2 (UK) Ltd,Mobile Phones,2018184,202004
Rother District Council,13/05/2020,091HOUSING,Housing and Community Services,20120,Neighbourhood Services,D2622,Mobile Phones,10,O2 (UK) Ltd,Mobile Phones,2018184,202004
Rother District Council,13/05/2020,091HOUSING,Housing and Community Services,20120,Neighbourhood Services,D2622,Mobile Phones,10,O2 (UK) Ltd,Mobile Phones,2018184,202004
Rother District Council,13/05/2020,091HOUSING,Housing and Community Services,20120,Neighbourhood Services,D2622,Mobile Phones,10,O2 (UK) Ltd,Mobile Phones,2018184,202004
Rother District Council,13/05/2020,091HOUSING,Housing and Community Services,20120,Neighbourhood Services,D2622,Mobile Phones,10,O2 (UK) Ltd,Mobile Phones,2018184,202004
Rother District Council,13/05/2020,091HOUSING,Housing and Community Services,20120,Neighbourhood Services,D2622,Mobile Phones,10,O2 (UK) Ltd,Mobile Phones,2018184,202004
Rother District Council,13/05/2020,091HOUSING,Housing and Community Services,20120,Neighbourhood Services,D2622,Mobile Phones,10,O2 (UK) Ltd,Mobile Phones,2018184,202004
Rother District Council,13/05/2020,091HOUSING,Housing and Community Services,20120,Neighbourhood Services,D2622,Mobile Phones,50.49,O2 (UK) Ltd,Mobile Phones,2018184,202004
Rother District Council,13/05/2020,091HOUSING,Housing and Community Services,20120,Neighbourhood Services,D2622,Mobile Phones,10,O2 (UK) Ltd,Mobile Phones,2018184,202004
Rother District Council,13/05/2020,091HOUSING,Housing and Community Services,20120,Neighbourhood Services,D2622,Mobile Phones,10,O2 (UK) Ltd,Mobile Phones,2018184,202004
Rother District Council,13/05/2020,091HOUSING,Housing and Community Services,20120,Neighbourhood Services,D2622,Mobile Phones,10,O2 (UK) Ltd,Mobile Phones,2018184,202004
Rother District Council,13/05/2020,091HOUSING,Housing and Community Services,20120,Neighbourhood Services,D2622,Mobile Phones,10,O2 (UK) Ltd,Mobile Phones,2018184,202004
Rother District Council,13/05/2020,091HOUSING,Housing and Community Services,20120,Neighbourhood Services,D2622,Mobile Phones,10,O2 (UK) Ltd,Mobile Phones,2018184,202004
Rother District Council,13/05/2020,091HOUSING,Housing and Community Services,20120,Neighbourhood Services,D2622,Mobile Phones,10,O2 (UK) Ltd,Mobile Phones,2018184,202004
Rother District Council,13/05/2020,091HOUSING,Housing and Community Services,20120,Neighbourhood Services,D2622,Mobile Phones,10,O2 (UK) Ltd,Mobile Phones,2018184,202004
Rother District Council,13/05/2020,091HOUSING,Housing and Community Services,20120,Neighbourhood Services,D2622,Mobile Phones,10,O2 (UK) Ltd,Mobile Phones,2018184,202004
Rother District Council,13/05/2020,091HOUSING,Housing and Community Services,20120,Neighbourhood Services,D2622,Mobile Phones,10,O2 (UK) Ltd,Mobile Phones,2018184,202004
Rother District Council,13/05/2020,091HOUSING,Housing and Community Services,20120,Neighbourhood Services,D2622,Mobile Phones,10,O2 (UK) Ltd,Mobile Phones,2018184,202004
Rother District Council,13/05/2020,091HOUSING,Housing and Community Services,20120,Neighbourhood Services,D2622,Mobile Phones,10,O2 (UK) Ltd,Mobile Phones,2018184,202004
Rother District Council,13/05/2020,091HOUSING,Housing and Community Services,20120,Neighbourhood Services,D2622,Mobile Phones,10,O2 (UK) Ltd,Mobile Phones,2018184,202004
Rother District Council,13/05/2020,091HOUSING,Housing and Community Services,20120,Neighbourhood Services,D2622,Mobile Phones,10,O2 (UK) Ltd,Mobile Phones,2018184,202004
Rother District Council,13/05/2020,091HOUSING,Housing and Community Services,20120,Neighbourhood Services,D2622,Mobile Phones,10,O2 (UK) Ltd,Mobile Phones,2018184,202004
Rother District Council,13/05/2020,091HOUSING,Housing and Community Services,20120,Neighbourhood Services,D2622,Mobile Phones,33.71,O2 (UK) Ltd,Mobile Phones,2018184,202004
Rother District Council,13/05/2020,091HOUSING,Housing and Community Services,20120,Neighbourhood Services,D2622,Mobile Phones,10,O2 (UK) Ltd,Mobile Phones,2018184,202004
Rother District Council,13/05/2020,091HOUSING,Housing and Community Services,20262,Head of Service Housing and Community Services,D2622,Mobile Phones,10,O2 (UK) Ltd,Mobile Phones,2018184,202004
Rother District Council,13/05/2020,101RESOURCES,Resources,20226,Service Manager Finance and Welfare,D2622,Mobile Phones,10,O2 (UK) Ltd,Mobile Phones,2019075,202005
Rother District Council,13/05/2020,101RESOURCES,Resources,20222,Accountancy,D2622,Mobile Phones,10,O2 (UK) Ltd,Mobile Phones,2018185,202004
Rother District Council,13/05/2020,101RESOURCES,Resources,20222,Accountancy,D2622,Mobile Phones,10,O2 (UK) Ltd,Mobile Phones,2018185,202004
Rother District Council,13/05/2020,091HOUSING,Housing and Community Services,20204,Housing Administration Account,D2622,Mobile Phones,18.55,O2 (UK) Ltd,Mobile Phones,2018184,202004
Rother District Council,13/05/2020,091HOUSING,Housing and Community Services,20204,Housing Administration Account,D2622,Mobile Phones,18.55,O2 (UK) Ltd,Mobile Phones,2018184,202004
Rother District Council,13/05/2020,091HOUSING,Housing and Community Services,20204,Housing Administration Account,D2622,Mobile Phones,18.55,O2 (UK) Ltd,Mobile Phones,2018184,202004
Rother District Council,13/05/2020,091HOUSING,Housing and Community Services,20204,Housing Administration Account,D2622,Mobile Phones,18.55,O2 (UK) Ltd,Mobile Phones,2018184,202004
Rother District Council,13/05/2020,091HOUSING,Housing and Community Services,20204,Housing Administration Account,D2622,Mobile Phones,10,O2 (UK) Ltd,Mobile Phones,2018184,202004
Rother District Council,13/05/2020,091HOUSING,Housing and Community Services,20204,Housing Administration Account,D2622,Mobile Phones,10,O2 (UK) Ltd,Mobile Phones,2018184,202004
Rother District Council,13/05/2020,091HOUSING,Housing and Community Services,20204,Housing Administration Account,D2622,Mobile Phones,10,O2 (UK) Ltd,Mobile Phones,2018184,202004
Rother District Council,13/05/2020,091HOUSING,Housing and Community Services,20204,Housing Administration Account,D2622,Mobile Phones,10,O2 (UK) Ltd,Mobile Phones,2018184,202004
Rother District Council,13/05/2020,091HOUSING,Housing and Community Services,20204,Housing Administration Account,D2622,Mobile Phones,10,O2 (UK) Ltd,Mobile Phones,2018184,202004
Rother District Council,13/05/2020,091HOUSING,Housing and Community Services,20204,Housing Administration Account,D2622,Mobile Phones,10,O2 (UK) Ltd,Mobile Phones,2018184,202004
Rother District Council,13/05/2020,091HOUSING,Housing and Community Services,20204,Housing Administration Account,D2622,Mobile Phones,10,O2 (UK) Ltd,Mobile Phones,2018184,202004
Rother District Council,13/05/2020,091HOUSING,Housing and Community Services,20204,Housing Administration Account,D2622,Mobile Phones,10,O2 (UK) Ltd,Mobile Phones,2018184,202004
Rother District Council,13/05/2020,091HOUSING,Housing and Community Services,20204,Housing Administration Account,D2622,Mobile Phones,10,O2 (UK) Ltd,Mobile Phones,2018184,202004
Rother District Council,13/05/2020,091HOUSING,Housing and Community Services,20204,Housing Administration Account,D2622,Mobile Phones,10,O2 (UK) Ltd,Mobile Phones,2018184,202004
Rother District Council,13/05/2020,091HOUSING,Housing and Community Services,20204,Housing Administration Account,D2622,Mobile Phones,10,O2 (UK) Ltd,Mobile Phones,2018184,202004
Rother District Council,13/05/2020,091HOUSING,Housing and Community Services,20204,Housing Administration Account,D2622,Mobile Phones,10,O2 (UK) Ltd,Mobile Phones,2018184,202004
Rother District Council,13/05/2020,091HOUSING,Housing and Community Services,20204,Housing Administration Account,D2622,Mobile Phones,10,O2 (UK) Ltd,Mobile Phones,2018184,202004
Rother District Council,13/05/2020,091HOUSING,Housing and Community Services,20204,Housing Administration Account,D2622,Mobile Phones,10,O2 (UK) Ltd,Mobile Phones,2018184,202004
Rother District Council,13/05/2020,091HOUSING,Housing and Community Services,20204,Housing Administration Account,D2622,Mobile Phones,10,O2 (UK) Ltd,Mobile Phones,2018184,202004
Rother District Council,13/05/2020,091HOUSING,Housing and Community Services,20204,Housing Administration Account,D2622,Mobile Phones,10,O2 (UK) Ltd,Mobile Phones,2018184,202004
Rother District Council,13/05/2020,091HOUSING,Housing and Community Services,20236,Customer Services and Development,D2622,Mobile Phones,15,O2 (UK) Ltd,Mobile Phones,2018184,202004
Rother District Council,13/05/2020,091HOUSING,Housing and Community Services,20264,Property Maintenance Team,D2622,Mobile Phones,10,O2 (UK) Ltd,Mobile Phones,2018184,202004
Rother District Council,13/05/2020,091HOUSING,Housing and Community Services,20264,Property Maintenance Team,D2622,Mobile Phones,47.96,O2 (UK) Ltd,Mobile Phones,2018184,202004
Rother District Council,13/05/2020,091HOUSING,Housing and Community Services,20264,Property Maintenance Team,D2622,Mobile Phones,10.99,O2 (UK) Ltd,Mobile Phones,2018184,202004
Rother District Council,13/05/2020,091HOUSING,Housing and Community Services,20264,Property Maintenance Team,D2622,Mobile Phones,10,O2 (UK) Ltd,Mobile Phones,2018184,202004
Rother District Council,13/05/2020,091HOUSING,Housing and Community Services,20264,Property Maintenance Team,D2622,Mobile Phones,10,O2 (UK) Ltd,Mobile Phones,2018184,202004
Rother District Council,13/05/2020,091HOUSING,Housing and Community Services,20264,Property Maintenance Team,D2622,Mobile Phones,10,O2 (UK) Ltd,Mobile Phones,2018184,202004
Rother District Council,13/05/2020,091HOUSING,Housing and Community Services,20264,Property Maintenance Team,D2622,Mobile Phones,10,O2 (UK) Ltd,Mobile Phones,2018184,202004
Rother District Council,13/05/2020,091HOUSING,Housing and Community Services,20264,Property Maintenance Team,D2622,Mobile Phones,10,O2 (UK) Ltd,Mobile Phones,2018184,202004
Rother District Council,13/05/2020,101RESOURCES,Resources,20215,Revenue and Benefits,D2622,Mobile Phones,10,O2 (UK) Ltd,Mobile Phones,2018185,202004
Rother District Council,13/05/2020,101RESOURCES,Resources,20215,Revenue and Benefits,D2622,Mobile Phones,10,O2 (UK) Ltd,Mobile Phones,2018185,202004
Rother District Council,13/05/2020,101RESOURCES,Resources,20239,Computer Services,D2622,Mobile Phones,10,O2 (UK) Ltd,Mobile Phones,2018185,202004
Rother District Council,13/05/2020,101RESOURCES,Resources,20239,Computer Services,D2622,Mobile Phones,10,O2 (UK) Ltd,Mobile Phones,2018185,202004
Rother District Council,13/05/2020,101RESOURCES,Resources,20239,Computer Services,D2622,Mobile Phones,10,O2 (UK) Ltd,Mobile Phones,2018185,202004
Rother District Council,13/05/2020,101RESOURCES,Resources,20239,Computer Services,D2622,Mobile Phones,27.67,O2 (UK) Ltd,Mobile Phones,2018185,202004
Rother District Council,13/05/2020,101RESOURCES,Resources,20239,Computer Services,D2622,Mobile Phones,10,O2 (UK) Ltd,Mobile Phones,2018185,202004
Rother District Council,13/05/2020,101RESOURCES,Resources,20239,Computer Services,D2622,Mobile Phones,10,O2 (UK) Ltd,Mobile Phones,2018185,202004
Rother District Council,13/05/2020,101RESOURCES,Resources,20215,Revenue and Benefits,D2622,Mobile Phones,10,O2 (UK) Ltd,Mobile Phones,2018185,202004
Rother District Council,13/05/2020,101RESOURCES,Resources,20215,Revenue and Benefits,D2622,Mobile Phones,19.21,O2 (UK) Ltd,Mobile Phones,2018185,202004
Rother District Council,13/05/2020,101RESOURCES,Resources,20215,Revenue and Benefits,D2622,Mobile Phones,10,O2 (UK) Ltd,Mobile Phones,2018185,202004
Rother District Council,13/05/2020,101RESOURCES,Resources,20215,Revenue and Benefits,D2622,Mobile Phones,10.33,O2 (UK) Ltd,Mobile Phones,2018185,202004
Rother District Council,13/05/2020,101RESOURCES,Resources,20215,Revenue and Benefits,D2622,Mobile Phones,10,O2 (UK) Ltd,Mobile Phones,2018185,202004
Rother District Council,15/05/2020,091HOUSING,Housing and Community Services,20205,Housing Loans Account,D2514,Accommodation Costs,600,We Love Property Ltd,Accommodation Costs - Homelessness services Deposit for Landlords,2018001,202004
Rother District Council,15/05/2020,091HOUSING,Housing and Community Services,20205,Housing Loans Account,D2514,Accommodation Costs,600,We Love Property Ltd,Accommodation Costs - Homelessness services Rent in Advance for Homeless,2018001,202004
Rother District Council,15/05/2020,101RESOURCES,Resources,20216,Cost Of Collection,D2639,Departmental Systems,1500,Destin Solutions Ltd,Departmental Systems - Destin Soloutions,2017196,202004
Rother District Council,15/05/2020,041ENVIRON,Environmental Services,32136,EH Pest Control R + W Partnership,C1104,Derv,5.7,Allstar Business Solutions,Derv - Fuel Service fee payable on fuel cards,2017999,202004
Rother District Council,15/05/2020,101RESOURCES,Resources,20216,Cost Of Collection,D2513,Hired and Contracted services,3,H M Land Registry,Hired and contracted services - Council Tax-Land Registry Enquiries,2018006,202004
Rother District Council,15/05/2020,071STRAT,Strategy and Planning,20258,BC Dangerous Structures H+R Partnership,D2513,Hired and Contracted services,3,H M Land Registry,Hired and contracted services - Env H-Land Registry,2018006,202004
Rother District Council,15/05/2020,041ENVIRON,Environmental Services,32134,EH Pollution R + W Partnership,D2513,Hired and Contracted services,6,H M Land Registry,Hired and contracted services - Env H-Land Registry,2018006,202004
Rother District Council,15/05/2020,041ENVIRON,Environmental Services,32144,EH Environmental Services Admin R + W Partnership,D2513,Hired and Contracted services,3,H M Land Registry,Hired and contracted services - Env H-Land Registry,2018006,202004
Rother District Council,15/05/2020,091HOUSING,Housing and Community Services,20200,Housing Needs - HB (Housing Benefit),D2513,Hired and Contracted services,6,H M Land Registry,Hired and contracted services - Housing-Land Registry,2018006,202004
Rother District Council,15/05/2020,031RESOURCES,Executive Directors & Corporate Core,20156,Representing Local Interest,D2312,Refreshments,184.5,Booker Ltd,Refreshments - Catering/Refreshments for Meetings,2018002,202004
Rother District Council,15/05/2020,031RESOURCES,Executive Directors & Corporate Core,20156,Representing Local Interest,D2312,Refreshments,74.48,Booker Ltd,Refreshments - Catering/Refreshments for Meetings,2018002,202004
Rother District Council,15/05/2020,031RESOURCES,Executive Directors & Corporate Core,20173,Administrative Offices - Town Hall,B2422,Sewerage,304.64,Scottish Water Business Stream Limited,Sewerage - Sewerage Charges,2018039,202004
Rother District Council,15/05/2020,101RESOURCES,Resources,20242,Communications-Phones,D2621,Telephones,577,TalkTalk Communications Ltd T/A TalkTalk Business,Telephones - Telephone Call Costs+Line Rental,2018219,202004
Rother District Council,15/05/2020,041ENVIRON,Environmental Services,32136,EH Pest Control R + W Partnership,C1104,Derv,45.84,Allstar Business Solutions,Derv,2017999,202004
Rother District Council,15/05/2020,041ENVIRON,Environmental Services,32136,EH Pest Control R + W Partnership,C1104,Derv,34.17,Allstar Business Solutions,Derv,2017999,202004
Rother District Council,15/05/2020,041ENVIRON,Environmental Services,32136,EH Pest Control R + W Partnership,C1104,Derv,41.68,Allstar Business Solutions,Derv,2017999,202004
Rother District Council,15/05/2020,091HOUSING,Housing and Community Services,20145,Maintenance Services,C1104,Derv,36.67,Allstar Business Solutions,Derv,2017999,202004
Rother District Council,19/05/2020,081ACQUISIT,"Acquisitions, Transformation and Regeneration",20146,West Trading Estate,B2202,Gas,47.7,Gazprom Marketing & Trading Retail Ltd,Gas - Gas Charges,2018750,202005
Rother District Council,19/05/2020,081ACQUISIT,"Acquisitions, Transformation and Regeneration",20267,Property Investment Strategy - 18-40 Beeching Road ( Land and Buildings),B2202,Gas,47.7,Gazprom Marketing & Trading Retail Ltd,Gas - Gas Charges,2018751,202005
Rother District Council,19/05/2020,081ACQUISIT,"Acquisitions, Transformation and Regeneration",20118,Tourism,D2513,Hired and Contracted services,4500,Brochure Connect Ltd,Hired and contracted services - Battle & Rye TIC,2018119,202004
Rother District Council,20/05/2020,031RESOURCES,Executive Directors & Corporate Core,20171,Human Resources,D1201,Equipment & Materials,23.05,Value Products Ltd,Equipment & Materials - Health and Safety Act Equipment,2018125,202004
Rother District Council,20/05/2020,091HOUSING,Housing and Community Services,20115,Rye Area Parks & Gardens,D1201,Equipment & Materials,50,B.F.J. Engraving Ltd,Equipment & Materials - Maintenance of Seats/Plaques from Donations,2018765,202005
Rother District Council,20/05/2020,091HOUSING,Housing and Community Services,20114,Bexhill Parks & Open Spaces,D1201,Equipment & Materials,4110,The Great Outdoor Gym Company Ltd,Equipment & Materials - Parks- Playground Equipment,2019019,202005
Rother District Council,20/05/2020,091HOUSING,Housing and Community Services,20114,Bexhill Parks & Open Spaces,D1201,Equipment & Materials,550,The Great Outdoor Gym Company Ltd,Equipment & Materials - Parks- Playground Equipment,2019020,202005
Rother District Council,20/05/2020,101RESOURCES,Resources,20216,Cost Of Collection,D2513,Hired and Contracted services,21,H M Land Registry,Hired and contracted services - Council Tax-Land Registry Enquiries,2018010,202004
Rother District Council,20/05/2020,041ENVIRON,Environmental Services,32134,EH Pollution R + W Partnership,D2513,Hired and Contracted services,3,H M Land Registry,Hired and contracted services - Env H-Land Registry,2018010,202004
Rother District Council,20/05/2020,091HOUSING,Housing and Community Services,20200,Housing Needs - HB (Housing Benefit),D2513,Hired and Contracted services,3,H M Land Registry,Hired and contracted services - Housing-Land Registry,2018010,202004
Rother District Council,20/05/2020,071STRAT,Strategy and Planning,20246,Planning Applications,D2513,Hired and Contracted services,12,H M Land Registry,Hired and contracted services - Land Registry-Planning,2018010,202004
Rother District Council,20/05/2020,081ACQUISIT,"Acquisitions, Transformation and Regeneration",20144,Property Management,D2513,Hired and Contracted services,27,H M Land Registry,Hired and contracted services - Land Registry-Property Management,2018010,202004
Rother District Council,20/05/2020,041ENVIRON,Environmental Services,32142,EH Taxi and Private Hire Licenses R + W Partnership,D2513,Hired and Contracted services,80,uCheck,Hired and contracted services - Service fee paid,2019087,202006
Rother District Council,20/05/2020,041ENVIRON,Environmental Services,32142,EH Taxi and Private Hire Licenses R + W Partnership,D2513,Hired and Contracted services,17.34,uCheck,Hired and contracted services - Service fee paid,2019087,202006
Rother District Council,20/05/2020,041ENVIRON,Environmental Services,32144,EH Environmental Services Admin R + W Partnership,A2203,Training,165,Institute of Licensing (Events) Ltd,Training,2018486,202004
Rother District Council,21/05/2020,031RESOURCES,Executive Directors & Corporate Core,20175,Administrative Offices - T.H. Annex (NOT CHP),B2201,Electricity,1004.3,Laser Energy Buying Group (Kent County Council Commercial Services),Electricity - Electricity Charges,2019305,202006
Rother District Council,21/05/2020,031RESOURCES,Executive Directors & Corporate Core,20177,Administrative Offices - Rear Depot,B2201,Electricity,50.43,Laser Energy Buying Group (Kent County Council Commercial Services),Electricity - Electricity Charges,2019305,202006
Rother District Council,21/05/2020,031RESOURCES,Executive Directors & Corporate Core,20173,Administrative Offices - Town Hall,B2201,Electricity,3127.61,Laser Energy Buying Group (Kent County Council Commercial Services),Electricity - Electricity Charges,2019305,202006
Rother District Council,21/05/2020,081ACQUISIT,"Acquisitions, Transformation and Regeneration",20148,Misc Land & Buildings,B2201,Electricity,21.34,Laser Energy Buying Group (Kent County Council Commercial Services),Electricity - Electricity Charges,2019305,202006
Rother District Council,21/05/2020,081ACQUISIT,"Acquisitions, Transformation and Regeneration",20148,Misc Land & Buildings,B2201,Electricity,45.06,Laser Energy Buying Group (Kent County Council Commercial Services),Electricity - Electricity Charges,2019305,202006
Rother District Council,21/05/2020,081ACQUISIT,"Acquisitions, Transformation and Regeneration",20104,Ancient Monuments & Gazebo,B2201,Electricity,28.81,Laser Energy Buying Group (Kent County Council Commercial Services),Electricity - Electricity Charges,2019305,202006
Rother District Council,21/05/2020,081ACQUISIT,"Acquisitions, Transformation and Regeneration",20154,Committee Property Account,B2201,Electricity,121.01,Laser Energy Buying Group (Kent County Council Commercial Services),Electricity - Electricity Charges,2019305,202006
Rother District Council,21/05/2020,081ACQUISIT,"Acquisitions, Transformation and Regeneration",20154,Committee Property Account,B2201,Electricity,121.01,Laser Energy Buying Group (Kent County Council Commercial Services),Electricity - Electricity Charges,2019305,202006
Rother District Council,21/05/2020,081ACQUISIT,"Acquisitions, Transformation and Regeneration",20154,Committee Property Account,B2201,Electricity,121.01,Laser Energy Buying Group (Kent County Council Commercial Services),Electricity - Electricity Charges,2019305,202006
Rother District Council,21/05/2020,081ACQUISIT,"Acquisitions, Transformation and Regeneration",20154,Committee Property Account,B2201,Electricity,121.01,Laser Energy Buying Group (Kent County Council Commercial Services),Electricity - Electricity Charges,2019305,202006
Rother District Council,21/05/2020,081ACQUISIT,"Acquisitions, Transformation and Regeneration",20154,Committee Property Account,B2201,Electricity,5445.41,Laser Energy Buying Group (Kent County Council Commercial Services),Electricity - Electricity Charges,2019305,202006
Rother District Council,21/05/2020,081ACQUISIT,"Acquisitions, Transformation and Regeneration",20153,"Elva Business Centre, Bexhill",B2201,Electricity,861.39,Laser Energy Buying Group (Kent County Council Commercial Services),Electricity - Electricity Charges,2019305,202006
Rother District Council,21/05/2020,081ACQUISIT,"Acquisitions, Transformation and Regeneration",20151,Udimore Workshops,B2201,Electricity,109.76,Laser Energy Buying Group (Kent County Council Commercial Services),Electricity - Electricity Charges,2019305,202006
Rother District Council,21/05/2020,081ACQUISIT,"Acquisitions, Transformation and Regeneration",20154,Committee Property Account,B2201,Electricity,2245.54,Laser Energy Buying Group (Kent County Council Commercial Services),Electricity - Electricity Charges,2019305,202006
Rother District Council,21/05/2020,091HOUSING,Housing and Community Services,20107,Camber Beach & Foreshore,B2201,Electricity,48.34,Laser Energy Buying Group (Kent County Council Commercial Services),Electricity - Electricity Charges,2019305,202006
Rother District Council,21/05/2020,091HOUSING,Housing and Community Services,20108,Bexhill Promenade & Foreshore,B2201,Electricity,145.79,Laser Energy Buying Group (Kent County Council Commercial Services),Electricity - Electricity Charges,2019305,202006
Rother District Council,21/05/2020,091HOUSING,Housing and Community Services,20108,Bexhill Promenade & Foreshore,B2201,Electricity,380.13,Laser Energy Buying Group (Kent County Council Commercial Services),Electricity - Electricity Charges,2019305,202006
Rother District Council,21/05/2020,091HOUSING,Housing and Community Services,20114,Bexhill Parks & Open Spaces,B2201,Electricity,31.99,Laser Energy Buying Group (Kent County Council Commercial Services),Electricity - Electricity Charges,2019305,202006
Rother District Council,21/05/2020,091HOUSING,Housing and Community Services,20128,Public Conveniences,B2201,Electricity,8,Laser Energy Buying Group (Kent County Council Commercial Services),Electricity - Electricity Charges,2019305,202006
Rother District Council,21/05/2020,091HOUSING,Housing and Community Services,20128,Public Conveniences,B2201,Electricity,32.54,Laser Energy Buying Group (Kent County Council Commercial Services),Electricity - Electricity Charges,2019305,202006
Rother District Council,21/05/2020,091HOUSING,Housing and Community Services,20128,Public Conveniences,B2201,Electricity,90.68,Laser Energy Buying Group (Kent County Council Commercial Services),Electricity - Electricity Charges,2019305,202006
Rother District Council,21/05/2020,091HOUSING,Housing and Community Services,20128,Public Conveniences,B2201,Electricity,207.94,Laser Energy Buying Group (Kent County Council Commercial Services),Electricity - Electricity Charges,2019305,202006
Rother District Council,21/05/2020,091HOUSING,Housing and Community Services,20128,Public Conveniences,B2201,Electricity,78.49,Laser Energy Buying Group (Kent County Council Commercial Services),Electricity - Electricity Charges,2019305,202006
Rother District Council,21/05/2020,091HOUSING,Housing and Community Services,20128,Public Conveniences,B2201,Electricity,573.78,Laser Energy Buying Group (Kent County Council Commercial Services),Electricity - Electricity Charges,2019305,202006
Rother District Council,21/05/2020,091HOUSING,Housing and Community Services,20128,Public Conveniences,B2201,Electricity,208.3,Laser Energy Buying Group (Kent County Council Commercial Services),Electricity - Electricity Charges,2019305,202006
Rother District Council,21/05/2020,091HOUSING,Housing and Community Services,20128,Public Conveniences,B2201,Electricity,350.23,Laser Energy Buying Group (Kent County Council Commercial Services),Electricity - Electricity Charges,2019305,202006
Rother District Council,21/05/2020,091HOUSING,Housing and Community Services,20128,Public Conveniences,B2201,Electricity,39.69,Laser Energy Buying Group (Kent County Council Commercial Services),Electricity - Electricity Charges,2019305,202006
Rother District Council,21/05/2020,091HOUSING,Housing and Community Services,20128,Public Conveniences,B2201,Electricity,11.29,Laser Energy Buying Group (Kent County Council Commercial Services),Electricity - Electricity Charges,2019305,202006
Rother District Council,21/05/2020,091HOUSING,Housing and Community Services,20128,Public Conveniences,B2201,Electricity,63.1,Laser Energy Buying Group (Kent County Council Commercial Services),Electricity - Electricity Charges,2019305,202006
Rother District Council,21/05/2020,091HOUSING,Housing and Community Services,20128,Public Conveniences,B2201,Electricity,46.34,Laser Energy Buying Group (Kent County Council Commercial Services),Electricity - Electricity Charges,2019305,202006
Rother District Council,21/05/2020,091HOUSING,Housing and Community Services,20128,Public Conveniences,B2201,Electricity,47.45,Laser Energy Buying Group (Kent County Council Commercial Services),Electricity - Electricity Charges,2019305,202006
Rother District Council,21/05/2020,091HOUSING,Housing and Community Services,20128,Public Conveniences,B2201,Electricity,53.86,Laser Energy Buying Group (Kent County Council Commercial Services),Electricity - Electricity Charges,2019305,202006
Rother District Council,21/05/2020,091HOUSING,Housing and Community Services,20128,Public Conveniences,B2201,Electricity,417.74,Laser Energy Buying Group (Kent County Council Commercial Services),Electricity - Electricity Charges,2019305,202006
Rother District Council,21/05/2020,091HOUSING,Housing and Community Services,20128,Public Conveniences,B2201,Electricity,89.19,Laser Energy Buying Group (Kent County Council Commercial Services),Electricity - Electricity Charges,2019305,202006
Rother District Council,21/05/2020,091HOUSING,Housing and Community Services,20114,Bexhill Parks & Open Spaces,B2201,Electricity,74.42,Laser Energy Buying Group (Kent County Council Commercial Services),Electricity - Electricity Charges,2019305,202006
Rother District Council,21/05/2020,091HOUSING,Housing and Community Services,20114,Bexhill Parks & Open Spaces,B2201,Electricity,45.15,Laser Energy Buying Group (Kent County Council Commercial Services),Electricity - Electricity Charges,2019305,202006
Rother District Council,21/05/2020,091HOUSING,Housing and Community Services,20108,Bexhill Promenade & Foreshore,B2201,Electricity,42.08,Laser Energy Buying Group (Kent County Council Commercial Services),Electricity - Electricity Charges,2019305,202006
Rother District Council,21/05/2020,091HOUSING,Housing and Community Services,20115,Rye Area Parks & Gardens,B2201,Electricity,21.33,Laser Energy Buying Group (Kent County Council Commercial Services),Electricity - Electricity Charges,2019305,202006
Rother District Council,21/05/2020,091HOUSING,Housing and Community Services,20125,Coast Protection,B2201,Electricity,644.15,Laser Energy Buying Group (Kent County Council Commercial Services),Electricity - Electricity Charges,2019305,202006
Rother District Council,21/05/2020,091HOUSING,Housing and Community Services,20108,Bexhill Promenade & Foreshore,B2201,Electricity,60.5,Laser Energy Buying Group (Kent County Council Commercial Services),Electricity - Electricity Charges,2019305,202006
Rother District Council,21/05/2020,091HOUSING,Housing and Community Services,20108,Bexhill Promenade & Foreshore,B2201,Electricity,60.5,Laser Energy Buying Group (Kent County Council Commercial Services),Electricity - Electricity Charges,2019305,202006
Rother District Council,21/05/2020,091HOUSING,Housing and Community Services,20108,Bexhill Promenade & Foreshore,B2201,Electricity,35.3,Laser Energy Buying Group (Kent County Council Commercial Services),Electricity - Electricity Charges,2019305,202006
Rother District Council,21/05/2020,091HOUSING,Housing and Community Services,20114,Bexhill Parks & Open Spaces,B2201,Electricity,84.28,Laser Energy Buying Group (Kent County Council Commercial Services),Electricity - Electricity Charges,2019305,202006
Rother District Council,21/05/2020,091HOUSING,Housing and Community Services,20128,Public Conveniences,B2201,Electricity,178.49,Laser Energy Buying Group (Kent County Council Commercial Services),Electricity - Electricity Charges,2019305,202006
Rother District Council,21/05/2020,091HOUSING,Housing and Community Services,20128,Public Conveniences,B2201,Electricity,89.19,Laser Energy Buying Group (Kent County Council Commercial Services),Electricity - Electricity Charges,2019305,202006
Rother District Council,21/05/2020,091HOUSING,Housing and Community Services,20128,Public Conveniences,B2201,Electricity,21.07,Laser Energy Buying Group (Kent County Council Commercial Services),Electricity - Electricity Charges,2019305,202006
Rother District Council,21/05/2020,091HOUSING,Housing and Community Services,20137,Car Parks,B2201,Electricity,59.67,Laser Energy Buying Group (Kent County Council Commercial Services),Electricity - Electricity Charges,2019305,202006
Rother District Council,21/05/2020,091HOUSING,Housing and Community Services,20137,Car Parks,B2201,Electricity,82.93,Laser Energy Buying Group (Kent County Council Commercial Services),Electricity - Electricity Charges,2019305,202006
Rother District Council,21/05/2020,091HOUSING,Housing and Community Services,20128,Public Conveniences,B2201,Electricity,76.72,Laser Energy Buying Group (Kent County Council Commercial Services),Electricity - Electricity Charges,2019305,202006
Rother District Council,21/05/2020,091HOUSING,Housing and Community Services,20128,Public Conveniences,B2201,Electricity,311.58,Laser Energy Buying Group (Kent County Council Commercial Services),Electricity - Electricity Charges,2019305,202006
Rother District Council,21/05/2020,091HOUSING,Housing and Community Services,20128,Public Conveniences,B2201,Electricity,95.9,Laser Energy Buying Group (Kent County Council Commercial Services),Electricity - Electricity Charges,2019305,202006
Rother District Council,21/05/2020,091HOUSING,Housing and Community Services,20128,Public Conveniences,B2201,Electricity,32.54,Laser Energy Buying Group (Kent County Council Commercial Services),Electricity - Electricity Charges,2019305,202006
Rother District Council,21/05/2020,091HOUSING,Housing and Community Services,20128,Public Conveniences,B2201,Electricity,64.89,Laser Energy Buying Group (Kent County Council Commercial Services),Electricity - Electricity Charges,2019305,202006
Rother District Council,21/05/2020,091HOUSING,Housing and Community Services,20128,Public Conveniences,B2201,Electricity,139.17,Laser Energy Buying Group (Kent County Council Commercial Services),Electricity - Electricity Charges,2019305,202006
Rother District Council,21/05/2020,091HOUSING,Housing and Community Services,20128,Public Conveniences,B2201,Electricity,37.46,Laser Energy Buying Group (Kent County Council Commercial Services),Electricity - Electricity Charges,2019305,202006
Rother District Council,21/05/2020,091HOUSING,Housing and Community Services,20114,Bexhill Parks & Open Spaces,B2201,Electricity,31.05,Laser Energy Buying Group (Kent County Council Commercial Services),Electricity - Electricity Charges,2019305,202006
Rother District Council,21/05/2020,091HOUSING,Housing and Community Services,20114,Bexhill Parks & Open Spaces,B2201,Electricity,33.43,Laser Energy Buying Group (Kent County Council Commercial Services),Electricity - Electricity Charges,2019305,202006
Rother District Council,21/05/2020,091HOUSING,Housing and Community Services,20114,Bexhill Parks & Open Spaces,B2201,Electricity,31.94,Laser Energy Buying Group (Kent County Council Commercial Services),Electricity - Electricity Charges,2019305,202006
Rother District Council,21/05/2020,091HOUSING,Housing and Community Services,20107,Camber Beach & Foreshore,B2201,Electricity,622.93,Laser Energy Buying Group (Kent County Council Commercial Services),Electricity - Electricity Charges,2019305,202006
Rother District Council,21/05/2020,081ACQUISIT,"Acquisitions, Transformation and Regeneration",20155,Investment properties,B2201,Electricity,76.72,Laser Energy Buying Group (Kent County Council Commercial Services),Electricity - Electricity Charges,2019305,202006
Rother District Council,21/05/2020,091HOUSING,Housing and Community Services,20123,Cemeteries,B2201,Electricity,174.61,Laser Energy Buying Group (Kent County Council Commercial Services),Electricity - Electricity Charges,2019305,202006
Rother District Council,21/05/2020,091HOUSING,Housing and Community Services,20128,Public Conveniences,B2201,Electricity,28.81,Laser Energy Buying Group (Kent County Council Commercial Services),Electricity - Electricity Charges,2019305,202006
Rother District Council,21/05/2020,091HOUSING,Housing and Community Services,20128,Public Conveniences,B2201,Electricity,31.49,Laser Energy Buying Group (Kent County Council Commercial Services),Electricity - Electricity Charges,2019305,202006
Rother District Council,21/05/2020,031RESOURCES,Executive Directors & Corporate Core,20173,Administrative Offices - Town Hall,B2202,Gas,839.29,Laser Energy Buying Group (Kent County Council Commercial Services),Gas - Gas Charges,2019304,202006
Rother District Council,21/05/2020,031RESOURCES,Executive Directors & Corporate Core,20175,Administrative Offices - T.H. Annex (NOT CHP),B2202,Gas,418.81,Laser Energy Buying Group (Kent County Council Commercial Services),Gas - Gas Charges,2019304,202006
Rother District Council,21/05/2020,031RESOURCES,Executive Directors & Corporate Core,20176,Administrative Offices - Print Room,B2202,Gas,91.19,Laser Energy Buying Group (Kent County Council Commercial Services),Gas - Gas Charges,2019304,202006
Rother District Council,21/05/2020,081ACQUISIT,"Acquisitions, Transformation and Regeneration",20154,Committee Property Account,B2202,Gas,10.23,Laser Energy Buying Group (Kent County Council Commercial Services),Gas - Gas Charges,2019304,202006
Rother District Council,21/05/2020,081ACQUISIT,"Acquisitions, Transformation and Regeneration",20155,Investment properties,B2202,Gas,72.74,Laser Energy Buying Group (Kent County Council Commercial Services),Gas - Gas Charges,2019304,202006
Rother District Council,21/05/2020,091HOUSING,Housing and Community Services,20261,"TA Purchases (prev - 41 Jameson Mews, Bexhill on Sea)",B1100,Repairs to Premises,369.76,Alfa Electric Ltd,Repairs to Premises - Repairs - Electrical Works,2018115,202004
Rother District Council,22/05/2020,041ENVIRON,Environmental Services,32134,EH Pollution R + W Partnership,D2513,Hired and Contracted services,3,H M Land Registry,Hired and contracted services - Env H-Land Registry,2018007,202004
Rother District Council,22/05/2020,071STRAT,Strategy and Planning,20258,BC Dangerous Structures H+R Partnership,D2513,Hired and Contracted services,3,H M Land Registry,Hired and contracted services - Env H-Land Registry,2018007,202004
Rother District Council,22/05/2020,101RESOURCES,Resources,20216,Cost Of Collection,D2513,Hired and Contracted services,3,H M Land Registry,Hired and contracted services - Env H-Land Registry,2018007,202004
Rother District Council,22/05/2020,071STRAT,Strategy and Planning,20246,Planning Applications,D2513,Hired and Contracted services,12,H M Land Registry,Hired and contracted services - Land Registry-Planning,2018007,202004
Rother District Council,22/05/2020,101RESOURCES,Resources,20216,Cost Of Collection,D2513,Hired and Contracted services,900,Inform CPI Ltd,Hired and contracted services - RV Finder,2019337,202006
Rother District Council,25/05/2020,031RESOURCES,Executive Directors & Corporate Core,20173,Administrative Offices - Town Hall,B2422,Sewerage,477.88,Scottish Water Business Stream Limited,Sewerage - Sewerage Charges,2018023,202004
Rother District Council,25/05/2020,081ACQUISIT,"Acquisitions, Transformation and Regeneration",20267,Property Investment Strategy - 18-40 Beeching Road ( Land and Buildings),B2422,Sewerage,53.23,Scottish Water Business Stream Limited,Sewerage - Sewerage Charges,2018050,202004
Rother District Council,25/05/2020,101RESOURCES,Resources,20239,Computer Services,D2621,Telephones,267.68,Interoute Networks Ltd,Telephones - Leased Line Rental,2017430,202004
Rother District Council,25/05/2020,101RESOURCES,Resources,20239,Computer Services,D2621,Telephones,4.89,Interoute Networks Ltd,Telephones - Leased Line Rental,2017430,202004
Rother District Council,26/05/2020,091HOUSING,Housing and Community Services,20236,Customer Services and Development,D2635,Computer Licences,483.2,Click4Assistance,Computer Licences - Maintenance/Upgrading of Software,2018112,202004
Rother District Council,26/05/2020,999NOREPORT,"Acquisitions, Transformation and Regeneration",70725,Capital - Blackfriars,D2513,Hired and Contracted services,33,Bevan Brittan LLP,Hired and contracted services - Legal Advice,2018035,202004
Rother District Council,27/05/2020,041ENVIRON,Environmental Services,32134,EH Pollution R + W Partnership,D1201,Equipment & Materials,39.85,Brady Corporation Ltd (T/A Seton),Equipment & Materials - EnvH- Pollution Equipment,2017993,202004
Rother District Council,27/05/2020,031RESOURCES,Executive Directors & Corporate Core,20171,Human Resources,D1201,Equipment & Materials,34.58,Booker Ltd,Equipment & Materials - Health and Safety Act Equipment,2018003,202004
Rother District Council,27/05/2020,101RESOURCES,Resources,20242,Communications-Phones,D2621,Telephones,284.99,BT British Telecommunications plc,Telephones - BT-Rental-General,2017539,202004
Rother District Council,27/05/2020,041ENVIRON,Environmental Services,32144,EH Environmental Services Admin R + W Partnership,A2203,Training,25,R H Environmental Limited,Training,2018234,202004
Rother District Council,28/05/2020,101RESOURCES,Resources,20239,Computer Services,D2634,Computer Consumables,1421.82,Konica Minolta Business Solutions (UK) Ltd,Computer Equip Maintenance - Maintenance re Colourwave Printer,2017420,202004
Rother District Council,28/05/2020,091HOUSING,Housing and Community Services,20137,Car Parks,B1100,Repairs to Premises,35,Sussex Turnery and Moulding Co Ltd,Repairs to Premises - Purchase of Materials - Build Maint,2018235,202004
Rother District Council,29/05/2020,081ACQUISIT,"Acquisitions, Transformation and Regeneration",20146,West Trading Estate,B2201,Electricity,210.33,Southern Electric (SSE),Electricity - Electricity Charges,2018501,202004
Rother District Council,29/05/2020,101RESOURCES,Resources,20216,Cost Of Collection,D2513,Hired and Contracted services,24,H M Land Registry,Hired and contracted services - Council Tax-Land Registry Enquiries,2018008,202004
Rother District Council,29/05/2020,041ENVIRON,Environmental Services,32134,EH Pollution R + W Partnership,D2513,Hired and Contracted services,12,H M Land Registry,Hired and contracted services - Env H-Land Registry,2018008,202004
Rother District Council,29/05/2020,071STRAT,Strategy and Planning,20258,BC Dangerous Structures H+R Partnership,D2513,Hired and Contracted services,6,H M Land Registry,Hired and contracted services - Env H-Land Registry,2018008,202004
Rother District Council,29/05/2020,091HOUSING,Housing and Community Services,20200,Housing Needs - HB (Housing Benefit),D2513,Hired and Contracted services,6,H M Land Registry,Hired and contracted services - Housing-Land Registry,2018008,202004
Rother District Council,29/05/2020,031RESOURCES,Executive Directors & Corporate Core,20162,Electoral Registration,D2415,Printing by external suppliers,533.07,Civica Election Services Ltd,Printing by external suppliers - Printing (Not from RDC Print Room),2018038,202004
Rother District Council,29/05/2020,081ACQUISIT,"Acquisitions, Transformation and Regeneration",20267,Property Investment Strategy - 18-40 Beeching Road ( Land and Buildings),B2422,Sewerage,19.87,Scottish Water Business Stream Limited,Sewerage - Sewerage Charges,2018048,202004
Rother District Council,29/05/2020,101RESOURCES,Resources,20240,Printing Services,E2302,Third party payment private contractors,62.5,SBS Consumables,Third party payment private contractors - Work by Outside Contractors,2018770,202005
Rother District Council,30/05/2020,091HOUSING,Housing and Community Services,20206,Syrians,D2513,Hired and Contracted services,150,REDACTED PERSONAL DATA,Hired and contracted services - Syrian Misc,2018487,202004
Rother District Council,31/05/2020,041ENVIRON,Environmental Services,32136,EH Pest Control R + W Partnership,C1104,Derv,3.8,Allstar Business Solutions,Derv - Fuel Service fee payable on fuel cards,2018713,202005
Rother District Council,31/05/2020,091HOUSING,Housing and Community Services,20107,Camber Beach & Foreshore,C1104,Derv,1.9,Allstar Business Solutions,Derv - Fuel Service fee payable on fuel cards,2018713,202005
Rother District Council,31/05/2020,101RESOURCES,Resources,20241,Stationery,D2420,General office supplies (Stationery purchased from ext suppliers),25.68,Lyreco UK Limited,General office supplies - Stationery (Stationery Services to buy ONLY),2018771,202005
Rother District Council,31/05/2020,101RESOURCES,Resources,20209,Corporate management,D2513,Hired and Contracted services,1014.27,allpay.net Ltd,Hired and contracted services - Allpay Card/Rep/Let Chrg - Vatable,2018709,202005
Rother District Council,31/05/2020,101RESOURCES,Resources,20209,Corporate management,D2513,Hired and Contracted services,17.88,allpay.net Ltd,Hired and contracted services - Allpay Card/Rep/Let Chrg - Vatable,2018710,202005
Rother District Council,31/05/2020,101RESOURCES,Resources,20209,Corporate management,D2513,Hired and Contracted services,11.88,allpay.net Ltd,Hired and contracted services - Allpay Card/Rep/Let Chrg - Vatable,2018711,202005
Rother District Council,31/05/2020,101RESOURCES,Resources,20209,Corporate management,D2513,Hired and Contracted services,17.88,allpay.net Ltd,Hired and contracted services - Allpay Card/Rep/Let Chrg - Vatable,2018712,202005
Rother District Council,31/05/2020,091HOUSING,Housing and Community Services,20137,Car Parks,B1100,Repairs to Premises,560,REDACTED PERSONAL DATA,Repairs to Premises - Car Park Maintenance,2018859,202005
Rother District Council,31/05/2020,041ENVIRON,Environmental Services,32136,EH Pest Control R + W Partnership,C1104,Derv,35,Allstar Business Solutions,Derv,2018713,202005
Rother District Council,31/05/2020,041ENVIRON,Environmental Services,32136,EH Pest Control R + W Partnership,C1104,Derv,32.5,Allstar Business Solutions,Derv,2018713,202005
Rother District Council,31/05/2020,091HOUSING,Housing and Community Services,20107,Camber Beach & Foreshore,C1104,Derv,32.88,Allstar Business Solutions,Derv,2018713,202005
Rother District Council,31/05/2020,091HOUSING,Housing and Community Services,20145,Maintenance Services,C1104,Derv,30.83,Allstar Business Solutions,Derv,2018713,202005
Rother District Council,31/05/2020,091HOUSING,Housing and Community Services,20145,Maintenance Services,C1104,Derv,40.88,Allstar Business Solutions,Derv,2018713,202005
Rother District Council,01/06/2020,091HOUSING,Housing and Community Services,20205,Housing Loans Account,D2514,Accommodation Costs,163.1,Moonpool Properties Ltd,Accommodation Costs - Homelessness services Rent in Advance for Homeless,2018340,202004
Rother District Council,01/06/2020,091HOUSING,Housing and Community Services,20205,Housing Loans Account,D2514,Accommodation Costs,163.1,Moonpool Properties Ltd,Accommodation Costs - Homelessness services Rent in Advance for Homeless,2018341,202004
Rother District Council,01/06/2020,091HOUSING,Housing and Community Services,20128,Public Conveniences,B2611,Contract cleaning,840.07,Specialist Hygiene Services Ltd,Contract cleaning - Public Conveniences Cleaning Servic,2019149,202005
Rother District Council,01/06/2020,091HOUSING,Housing and Community Services,20128,Public Conveniences,B2611,Contract cleaning,743.08,Specialist Hygiene Services Ltd,Contract cleaning - Public Conveniences Cleaning Servic,2019149,202005
Rother District Council,01/06/2020,091HOUSING,Housing and Community Services,20128,Public Conveniences,B2611,Contract cleaning,196.06,Specialist Hygiene Services Ltd,Contract cleaning - Public Conveniences Cleaning Servic,2019149,202005
Rother District Council,01/06/2020,091HOUSING,Housing and Community Services,20128,Public Conveniences,B2611,Contract cleaning,700.01,Specialist Hygiene Services Ltd,Contract cleaning - Public Conveniences Cleaning Servic,2019149,202005
Rother District Council,01/06/2020,091HOUSING,Housing and Community Services,20128,Public Conveniences,B2611,Contract cleaning,504.04,Specialist Hygiene Services Ltd,Contract cleaning - Public Conveniences Cleaning Servic,2019149,202005
Rother District Council,01/06/2020,091HOUSING,Housing and Community Services,20128,Public Conveniences,B2611,Contract cleaning,840.07,Specialist Hygiene Services Ltd,Contract cleaning - Public Conveniences Cleaning Servic,2019149,202005
Rother District Council,01/06/2020,091HOUSING,Housing and Community Services,20128,Public Conveniences,B2611,Contract cleaning,504.04,Specialist Hygiene Services Ltd,Contract cleaning - Public Conveniences Cleaning Servic,2019149,202005
Rother District Council,01/06/2020,091HOUSING,Housing and Community Services,20128,Public Conveniences,B2611,Contract cleaning,615.96,Specialist Hygiene Services Ltd,Contract cleaning - Public Conveniences Cleaning Servic,2019149,202005
Rother District Council,01/06/2020,091HOUSING,Housing and Community Services,20128,Public Conveniences,B2611,Contract cleaning,280.02,Specialist Hygiene Services Ltd,Contract cleaning - Public Conveniences Cleaning Servic,2019149,202005
Rother District Council,01/06/2020,091HOUSING,Housing and Community Services,20128,Public Conveniences,B2611,Contract cleaning,336.03,Specialist Hygiene Services Ltd,Contract cleaning - Public Conveniences Cleaning Servic,2019149,202005
Rother District Council,01/06/2020,091HOUSING,Housing and Community Services,20128,Public Conveniences,B2611,Contract cleaning,588,Specialist Hygiene Services Ltd,Contract cleaning - Public Conveniences Cleaning Servic,2019149,202005
Rother District Council,01/06/2020,091HOUSING,Housing and Community Services,20128,Public Conveniences,B2611,Contract cleaning,532,Specialist Hygiene Services Ltd,Contract cleaning - Public Conveniences Cleaning Servic,2019149,202005
Rother District Council,01/06/2020,091HOUSING,Housing and Community Services,20128,Public Conveniences,B2611,Contract cleaning,251.98,Specialist Hygiene Services Ltd,Contract cleaning - Public Conveniences Cleaning Servic,2019149,202005
Rother District Council,01/06/2020,091HOUSING,Housing and Community Services,20128,Public Conveniences,B2611,Contract cleaning,559.96,Specialist Hygiene Services Ltd,Contract cleaning - Public Conveniences Cleaning Servic,2019149,202005
Rother District Council,01/06/2020,091HOUSING,Housing and Community Services,20128,Public Conveniences,B2611,Contract cleaning,307.98,Specialist Hygiene Services Ltd,Contract cleaning - Public Conveniences Cleaning Servic,2019149,202005
Rother District Council,01/06/2020,091HOUSING,Housing and Community Services,20128,Public Conveniences,B2611,Contract cleaning,504.04,Specialist Hygiene Services Ltd,Contract cleaning - Public Conveniences Cleaning Servic,2019149,202005
Rother District Council,01/06/2020,091HOUSING,Housing and Community Services,20128,Public Conveniences,B2611,Contract cleaning,742.56,Specialist Hygiene Services Ltd,Contract cleaning - Public Conveniences Cleaning Servic,2019149,202005
Rother District Council,01/06/2020,091HOUSING,Housing and Community Services,20128,Public Conveniences,B2611,Contract cleaning,1215.52,Specialist Hygiene Services Ltd,Contract cleaning - Public Conveniences Cleaning Servic,2019149,202005
Rother District Council,01/06/2020,091HOUSING,Housing and Community Services,20128,Public Conveniences,B2611,Contract cleaning,472.87,Specialist Hygiene Services Ltd,Contract cleaning - Public Conveniences Cleaning Servic,2019149,202005
Rother District Council,01/06/2020,091HOUSING,Housing and Community Services,20128,Public Conveniences,B2611,Contract cleaning,928.11,Specialist Hygiene Services Ltd,Contract cleaning - Public Conveniences Cleaning Servic,2019149,202005
Rother District Council,01/06/2020,091HOUSING,Housing and Community Services,20128,Public Conveniences,B2611,Contract cleaning,1231.27,Specialist Hygiene Services Ltd,Contract cleaning - Public Conveniences Cleaning Servic,2019149,202005
Rother District Council,01/06/2020,091HOUSING,Housing and Community Services,20128,Public Conveniences,B2611,Contract cleaning,1231.27,Specialist Hygiene Services Ltd,Contract cleaning - Public Conveniences Cleaning Servic,2019149,202005
Rother District Council,01/06/2020,091HOUSING,Housing and Community Services,20128,Public Conveniences,B2611,Contract cleaning,1751.03,Specialist Hygiene Services Ltd,Contract cleaning - Public Conveniences Cleaning Servic,2019149,202005
Rother District Council,01/06/2020,091HOUSING,Housing and Community Services,20128,Public Conveniences,B2611,Contract cleaning,290.7,Specialist Hygiene Services Ltd,Contract cleaning - Public Conveniences Cleaning Servic,2019149,202005
Rother District Council,01/06/2020,091HOUSING,Housing and Community Services,20128,Public Conveniences,B2611,Contract cleaning,387.69,Specialist Hygiene Services Ltd,Contract cleaning - Public Conveniences Cleaning Servic,2019149,202005
Rother District Council,01/06/2020,091HOUSING,Housing and Community Services,20128,Public Conveniences,B2611,Contract cleaning,323.94,Specialist Hygiene Services Ltd,Contract cleaning - Public Conveniences Cleaning Servic,2019149,202005
Rother District Council,01/06/2020,091HOUSING,Housing and Community Services,20128,Public Conveniences,B2611,Contract cleaning,355.39,Specialist Hygiene Services Ltd,Contract cleaning - Public Conveniences Cleaning Servic,2019149,202005
Rother District Council,01/06/2020,091HOUSING,Housing and Community Services,20128,Public Conveniences,B2611,Contract cleaning,387.69,Specialist Hygiene Services Ltd,Contract cleaning - Public Conveniences Cleaning Servic,2019149,202005
Rother District Council,01/06/2020,091HOUSING,Housing and Community Services,20128,Public Conveniences,B2611,Contract cleaning,290.7,Specialist Hygiene Services Ltd,Contract cleaning - Public Conveniences Cleaning Servic,2019149,202005
Rother District Council,01/06/2020,091HOUSING,Housing and Community Services,20128,Public Conveniences,B2611,Contract cleaning,567.62,Specialist Hygiene Services Ltd,Contract cleaning - Public Conveniences Cleaning Servic,2019149,202005
Rother District Council,01/06/2020,031RESOURCES,Executive Directors & Corporate Core,20175,Administrative Offices - T.H. Annex (NOT CHP),B2201,Electricity,675.9,Laser Energy Buying Group (Kent County Council Commercial Services),Electricity - Electricity Charges,2018912,202005
Rother District Council,01/06/2020,081ACQUISIT,"Acquisitions, Transformation and Regeneration",20154,Committee Property Account,B2201,Electricity,18.06,Laser Energy Buying Group (Kent County Council Commercial Services),Electricity - Electricity Charges,2018912,202005
Rother District Council,01/06/2020,081ACQUISIT,"Acquisitions, Transformation and Regeneration",20154,Committee Property Account,B2201,Electricity,18.06,Laser Energy Buying Group (Kent County Council Commercial Services),Electricity - Electricity Charges,2018912,202005
Rother District Council,01/06/2020,081ACQUISIT,"Acquisitions, Transformation and Regeneration",20154,Committee Property Account,B2201,Electricity,18.05,Laser Energy Buying Group (Kent County Council Commercial Services),Electricity - Electricity Charges,2018912,202005
Rother District Council,01/06/2020,081ACQUISIT,"Acquisitions, Transformation and Regeneration",20154,Committee Property Account,B2201,Electricity,18.05,Laser Energy Buying Group (Kent County Council Commercial Services),Electricity - Electricity Charges,2018912,202005
Rother District Council,01/06/2020,081ACQUISIT,"Acquisitions, Transformation and Regeneration",20150,Peasmarsh Workshops,B2201,Electricity,35.22,Laser Energy Buying Group (Kent County Council Commercial Services),Electricity - Electricity Charges,2018912,202005
Rother District Council,01/06/2020,081ACQUISIT,"Acquisitions, Transformation and Regeneration",20153,"Elva Business Centre, Bexhill",B2201,Electricity,505.82,Laser Energy Buying Group (Kent County Council Commercial Services),Electricity - Electricity Charges,2018912,202005
Rother District Council,01/06/2020,091HOUSING,Housing and Community Services,20102,Rother Museum Services,B2201,Electricity,1026.91,Laser Energy Buying Group (Kent County Council Commercial Services),Electricity - Electricity Charges,2018912,202005
Rother District Council,01/06/2020,091HOUSING,Housing and Community Services,20108,Bexhill Promenade & Foreshore,B2201,Electricity,45,Laser Energy Buying Group (Kent County Council Commercial Services),Electricity - Electricity Charges,2018912,202005
Rother District Council,01/06/2020,091HOUSING,Housing and Community Services,20108,Bexhill Promenade & Foreshore,B2201,Electricity,54.49,Laser Energy Buying Group (Kent County Council Commercial Services),Electricity - Electricity Charges,2018912,202005
Rother District Council,01/06/2020,091HOUSING,Housing and Community Services,20114,Bexhill Parks & Open Spaces,B2201,Electricity,35.01,Laser Energy Buying Group (Kent County Council Commercial Services),Electricity - Electricity Charges,2018912,202005
Rother District Council,01/06/2020,091HOUSING,Housing and Community Services,20125,Coast Protection,B2201,Electricity,543.69,Laser Energy Buying Group (Kent County Council Commercial Services),Electricity - Electricity Charges,2018912,202005
Rother District Council,01/06/2020,091HOUSING,Housing and Community Services,20115,Rye Area Parks & Gardens,B2201,Electricity,29.24,Laser Energy Buying Group (Kent County Council Commercial Services),Electricity - Electricity Charges,2018912,202005
Rother District Council,01/06/2020,091HOUSING,Housing and Community Services,20128,Public Conveniences,B2201,Electricity,105.02,Laser Energy Buying Group (Kent County Council Commercial Services),Electricity - Electricity Charges,2018912,202005
Rother District Council,01/06/2020,031RESOURCES,Executive Directors & Corporate Core,20176,Administrative Offices - Print Room,B2202,Gas,56.49,Laser Energy Buying Group (Kent County Council Commercial Services),Gas - Gas Charges,2018913,202005
Rother District Council,01/06/2020,031RESOURCES,Executive Directors & Corporate Core,20175,Administrative Offices - T.H. Annex (NOT CHP),B2202,Gas,221.84,Laser Energy Buying Group (Kent County Council Commercial Services),Gas - Gas Charges,2018913,202005
Rother District Council,01/06/2020,031RESOURCES,Executive Directors & Corporate Core,20173,Administrative Offices - Town Hall,B2202,Gas,558.32,Laser Energy Buying Group (Kent County Council Commercial Services),Gas - Gas Charges,2018913,202005
Rother District Council,01/06/2020,081ACQUISIT,"Acquisitions, Transformation and Regeneration",20154,Committee Property Account,B2202,Gas,9.9,Laser Energy Buying Group (Kent County Council Commercial Services),Gas - Gas Charges,2018913,202005
Rother District Council,01/06/2020,081ACQUISIT,"Acquisitions, Transformation and Regeneration",20155,Investment properties,B2202,Gas,37.93,Laser Energy Buying Group (Kent County Council Commercial Services),Gas - Gas Charges,2018913,202005
Rother District Council,01/06/2020,031RESOURCES,Executive Directors & Corporate Core,20171,Human Resources,D2513,Hired and Contracted services,48.3,Computershare Voucher Services,Hired and contracted services - Child Care Voucher Service Charge,2018140,202004
Rother District Council,01/06/2020,101RESOURCES,Resources,20209,Corporate management,D2513,Hired and Contracted services,20.09,Merchant Rentals Ltd,Hired and contracted services - Streamline Machine-Rental,2018148,202004
Rother District Council,01/06/2020,091HOUSING,Housing and Community Services,20107,Camber Beach & Foreshore,D2623,Radios and licences,85,Ofcom - Radio Licence Fees,Radios and licences - Radio/Transmitter Licences,2018826,202005
Rother District Council,01/06/2020,091HOUSING,Housing and Community Services,20235,Rye Community Help Point,J1234,RDC Support charge Rye Community Help Point,50.95,Beaming Ltd,Rents and service charges - Rent - Rye CHP,2017997,202004
Rother District Council,01/06/2020,091HOUSING,Housing and Community Services,20235,Rye Community Help Point,J1234,RDC Support charge Rye Community Help Point,50.95,Beaming Ltd,Rents and service charges - Rent - Rye CHP,2017997,202004
Rother District Council,01/06/2020,091HOUSING,Housing and Community Services,20108,Bexhill Promenade & Foreshore,B1100,Repairs to Premises,5.81,Sussex Plumbing Supplies Ltd,Repairs to Premises - Purchase of Materials - Build Maint,2017888,202004
Rother District Council,01/06/2020,101RESOURCES,Resources,20242,Communications-Phones,D2621,Telephones,26,KCOM Group Plc,Telephones - KCOM Smartnumber Charges,2017511,202004
Rother District Council,01/06/2020,031RESOURCES,Executive Directors & Corporate Core,20180,Emergency Planning,D2621,Telephones,15.13,Daisy Communications PLC,Telephones,2017601,202004
Rother District Council,01/06/2020,041ENVIRON,Environmental Services,32134,EH Pollution R + W Partnership,D2621,Telephones,15.16,Daisy Communications PLC,Telephones,2017601,202004
Rother District Council,01/06/2020,091HOUSING,Housing and Community Services,20107,Camber Beach & Foreshore,D2621,Telephones,35.12,Daisy Communications PLC,Telephones,2017601,202004
Rother District Council,01/06/2020,091HOUSING,Housing and Community Services,20102,Rother Museum Services,D2621,Telephones,15.13,Daisy Communications PLC,Telephones,2017601,202004
Rother District Council,01/06/2020,101RESOURCES,Resources,20239,Computer Services,D2621,Telephones,30.26,Daisy Communications PLC,Telephones,2017601,202004
Rother District Council,01/06/2020,101RESOURCES,Resources,20242,Communications-Phones,D2621,Telephones,75.65,Daisy Communications PLC,Telephones,2017601,202004
Rother District Council,01/06/2020,999NOREPORT,Resources,90000,Balance sheet all accounts,T1002,Childcare Vouchers,743,Computershare Voucher Services,Childcare Vouchers,2018140,202004
Rother District Council,02/06/2020,091HOUSING,Housing and Community Services,20261,"TA Purchases (prev - 41 Jameson Mews, Bexhill on Sea)",N1009,Furniture & Fittings,1529.33,HFS - Hastings Furniture Service Ltd,Furniture and Fittings for TA purchases,2018908,202005
Rother District Council,02/06/2020,091HOUSING,Housing and Community Services,20261,"TA Purchases (prev - 41 Jameson Mews, Bexhill on Sea)",N1009,Furniture & Fittings,181,HFS - Hastings Furniture Service Ltd,Furniture and Fittings for TA purchases,2018908,202005
Rother District Council,02/06/2020,081ACQUISIT,"Acquisitions, Transformation and Regeneration",20268,Property Investment Strategy � Glovers Farm sites,B2422,Sewerage,790,Sea Change Sussex,Sewerage - Sewerage Charges,2017663,202004
Rother District Council,02/06/2020,101RESOURCES,Resources,20242,Communications-Phones,D2621,Telephones,5.2,KCOM Group Plc,Telephones - KCOM Smartnumber Charges,2017512,202004
Rother District Council,02/06/2020,101RESOURCES,Resources,20242,Communications-Phones,D2621,Telephones,25.74,TalkTalk Communications Ltd T/A TalkTalk Business,Telephones - Telephone Call Costs+Line Rental,2018801,202006
Rother District Council,04/06/2020,091HOUSING,Housing and Community Services,20128,Public Conveniences,B2422,Sewerage,478.43,Scottish Water Business Stream Limited,Sewerage - Sewerage Charges,2018025,202004
Rother District Council,04/06/2020,081ACQUISIT,"Acquisitions, Transformation and Regeneration",20267,Property Investment Strategy - 18-40 Beeching Road ( Land and Buildings),B2421,Water,30.34,Castle Water Ltd,Water - Water Charges,2018714,202005
Rother District Council,05/06/2020,101RESOURCES,Resources,20239,Computer Services,D2635,Computer Licences,382.09,Civica UK Ltd,Computer Licences - Website Management,2019367,202006
Rother District Council,05/06/2020,101RESOURCES,Resources,20216,Cost Of Collection,D2513,Hired and Contracted services,45,H M Land Registry,Hired and contracted services - Council Tax-Land Registry Enquiries,2018011,202004
Rother District Council,05/06/2020,071STRAT,Strategy and Planning,20258,BC Dangerous Structures H+R Partnership,D2513,Hired and Contracted services,9,H M Land Registry,Hired and contracted services - Env H-Land Registry,2018011,202004
Rother District Council,05/06/2020,041ENVIRON,Environmental Services,32134,EH Pollution R + W Partnership,D2513,Hired and Contracted services,21,H M Land Registry,Hired and contracted services - Env H-Land Registry,2018011,202004
Rother District Council,05/06/2020,091HOUSING,Housing and Community Services,20200,Housing Needs - HB (Housing Benefit),D2513,Hired and Contracted services,3,H M Land Registry,Hired and contracted services - Housing-Land Registry,2018011,202004
Rother District Council,05/06/2020,091HOUSING,Housing and Community Services,20261,"TA Purchases (prev - 41 Jameson Mews, Bexhill on Sea)",B1100,Repairs to Premises,2980,Poulton Remedial Services Ltd,Repairs to Premises - Repairs Refurbishment of premises,2018346,202004
Rother District Council,05/06/2020,031RESOURCES,Executive Directors & Corporate Core,20173,Administrative Offices - Town Hall,B1100,Repairs to Premises,622.66,Kerry SCS Ltd,Repairs to Premises - Specified Repairs and Works listed,2017991,202004
Rother District Council,05/06/2020,031RESOURCES,Executive Directors & Corporate Core,20175,Administrative Offices - T.H. Annex (NOT CHP),B1100,Repairs to Premises,392.51,Kerry SCS Ltd,Repairs to Premises - Specified Repairs and Works listed,2017990,202004
Rother District Council,06/06/2020,091HOUSING,Housing and Community Services,20128,Public Conveniences,B2422,Sewerage,363.92,Scottish Water Business Stream Limited,Sewerage - Sewerage Charges,2018027,202004
Rother District Council,06/06/2020,091HOUSING,Housing and Community Services,20128,Public Conveniences,B2421,Water,231.27,Scottish Water Business Stream Limited,Water - Water Charges,2018027,202004
Rother District Council,08/06/2020,101RESOURCES,Resources,20209,Corporate management,D2513,Hired and Contracted services,116,Lloyds Bank,Bank Charges,2019081,202005
Rother District Council,08/06/2020,101RESOURCES,Resources,20209,Corporate management,D2513,Hired and Contracted services,73.45,Lloyds Bank,Bank Charges,2018791,202005
Rother District Council,08/06/2020,091HOUSING,Housing and Community Services,20114,Bexhill Parks & Open Spaces,B1100,Repairs to Premises,2750,OSD Hydropower Services,Repairs to Premises - Parks - Jet Washing and Cleaning,2018471,202004
Rother District Council,08/06/2020,091HOUSING,Housing and Community Services,20108,Bexhill Promenade & Foreshore,B1100,Repairs to Premises,800,OSD Hydropower Services,Repairs to Premises - Parks - Jet Washing and Cleaning,2018471,202004
Rother District Council,08/06/2020,031RESOURCES,Executive Directors & Corporate Core,20162,Electoral Registration,D2626,Postages,99.5,Royal Mail Group Ltd,Postages,2017785,202004
Rother District Council,08/06/2020,031RESOURCES,Executive Directors & Corporate Core,20162,Electoral Registration,D2626,Postages,117.5,Royal Mail Group Ltd,Postages,2017786,202004
Rother District Council,09/06/2020,081ACQUISIT,"Acquisitions, Transformation and Regeneration",20155,Investment properties,B1100,Repairs to Premises,43.28,Sussex Plumbing Supplies Ltd,Repairs to Premises - Purchase of Materials - Build Maint,2017889,202004
Rother District Council,09/06/2020,031RESOURCES,Executive Directors & Corporate Core,20175,Administrative Offices - T.H. Annex (NOT CHP),B2422,Sewerage,500.6,Scottish Water Business Stream Limited,Sewerage - Sewerage Charges,2018041,202004
Rother District Council,09/06/2020,081ACQUISIT,"Acquisitions, Transformation and Regeneration",20155,Investment properties,B2422,Sewerage,68.54,Scottish Water Business Stream Limited,Sewerage - Sewerage Charges,2018046,202004
Rother District Council,09/06/2020,091HOUSING,Housing and Community Services,20128,Public Conveniences,B2422,Sewerage,1129.65,Scottish Water Business Stream Limited,Sewerage - Sewerage Charges,2018044,202004
Rother District Council,09/06/2020,101RESOURCES,Resources,20242,Communications-Phones,D2621,Telephones,67.5,TalkTalk Communications Ltd T/A TalkTalk Business,Telephones - Telephone Call Costs+Line Rental,2018802,202006
Rother District Council,09/06/2020,091HOUSING,Housing and Community Services,20115,Rye Area Parks & Gardens,B2421,Water,219.95,Scottish Water Business Stream Limited,Water - Water Charges,2018018,202004
Rother District Council,10/06/2020,101RESOURCES,Resources,20209,Corporate management,D2513,Hired and Contracted services,219.9,Lloyds Bank,Bank Charges,2019083,202005
Rother District Council,10/06/2020,101RESOURCES,Resources,20239,Computer Services,D2638,Photocopier Contracts,102.26,Ricoh UK Limited,Computer Equip Maintenance - Scanner Maintenance,2017790,202004
Rother District Council,10/06/2020,091HOUSING,Housing and Community Services,20128,Public Conveniences,B2422,Sewerage,31.86,Scottish Water Business Stream Limited,Sewerage - Sewerage Charges,2018021,202004
Rother District Council,10/06/2020,091HOUSING,Housing and Community Services,20128,Public Conveniences,B2422,Sewerage,125.99,Scottish Water Business Stream Limited,Sewerage - Sewerage Charges,2018030,202004
Rother District Council,10/06/2020,101RESOURCES,Resources,20242,Communications-Phones,D2621,Telephones,755.17,BT British Telecommunications plc,Telephones - BT-Rental-General,2017791,202004
Rother District Council,10/06/2020,091HOUSING,Housing and Community Services,20128,Public Conveniences,B2421,Water,114.25,Scottish Water Business Stream Limited,Water - Water Charges,2018030,202004
Rother District Council,11/06/2020,101RESOURCES,Resources,20239,Computer Services,D2635,Computer Licences,6345,Civica UK Ltd,Computer Licences - New Computer Software,2019368,202006
Rother District Council,11/06/2020,091HOUSING,Housing and Community Services,20128,Public Conveniences,D1201,Equipment & Materials,122.88,Fuzion 4 Limited,Equipment & Materials - CCTV,2017846,202005
Rother District Council,11/06/2020,101RESOURCES,Resources,20239,Computer Services,D2631,Computer Equip Maintenance,4297.32,Konica Minolta Business Solutions (UK) Ltd,Operational Leases - Copier Rental and Service,2017689,202004
Rother District Council,11/06/2020,091HOUSING,Housing and Community Services,20128,Public Conveniences,B1100,Repairs to Premises,26.41,Sussex Plumbing Supplies Ltd,Repairs to Premises - Purchase of Materials - Build Maint,2017890,202004
Rother District Council,11/06/2020,091HOUSING,Housing and Community Services,20128,Public Conveniences,B2422,Sewerage,1595.34,Scottish Water Business Stream Limited,Sewerage - Sewerage Charges,2018031,202004
Rother District Council,12/06/2020,101RESOURCES,Resources,20216,Cost Of Collection,D2513,Hired and Contracted services,30,H M Land Registry,Hired and contracted services - Council Tax-Land Registry Enquiries,2018012,202004
Rother District Council,12/06/2020,071STRAT,Strategy and Planning,20258,BC Dangerous Structures H+R Partnership,D2513,Hired and Contracted services,30,H M Land Registry,Hired and contracted services - Env H-Land Registry,2018012,202004
Rother District Council,12/06/2020,041ENVIRON,Environmental Services,32134,EH Pollution R + W Partnership,D2513,Hired and Contracted services,9,H M Land Registry,Hired and contracted services - Env H-Land Registry,2018012,202004
Rother District Council,12/06/2020,041ENVIRON,Environmental Services,32144,EH Environmental Services Admin R + W Partnership,D2513,Hired and Contracted services,3,H M Land Registry,Hired and contracted services - Env H-Land Registry,2018012,202004
Rother District Council,12/06/2020,071STRAT,Strategy and Planning,20246,Planning Applications,D2513,Hired and Contracted services,18,H M Land Registry,Hired and contracted services - Land Registry-Planning,2018012,202004
Rother District Council,12/06/2020,081ACQUISIT,"Acquisitions, Transformation and Regeneration",20144,Property Management,D2513,Hired and Contracted services,6,H M Land Registry,Hired and contracted services - Land Registry-Property Management,2018012,202004
Rother District Council,12/06/2020,101RESOURCES,Resources,20207,Reliefs & Benefits-Housing Benefit,D2513,Hired and Contracted services,13800,Branch and Lee,Hired and contracted services - Subsidy Consultancy,2018103,202004
Rother District Council,12/06/2020,081ACQUISIT,"Acquisitions, Transformation and Regeneration",20155,Investment properties,B1100,Repairs to Premises,6340,Poulton Remedial Services Ltd,Repairs to Premises -  Building Surveys and Inspection,2018255,202005
Rother District Council,12/06/2020,091HOUSING,Housing and Community Services,20128,Public Conveniences,B2422,Sewerage,1108.65,Scottish Water Business Stream Limited,Sewerage - Sewerage Charges,2018017,202004
Rother District Council,12/06/2020,091HOUSING,Housing and Community Services,20128,Public Conveniences,B2422,Sewerage,105.43,Scottish Water Business Stream Limited,Sewerage - Sewerage Charges,2018026,202004
Rother District Council,12/06/2020,071STRAT,Strategy and Planning,20246,Planning Applications,A2203,Training,149,Waterfront Conference Company,Training,2019475,202006
Rother District Council,12/06/2020,091HOUSING,Housing and Community Services,20128,Public Conveniences,B2421,Water,70.72,Scottish Water Business Stream Limited,Water - Water Charges,2018026,202004
Rother District Council,13/06/2020,031RESOURCES,Executive Directors & Corporate Core,20171,Human Resources,D2622,Mobile Phones,10,O2 (UK) Ltd,Mobile Phones,2018795,202005
Rother District Council,13/06/2020,031RESOURCES,Executive Directors & Corporate Core,20171,Human Resources,D2622,Mobile Phones,10,O2 (UK) Ltd,Mobile Phones,2018795,202005
Rother District Council,13/06/2020,031RESOURCES,Executive Directors & Corporate Core,20158,Committee Service General Exp,D2622,Mobile Phones,10,O2 (UK) Ltd,Mobile Phones,2018795,202005
Rother District Council,13/06/2020,031RESOURCES,Executive Directors & Corporate Core,20162,Electoral Registration,D2622,Mobile Phones,10,O2 (UK) Ltd,Mobile Phones,2018795,202005
Rother District Council,13/06/2020,031RESOURCES,Executive Directors & Corporate Core,20183,Executive Directors,D2622,Mobile Phones,10,O2 (UK) Ltd,Mobile Phones,2018795,202005
Rother District Council,13/06/2020,031RESOURCES,Executive Directors & Corporate Core,20183,Executive Directors,D2622,Mobile Phones,30,O2 (UK) Ltd,Mobile Phones,2018795,202005
Rother District Council,13/06/2020,031RESOURCES,Executive Directors & Corporate Core,20183,Executive Directors,D2622,Mobile Phones,10,O2 (UK) Ltd,Mobile Phones,2018795,202005
Rother District Council,13/06/2020,031RESOURCES,Executive Directors & Corporate Core,20180,Emergency Planning,D2622,Mobile Phones,10,O2 (UK) Ltd,Mobile Phones,2018795,202005
Rother District Council,13/06/2020,031RESOURCES,Executive Directors & Corporate Core,20180,Emergency Planning,D2622,Mobile Phones,10,O2 (UK) Ltd,Mobile Phones,2018795,202005
Rother District Council,13/06/2020,031RESOURCES,Executive Directors & Corporate Core,20180,Emergency Planning,D2622,Mobile Phones,4.5,O2 (UK) Ltd,Mobile Phones,2018795,202005
Rother District Council,13/06/2020,041ENVIRON,Environmental Services,20197,Service Manager Env Serv,D2622,Mobile Phones,10,O2 (UK) Ltd,Mobile Phones,2018796,202005
Rother District Council,13/06/2020,041ENVIRON,Environmental Services,20198,Licensing Team,D2622,Mobile Phones,10.08,O2 (UK) Ltd,Mobile Phones,2018796,202005
Rother District Council,13/06/2020,041ENVIRON,Environmental Services,20198,Licensing Team,D2622,Mobile Phones,10,O2 (UK) Ltd,Mobile Phones,2018796,202005
Rother District Council,13/06/2020,041ENVIRON,Environmental Services,20198,Licensing Team,D2622,Mobile Phones,10,O2 (UK) Ltd,Mobile Phones,2018796,202005
Rother District Council,13/06/2020,041ENVIRON,Environmental Services,20198,Licensing Team,D2622,Mobile Phones,10,O2 (UK) Ltd,Mobile Phones,2018796,202005
Rother District Council,13/06/2020,041ENVIRON,Environmental Services,20198,Licensing Team,D2622,Mobile Phones,10,O2 (UK) Ltd,Mobile Phones,2018796,202005
Rother District Council,13/06/2020,041ENVIRON,Environmental Services,20198,Licensing Team,D2622,Mobile Phones,10,O2 (UK) Ltd,Mobile Phones,2018796,202005
Rother District Council,13/06/2020,041ENVIRON,Environmental Services,20198,Licensing Team,D2622,Mobile Phones,10,O2 (UK) Ltd,Mobile Phones,2018796,202005
Rother District Council,13/06/2020,031RESOURCES,Executive Directors & Corporate Core,20179,Communications,D2622,Mobile Phones,10,O2 (UK) Ltd,Mobile Phones,2018795,202005
Rother District Council,13/06/2020,031RESOURCES,Executive Directors & Corporate Core,32132,Joint Waste Contract Client Unit,D2622,Mobile Phones,10,O2 (UK) Ltd,Mobile Phones,2018795,202005
Rother District Council,13/06/2020,031RESOURCES,Executive Directors & Corporate Core,32132,Joint Waste Contract Client Unit,D2622,Mobile Phones,10.58,O2 (UK) Ltd,Mobile Phones,2018795,202005
Rother District Council,13/06/2020,041ENVIRON,Environmental Services,20199,Food and Safety Team,D2622,Mobile Phones,10,O2 (UK) Ltd,Mobile Phones,2018796,202005
Rother District Council,13/06/2020,041ENVIRON,Environmental Services,20199,Food and Safety Team,D2622,Mobile Phones,10.1,O2 (UK) Ltd,Mobile Phones,2018796,202005
Rother District Council,13/06/2020,041ENVIRON,Environmental Services,20199,Food and Safety Team,D2622,Mobile Phones,10,O2 (UK) Ltd,Mobile Phones,2018796,202005
Rother District Council,13/06/2020,041ENVIRON,Environmental Services,20199,Food and Safety Team,D2622,Mobile Phones,10,O2 (UK) Ltd,Mobile Phones,2018796,202005
Rother District Council,13/06/2020,041ENVIRON,Environmental Services,20199,Food and Safety Team,D2622,Mobile Phones,10,O2 (UK) Ltd,Mobile Phones,2018796,202005
Rother District Council,13/06/2020,041ENVIRON,Environmental Services,20199,Food and Safety Team,D2622,Mobile Phones,10,O2 (UK) Ltd,Mobile Phones,2018796,202005
Rother District Council,13/06/2020,041ENVIRON,Environmental Services,20199,Food and Safety Team,D2622,Mobile Phones,10,O2 (UK) Ltd,Mobile Phones,2018796,202005
Rother District Council,13/06/2020,041ENVIRON,Environmental Services,20199,Food and Safety Team,D2622,Mobile Phones,10,O2 (UK) Ltd,Mobile Phones,2018796,202005
Rother District Council,13/06/2020,041ENVIRON,Environmental Services,20199,Food and Safety Team,D2622,Mobile Phones,10,O2 (UK) Ltd,Mobile Phones,2018796,202005
Rother District Council,13/06/2020,041ENVIRON,Environmental Services,20199,Food and Safety Team,D2622,Mobile Phones,10,O2 (UK) Ltd,Mobile Phones,2018796,202005
Rother District Council,13/06/2020,041ENVIRON,Environmental Services,20199,Food and Safety Team,D2622,Mobile Phones,10,O2 (UK) Ltd,Mobile Phones,2018796,202005
Rother District Council,13/06/2020,041ENVIRON,Environmental Services,20199,Food and Safety Team,D2622,Mobile Phones,10,O2 (UK) Ltd,Mobile Phones,2018796,202005
Rother District Council,13/06/2020,041ENVIRON,Environmental Services,20199,Food and Safety Team,D2622,Mobile Phones,10,O2 (UK) Ltd,Mobile Phones,2018796,202005
Rother District Council,13/06/2020,041ENVIRON,Environmental Services,20199,Food and Safety Team,D2622,Mobile Phones,10,O2 (UK) Ltd,Mobile Phones,2018796,202005
Rother District Council,13/06/2020,041ENVIRON,Environmental Services,20265,Pollution Team,D2622,Mobile Phones,10,O2 (UK) Ltd,Mobile Phones,2018796,202005
Rother District Council,13/06/2020,041ENVIRON,Environmental Services,20265,Pollution Team,D2622,Mobile Phones,10,O2 (UK) Ltd,Mobile Phones,2018796,202005
Rother District Council,13/06/2020,041ENVIRON,Environmental Services,20265,Pollution Team,D2622,Mobile Phones,10,O2 (UK) Ltd,Mobile Phones,2018796,202005
Rother District Council,13/06/2020,041ENVIRON,Environmental Services,20265,Pollution Team,D2622,Mobile Phones,10,O2 (UK) Ltd,Mobile Phones,2018796,202005
Rother District Council,13/06/2020,041ENVIRON,Environmental Services,20265,Pollution Team,D2622,Mobile Phones,10,O2 (UK) Ltd,Mobile Phones,2018796,202005
Rother District Council,13/06/2020,041ENVIRON,Environmental Services,20265,Pollution Team,D2622,Mobile Phones,10.55,O2 (UK) Ltd,Mobile Phones,2018796,202005
Rother District Council,13/06/2020,041ENVIRON,Environmental Services,20265,Pollution Team,D2622,Mobile Phones,10,O2 (UK) Ltd,Mobile Phones,2018796,202005
Rother District Council,13/06/2020,041ENVIRON,Environmental Services,20265,Pollution Team,D2622,Mobile Phones,10,O2 (UK) Ltd,Mobile Phones,2018796,202005
Rother District Council,13/06/2020,041ENVIRON,Environmental Services,20265,Pollution Team,D2622,Mobile Phones,10,O2 (UK) Ltd,Mobile Phones,2018796,202005
Rother District Council,13/06/2020,041ENVIRON,Environmental Services,20265,Pollution Team,D2622,Mobile Phones,10,O2 (UK) Ltd,Mobile Phones,2018796,202005
Rother District Council,13/06/2020,041ENVIRON,Environmental Services,20265,Pollution Team,D2622,Mobile Phones,10,O2 (UK) Ltd,Mobile Phones,2018796,202005
Rother District Council,13/06/2020,041ENVIRON,Environmental Services,20265,Pollution Team,D2622,Mobile Phones,10,O2 (UK) Ltd,Mobile Phones,2018796,202005
Rother District Council,13/06/2020,041ENVIRON,Environmental Services,20265,Pollution Team,D2622,Mobile Phones,10,O2 (UK) Ltd,Mobile Phones,2018796,202005
Rother District Council,13/06/2020,041ENVIRON,Environmental Services,20265,Pollution Team,D2622,Mobile Phones,10,O2 (UK) Ltd,Mobile Phones,2018796,202005
Rother District Council,13/06/2020,071STRAT,Strategy and Planning,20247,Service Manager Strategy and Planning,D2622,Mobile Phones,10,O2 (UK) Ltd,Mobile Phones,2018797,202005
Rother District Council,13/06/2020,071STRAT,Strategy and Planning,20246,Planning Applications,D2622,Mobile Phones,10,O2 (UK) Ltd,Mobile Phones,2018797,202005
Rother District Council,13/06/2020,071STRAT,Strategy and Planning,20246,Planning Applications,D2622,Mobile Phones,10,O2 (UK) Ltd,Mobile Phones,2018797,202005
Rother District Council,13/06/2020,071STRAT,Strategy and Planning,20248,"Complaints,Compliance,Enforce",D2622,Mobile Phones,10,O2 (UK) Ltd,Mobile Phones,2018797,202005
Rother District Council,13/06/2020,071STRAT,Strategy and Planning,20248,"Complaints,Compliance,Enforce",D2622,Mobile Phones,10,O2 (UK) Ltd,Mobile Phones,2018797,202005
Rother District Council,13/06/2020,071STRAT,Strategy and Planning,20248,"Complaints,Compliance,Enforce",D2622,Mobile Phones,10,O2 (UK) Ltd,Mobile Phones,2018797,202005
Rother District Council,13/06/2020,081ACQUISIT,"Acquisitions, Transformation and Regeneration",20122,Economic Development,D2622,Mobile Phones,10,O2 (UK) Ltd,Mobile Phones,2018793,202005
Rother District Council,13/06/2020,081ACQUISIT,"Acquisitions, Transformation and Regeneration",20122,Economic Development,D2622,Mobile Phones,10,O2 (UK) Ltd,Mobile Phones,2018793,202005
Rother District Council,13/06/2020,081ACQUISIT,"Acquisitions, Transformation and Regeneration",20122,Economic Development,D2622,Mobile Phones,10,O2 (UK) Ltd,Mobile Phones,2018793,202005
Rother District Council,13/06/2020,081ACQUISIT,"Acquisitions, Transformation and Regeneration",20122,Economic Development,D2622,Mobile Phones,10,O2 (UK) Ltd,Mobile Phones,2018793,202005
Rother District Council,13/06/2020,081ACQUISIT,"Acquisitions, Transformation and Regeneration",20122,Economic Development,D2622,Mobile Phones,10,O2 (UK) Ltd,Mobile Phones,2018793,202005
Rother District Council,13/06/2020,081ACQUISIT,"Acquisitions, Transformation and Regeneration",20122,Economic Development,D2622,Mobile Phones,10,O2 (UK) Ltd,Mobile Phones,2018793,202005
Rother District Council,13/06/2020,081ACQUISIT,"Acquisitions, Transformation and Regeneration",20263,"Head of Service Acquisitions, Transformation and Regeneration",D2622,Mobile Phones,10,O2 (UK) Ltd,Mobile Phones,2018793,202005
Rother District Council,13/06/2020,081ACQUISIT,"Acquisitions, Transformation and Regeneration",20263,"Head of Service Acquisitions, Transformation and Regeneration",D2622,Mobile Phones,10,O2 (UK) Ltd,Mobile Phones,2018793,202005
Rother District Council,13/06/2020,091HOUSING,Housing and Community Services,20109,Sports Development,D2622,Mobile Phones,10,O2 (UK) Ltd,Mobile Phones,2018798,202005
Rother District Council,13/06/2020,091HOUSING,Housing and Community Services,20120,Neighbourhood Services,D2622,Mobile Phones,10,O2 (UK) Ltd,Mobile Phones,2018798,202005
Rother District Council,13/06/2020,091HOUSING,Housing and Community Services,20120,Neighbourhood Services,D2622,Mobile Phones,10,O2 (UK) Ltd,Mobile Phones,2018798,202005
Rother District Council,13/06/2020,091HOUSING,Housing and Community Services,20120,Neighbourhood Services,D2622,Mobile Phones,10,O2 (UK) Ltd,Mobile Phones,2018798,202005
Rother District Council,13/06/2020,091HOUSING,Housing and Community Services,20120,Neighbourhood Services,D2622,Mobile Phones,10,O2 (UK) Ltd,Mobile Phones,2018798,202005
Rother District Council,13/06/2020,091HOUSING,Housing and Community Services,20120,Neighbourhood Services,D2622,Mobile Phones,10,O2 (UK) Ltd,Mobile Phones,2018798,202005
Rother District Council,13/06/2020,091HOUSING,Housing and Community Services,20120,Neighbourhood Services,D2622,Mobile Phones,10,O2 (UK) Ltd,Mobile Phones,2018798,202005
Rother District Council,13/06/2020,091HOUSING,Housing and Community Services,20120,Neighbourhood Services,D2622,Mobile Phones,10,O2 (UK) Ltd,Mobile Phones,2018798,202005
Rother District Council,13/06/2020,091HOUSING,Housing and Community Services,20120,Neighbourhood Services,D2622,Mobile Phones,10,O2 (UK) Ltd,Mobile Phones,2018798,202005
Rother District Council,13/06/2020,091HOUSING,Housing and Community Services,20120,Neighbourhood Services,D2622,Mobile Phones,10,O2 (UK) Ltd,Mobile Phones,2018798,202005
Rother District Council,13/06/2020,091HOUSING,Housing and Community Services,20120,Neighbourhood Services,D2622,Mobile Phones,10,O2 (UK) Ltd,Mobile Phones,2018798,202005
Rother District Council,13/06/2020,091HOUSING,Housing and Community Services,20120,Neighbourhood Services,D2622,Mobile Phones,10,O2 (UK) Ltd,Mobile Phones,2018798,202005
Rother District Council,13/06/2020,091HOUSING,Housing and Community Services,20120,Neighbourhood Services,D2622,Mobile Phones,10,O2 (UK) Ltd,Mobile Phones,2018798,202005
Rother District Council,13/06/2020,091HOUSING,Housing and Community Services,20120,Neighbourhood Services,D2622,Mobile Phones,10,O2 (UK) Ltd,Mobile Phones,2018798,202005
Rother District Council,13/06/2020,091HOUSING,Housing and Community Services,20120,Neighbourhood Services,D2622,Mobile Phones,45.91,O2 (UK) Ltd,Mobile Phones,2018798,202005
Rother District Council,13/06/2020,091HOUSING,Housing and Community Services,20120,Neighbourhood Services,D2622,Mobile Phones,10,O2 (UK) Ltd,Mobile Phones,2018798,202005
Rother District Council,13/06/2020,091HOUSING,Housing and Community Services,20120,Neighbourhood Services,D2622,Mobile Phones,10,O2 (UK) Ltd,Mobile Phones,2018798,202005
Rother District Council,13/06/2020,091HOUSING,Housing and Community Services,20120,Neighbourhood Services,D2622,Mobile Phones,10,O2 (UK) Ltd,Mobile Phones,2018798,202005
Rother District Council,13/06/2020,091HOUSING,Housing and Community Services,20120,Neighbourhood Services,D2622,Mobile Phones,10,O2 (UK) Ltd,Mobile Phones,2018798,202005
Rother District Council,13/06/2020,091HOUSING,Housing and Community Services,20120,Neighbourhood Services,D2622,Mobile Phones,10,O2 (UK) Ltd,Mobile Phones,2018798,202005
Rother District Council,13/06/2020,091HOUSING,Housing and Community Services,20120,Neighbourhood Services,D2622,Mobile Phones,10,O2 (UK) Ltd,Mobile Phones,2018798,202005
Rother District Council,13/06/2020,091HOUSING,Housing and Community Services,20120,Neighbourhood Services,D2622,Mobile Phones,10,O2 (UK) Ltd,Mobile Phones,2018798,202005
Rother District Council,13/06/2020,091HOUSING,Housing and Community Services,20120,Neighbourhood Services,D2622,Mobile Phones,25,O2 (UK) Ltd,Mobile Phones,2018798,202005
Rother District Council,13/06/2020,091HOUSING,Housing and Community Services,20120,Neighbourhood Services,D2622,Mobile Phones,10,O2 (UK) Ltd,Mobile Phones,2018798,202005
Rother District Council,13/06/2020,091HOUSING,Housing and Community Services,20120,Neighbourhood Services,D2622,Mobile Phones,10,O2 (UK) Ltd,Mobile Phones,2018798,202005
Rother District Council,13/06/2020,091HOUSING,Housing and Community Services,20120,Neighbourhood Services,D2622,Mobile Phones,10,O2 (UK) Ltd,Mobile Phones,2018798,202005
Rother District Council,13/06/2020,091HOUSING,Housing and Community Services,20120,Neighbourhood Services,D2622,Mobile Phones,10,O2 (UK) Ltd,Mobile Phones,2018798,202005
Rother District Council,13/06/2020,091HOUSING,Housing and Community Services,20120,Neighbourhood Services,D2622,Mobile Phones,10,O2 (UK) Ltd,Mobile Phones,2018798,202005
Rother District Council,13/06/2020,091HOUSING,Housing and Community Services,20120,Neighbourhood Services,D2622,Mobile Phones,10,O2 (UK) Ltd,Mobile Phones,2018798,202005
Rother District Council,13/06/2020,091HOUSING,Housing and Community Services,20120,Neighbourhood Services,D2622,Mobile Phones,31.56,O2 (UK) Ltd,Mobile Phones,2018798,202005
Rother District Council,13/06/2020,091HOUSING,Housing and Community Services,20120,Neighbourhood Services,D2622,Mobile Phones,10,O2 (UK) Ltd,Mobile Phones,2018798,202005
Rother District Council,13/06/2020,081ACQUISIT,"Acquisitions, Transformation and Regeneration",20243,Business Improvement,D2622,Mobile Phones,10,O2 (UK) Ltd,Mobile Phones,2018793,202005
Rother District Council,13/06/2020,081ACQUISIT,"Acquisitions, Transformation and Regeneration",20243,Business Improvement,D2622,Mobile Phones,10,O2 (UK) Ltd,Mobile Phones,2018793,202005
Rother District Council,13/06/2020,081ACQUISIT,"Acquisitions, Transformation and Regeneration",20272,Major Projects unit,D2622,Mobile Phones,17.89,O2 (UK) Ltd,Mobile Phones,2018793,202005
Rother District Council,13/06/2020,081ACQUISIT,"Acquisitions, Transformation and Regeneration",20121,Programme and Policy Office,D2622,Mobile Phones,10,O2 (UK) Ltd,Mobile Phones,2018793,202005
Rother District Council,13/06/2020,091HOUSING,Housing and Community Services,20262,Head of Service Housing and Community Services,D2622,Mobile Phones,10,O2 (UK) Ltd,Mobile Phones,2018798,202005
Rother District Council,13/06/2020,091HOUSING,Housing and Community Services,20204,Housing Administration Account,D2622,Mobile Phones,10,O2 (UK) Ltd,Mobile Phones,2018798,202005
Rother District Council,13/06/2020,091HOUSING,Housing and Community Services,20204,Housing Administration Account,D2622,Mobile Phones,10,O2 (UK) Ltd,Mobile Phones,2018798,202005
Rother District Council,13/06/2020,091HOUSING,Housing and Community Services,20204,Housing Administration Account,D2622,Mobile Phones,10,O2 (UK) Ltd,Mobile Phones,2018798,202005
Rother District Council,13/06/2020,091HOUSING,Housing and Community Services,20204,Housing Administration Account,D2622,Mobile Phones,10,O2 (UK) Ltd,Mobile Phones,2018798,202005
Rother District Council,13/06/2020,091HOUSING,Housing and Community Services,20204,Housing Administration Account,D2622,Mobile Phones,10,O2 (UK) Ltd,Mobile Phones,2018798,202005
Rother District Council,13/06/2020,091HOUSING,Housing and Community Services,20204,Housing Administration Account,D2622,Mobile Phones,10,O2 (UK) Ltd,Mobile Phones,2018798,202005
Rother District Council,13/06/2020,091HOUSING,Housing and Community Services,20204,Housing Administration Account,D2622,Mobile Phones,10,O2 (UK) Ltd,Mobile Phones,2018798,202005
Rother District Council,13/06/2020,091HOUSING,Housing and Community Services,20204,Housing Administration Account,D2622,Mobile Phones,10,O2 (UK) Ltd,Mobile Phones,2018798,202005
Rother District Council,13/06/2020,091HOUSING,Housing and Community Services,20204,Housing Administration Account,D2622,Mobile Phones,10,O2 (UK) Ltd,Mobile Phones,2018798,202005
Rother District Council,13/06/2020,091HOUSING,Housing and Community Services,20204,Housing Administration Account,D2622,Mobile Phones,10,O2 (UK) Ltd,Mobile Phones,2018798,202005
Rother District Council,13/06/2020,091HOUSING,Housing and Community Services,20204,Housing Administration Account,D2622,Mobile Phones,10,O2 (UK) Ltd,Mobile Phones,2018798,202005
Rother District Council,13/06/2020,091HOUSING,Housing and Community Services,20204,Housing Administration Account,D2622,Mobile Phones,10,O2 (UK) Ltd,Mobile Phones,2018798,202005
Rother District Council,13/06/2020,091HOUSING,Housing and Community Services,20204,Housing Administration Account,D2622,Mobile Phones,10,O2 (UK) Ltd,Mobile Phones,2018798,202005
Rother District Council,13/06/2020,091HOUSING,Housing and Community Services,20204,Housing Administration Account,D2622,Mobile Phones,10,O2 (UK) Ltd,Mobile Phones,2018798,202005
Rother District Council,13/06/2020,091HOUSING,Housing and Community Services,20204,Housing Administration Account,D2622,Mobile Phones,10,O2 (UK) Ltd,Mobile Phones,2018798,202005
Rother District Council,13/06/2020,091HOUSING,Housing and Community Services,20204,Housing Administration Account,D2622,Mobile Phones,10,O2 (UK) Ltd,Mobile Phones,2018798,202005
Rother District Council,13/06/2020,091HOUSING,Housing and Community Services,20204,Housing Administration Account,D2622,Mobile Phones,10,O2 (UK) Ltd,Mobile Phones,2018798,202005
Rother District Council,13/06/2020,091HOUSING,Housing and Community Services,20204,Housing Administration Account,D2622,Mobile Phones,10,O2 (UK) Ltd,Mobile Phones,2018798,202005
Rother District Council,13/06/2020,091HOUSING,Housing and Community Services,20204,Housing Administration Account,D2622,Mobile Phones,10,O2 (UK) Ltd,Mobile Phones,2018798,202005
Rother District Council,13/06/2020,091HOUSING,Housing and Community Services,20204,Housing Administration Account,D2622,Mobile Phones,15,O2 (UK) Ltd,Mobile Phones,2018798,202005
Rother District Council,13/06/2020,091HOUSING,Housing and Community Services,20264,Property Maintenance Team,D2622,Mobile Phones,10,O2 (UK) Ltd,Mobile Phones,2018798,202005
Rother District Council,13/06/2020,091HOUSING,Housing and Community Services,20264,Property Maintenance Team,D2622,Mobile Phones,35.49,O2 (UK) Ltd,Mobile Phones,2018798,202005
Rother District Council,13/06/2020,091HOUSING,Housing and Community Services,20264,Property Maintenance Team,D2622,Mobile Phones,10,O2 (UK) Ltd,Mobile Phones,2018798,202005
Rother District Council,13/06/2020,091HOUSING,Housing and Community Services,20264,Property Maintenance Team,D2622,Mobile Phones,10,O2 (UK) Ltd,Mobile Phones,2018798,202005
Rother District Council,13/06/2020,091HOUSING,Housing and Community Services,20264,Property Maintenance Team,D2622,Mobile Phones,10,O2 (UK) Ltd,Mobile Phones,2018798,202005
Rother District Council,13/06/2020,091HOUSING,Housing and Community Services,20264,Property Maintenance Team,D2622,Mobile Phones,10,O2 (UK) Ltd,Mobile Phones,2018798,202005
Rother District Council,13/06/2020,091HOUSING,Housing and Community Services,20264,Property Maintenance Team,D2622,Mobile Phones,10,O2 (UK) Ltd,Mobile Phones,2018798,202005
Rother District Council,13/06/2020,091HOUSING,Housing and Community Services,20264,Property Maintenance Team,D2622,Mobile Phones,10,O2 (UK) Ltd,Mobile Phones,2018798,202005
Rother District Council,13/06/2020,101RESOURCES,Resources,20226,Service Manager Finance and Welfare,D2622,Mobile Phones,10,O2 (UK) Ltd,Mobile Phones,2018795,202005
Rother District Council,13/06/2020,091HOUSING,Housing and Community Services,20204,Housing Administration Account,D2622,Mobile Phones,10,O2 (UK) Ltd,Mobile Phones,2018798,202005
Rother District Council,13/06/2020,101RESOURCES,Resources,20222,Accountancy,D2622,Mobile Phones,10,O2 (UK) Ltd,Mobile Phones,2018794,202006
Rother District Council,13/06/2020,101RESOURCES,Resources,20222,Accountancy,D2622,Mobile Phones,10,O2 (UK) Ltd,Mobile Phones,2018794,202006
Rother District Council,13/06/2020,101RESOURCES,Resources,20239,Computer Services,D2622,Mobile Phones,10,O2 (UK) Ltd,Mobile Phones,2018794,202006
Rother District Council,13/06/2020,101RESOURCES,Resources,20239,Computer Services,D2622,Mobile Phones,10,O2 (UK) Ltd,Mobile Phones,2018794,202006
Rother District Council,13/06/2020,101RESOURCES,Resources,20239,Computer Services,D2622,Mobile Phones,10,O2 (UK) Ltd,Mobile Phones,2018794,202006
Rother District Council,13/06/2020,101RESOURCES,Resources,20239,Computer Services,D2622,Mobile Phones,10,O2 (UK) Ltd,Mobile Phones,2018794,202006
Rother District Council,13/06/2020,101RESOURCES,Resources,20239,Computer Services,D2622,Mobile Phones,10,O2 (UK) Ltd,Mobile Phones,2018794,202006
Rother District Council,13/06/2020,101RESOURCES,Resources,20239,Computer Services,D2622,Mobile Phones,10,O2 (UK) Ltd,Mobile Phones,2018794,202006
Rother District Council,13/06/2020,101RESOURCES,Resources,20215,Revenue and Benefits,D2622,Mobile Phones,10,O2 (UK) Ltd,Mobile Phones,2018794,202006
Rother District Council,13/06/2020,101RESOURCES,Resources,20215,Revenue and Benefits,D2622,Mobile Phones,10,O2 (UK) Ltd,Mobile Phones,2018794,202006
Rother District Council,13/06/2020,101RESOURCES,Resources,20215,Revenue and Benefits,D2622,Mobile Phones,10,O2 (UK) Ltd,Mobile Phones,2018794,202006
Rother District Council,13/06/2020,101RESOURCES,Resources,20215,Revenue and Benefits,D2622,Mobile Phones,10,O2 (UK) Ltd,Mobile Phones,2018794,202006
Rother District Council,13/06/2020,101RESOURCES,Resources,20215,Revenue and Benefits,D2622,Mobile Phones,10,O2 (UK) Ltd,Mobile Phones,2018794,202006
Rother District Council,13/06/2020,101RESOURCES,Resources,20215,Revenue and Benefits,D2622,Mobile Phones,10,O2 (UK) Ltd,Mobile Phones,2018794,202006
Rother District Council,13/06/2020,101RESOURCES,Resources,20215,Revenue and Benefits,D2622,Mobile Phones,10,O2 (UK) Ltd,Mobile Phones,2018794,202006
Rother District Council,14/06/2020,091HOUSING,Housing and Community Services,20206,Syrians,D2513,Hired and Contracted services,64,REDACTED PERSONAL DATA,Hired and contracted services - Syrian Misc,2018236,202004
Rother District Council,15/06/2020,041ENVIRON,Environmental Services,32136,EH Pest Control R + W Partnership,C1104,Derv,7.6,Allstar Business Solutions,Derv - Fuel Service fee payable on fuel cards,2018775,202005
Rother District Council,15/06/2020,091HOUSING,Housing and Community Services,20107,Camber Beach & Foreshore,C1104,Derv,1.9,Allstar Business Solutions,Derv - Fuel Service fee payable on fuel cards,2018775,202005
Rother District Council,15/06/2020,081ACQUISIT,"Acquisitions, Transformation and Regeneration",20146,West Trading Estate,B2202,Gas,49.29,Gazprom Marketing & Trading Retail Ltd,Gas - Gas Charges,2018753,202005
Rother District Council,15/06/2020,081ACQUISIT,"Acquisitions, Transformation and Regeneration",20267,Property Investment Strategy - 18-40 Beeching Road ( Land and Buildings),B2202,Gas,49.29,Gazprom Marketing & Trading Retail Ltd,Gas - Gas Charges,2018752,202005
Rother District Council,15/06/2020,091HOUSING,Housing and Community Services,20137,Car Parks,B1100,Repairs to Premises,135.24,Saint-Gobain Building Distribution Ltd t/a Jewson,Repairs to Premises - Purchase of Materials - Build Maint,2017995,202004
Rother District Council,15/06/2020,031RESOURCES,Executive Directors & Corporate Core,20171,Human Resources,D2922,Subscriptions,778.38,Croner-I,Subscriptions - Subscription to Organisations,2019685,202006
Rother District Council,15/06/2020,041ENVIRON,Environmental Services,32136,EH Pest Control R + W Partnership,C1104,Derv,35.42,Allstar Business Solutions,Derv,2018775,202005
Rother District Council,15/06/2020,041ENVIRON,Environmental Services,32136,EH Pest Control R + W Partnership,C1104,Derv,34.17,Allstar Business Solutions,Derv,2018775,202005
Rother District Council,15/06/2020,041ENVIRON,Environmental Services,32136,EH Pest Control R + W Partnership,C1104,Derv,36.67,Allstar Business Solutions,Derv,2018775,202005
Rother District Council,15/06/2020,041ENVIRON,Environmental Services,32136,EH Pest Control R + W Partnership,C1104,Derv,43.33,Allstar Business Solutions,Derv,2018775,202005
Rother District Council,15/06/2020,091HOUSING,Housing and Community Services,20107,Camber Beach & Foreshore,C1104,Derv,43.92,Allstar Business Solutions,Derv,2018775,202005
Rother District Council,16/06/2020,091HOUSING,Housing and Community Services,20114,Bexhill Parks & Open Spaces,B1100,Repairs to Premises,44.45,Graham,Repairs to Premises - Purchase of Materials - Build Maint,2018065,202004
Rother District Council,16/06/2020,091HOUSING,Housing and Community Services,20128,Public Conveniences,B2422,Sewerage,58.32,Scottish Water Business Stream Limited,Sewerage - Sewerage Charges,2018022,202004
Rother District Council,16/06/2020,091HOUSING,Housing and Community Services,20128,Public Conveniences,B2421,Water,41.3,Scottish Water Business Stream Limited,Water - Water Charges,2018022,202004
Rother District Council,17/06/2020,101RESOURCES,Resources,20239,Computer Services,D2635,Computer Licences,12000,Firmstep Ltd,Computer Licences - Domain Name Renewal,2017803,202004
Rother District Council,17/06/2020,091HOUSING,Housing and Community Services,20128,Public Conveniences,B1100,Repairs to Premises,349.46,Alfa Electric Ltd,Repairs to Premises - Repairs - Electrical Works,2018380,202004
Rother District Council,17/06/2020,999NOREPORT,Resources,70742,Capital - New Website Development,N1010,Software Purchase,6720,GGP Systems Ltd,Software Purchase,2018178,202004
Rother District Council,18/06/2020,091HOUSING,Housing and Community Services,20114,Bexhill Parks & Open Spaces,D2513,Hired and Contracted services,99.5,Fuzion 4 Limited,Hired and contracted services - CCTV System Maintenance,2017848,202004
Rother District Council,18/06/2020,091HOUSING,Housing and Community Services,20114,Bexhill Parks & Open Spaces,D2513,Hired and Contracted services,99.5,Fuzion 4 Limited,Hired and contracted services - CCTV System Maintenance,2017848,202004
Rother District Council,18/06/2020,031RESOURCES,Executive Directors & Corporate Core,20280,Covid 19 RHSS Reopening High Streets Safely,A2202,Recruitment expenses,659.15,JPIMedia Publishing Ltd,Recruitment expenses Advertising Vacant Post,2018514,202004
Rother District Council,18/06/2020,091HOUSING,Housing and Community Services,20114,Bexhill Parks & Open Spaces,B1100,Repairs to Premises,264,Thomas Design & Graphics Ltd,Repairs to Premises - Parks - Purchase of Signs,2019021,202005
Rother District Council,18/06/2020,091HOUSING,Housing and Community Services,20114,Bexhill Parks & Open Spaces,B1100,Repairs to Premises,771.26,Xylem Water Solutions UK Ltd,Repairs to Premises - Pumps Maintenance/ Repairs,2017963,202004
Rother District Council,18/06/2020,091HOUSING,Housing and Community Services,20137,Car Parks,B2422,Sewerage,-75.91,Scottish Water Business Stream Limited,Sewerage - Sewerage Charges,2018020,202004
Rother District Council,18/06/2020,091HOUSING,Housing and Community Services,20128,Public Conveniences,B2422,Sewerage,-205.32,Scottish Water Business Stream Limited,Sewerage - Sewerage Charges,2018020,202004
Rother District Council,18/06/2020,091HOUSING,Housing and Community Services,20128,Public Conveniences,B2421,Water,-158.81,Scottish Water Business Stream Limited,Water - Water Charges,2018020,202004
Rother District Council,18/06/2020,091HOUSING,Housing and Community Services,20137,Car Parks,B2421,Water,-55.62,Scottish Water Business Stream Limited,Water - Water Charges,2018020,202004
Rother District Council,18/06/2020,091HOUSING,Housing and Community Services,20128,Public Conveniences,B1100,Repairs to Premises,6.29,Graham,Repairs to Premises,2018066,202004
Rother District Council,19/06/2020,091HOUSING,Housing and Community Services,20205,Housing Loans Account,D2514,Accommodation Costs,695,REDACTED PERSONAL DATA,Accommodation Costs - Homelessness services Deposit for Landlords,2018034,202004
Rother District Council,19/06/2020,091HOUSING,Housing and Community Services,20205,Housing Loans Account,D2514,Accommodation Costs,695,REDACTED PERSONAL DATA,Accommodation Costs - Homelessness services Rent in Advance for Homeless,2018034,202004
Rother District Council,19/06/2020,101RESOURCES,Resources,20216,Cost Of Collection,D2513,Hired and Contracted services,42,H M Land Registry,Hired and contracted services - Council Tax-Land Registry Enquiries,2018787,202006
Rother District Council,19/06/2020,041ENVIRON,Environmental Services,32134,EH Pollution R + W Partnership,D2513,Hired and Contracted services,3,H M Land Registry,Hired and contracted services - Env H-Land Registry,2018787,202006
Rother District Council,19/06/2020,041ENVIRON,Environmental Services,32144,EH Environmental Services Admin R + W Partnership,D2513,Hired and Contracted services,12,H M Land Registry,Hired and contracted services - Env H-Land Registry,2018787,202006
Rother District Council,19/06/2020,071STRAT,Strategy and Planning,20258,BC Dangerous Structures H+R Partnership,D2513,Hired and Contracted services,6,H M Land Registry,Hired and contracted services - Env H-Land Registry,2018787,202006
Rother District Council,19/06/2020,031RESOURCES,Executive Directors & Corporate Core,20171,Human Resources,D2513,Hired and Contracted services,120,Staywell Occupational Health Ltd,Hired and contracted services - Occupational Health,2018123,202004
Rother District Council,19/06/2020,091HOUSING,Housing and Community Services,20200,Housing Needs - HB (Housing Benefit),D2514,Accommodation Costs,915,MB Hotels Ltd,Accommodation Costs,2018237,202005
Rother District Council,19/06/2020,091HOUSING,Housing and Community Services,20200,Housing Needs - HB (Housing Benefit),D2514,Accommodation Costs,510,MB Hotels Ltd,Accommodation Costs,2018623,202005
Rother District Council,20/06/2020,041ENVIRON,Environmental Services,32142,EH Taxi and Private Hire Licenses R + W Partnership,D2513,Hired and Contracted services,120,uCheck,Hired and contracted services - Service fee paid,2018778,202005
Rother District Council,20/06/2020,041ENVIRON,Environmental Services,32142,EH Taxi and Private Hire Licenses R + W Partnership,D2513,Hired and Contracted services,26.01,uCheck,Hired and contracted services - Service fee paid,2018778,202005
Rother District Council,20/06/2020,091HOUSING,Housing and Community Services,20108,Bexhill Promenade & Foreshore,B1100,Repairs to Premises,12820,REDACTED PERSONAL DATA,Repairs to Premises - Beach maintenance,2018229,202004
Rother District Council,21/06/2020,031RESOURCES,Executive Directors & Corporate Core,20276,COVID19 RDC expenditure,D2514,Accommodation Costs,350,Specialist Care UK Group Ltd,Accomodation Costs - Housing Due to Covid 19,2017815,202004
Rother District Council,22/06/2020,031RESOURCES,Executive Directors & Corporate Core,20276,COVID19 RDC expenditure,D2514,Accommodation Costs,252,Savoy Court Ltd,Accomodation Costs - Housing Due to Covid 19,2017871,202004
Rother District Council,22/06/2020,031RESOURCES,Executive Directors & Corporate Core,20276,COVID19 RDC expenditure,D2514,Accommodation Costs,63,Savoy Court Ltd,Accomodation Costs - Housing Due to Covid 19,2017871,202004
Rother District Council,22/06/2020,031RESOURCES,Executive Directors & Corporate Core,20171,Human Resources,D1201,Equipment & Materials,4.98,Agora Business Publications LLP,Equipment & Materials - Carriage/Handling Charge,2018101,202004
Rother District Council,22/06/2020,091HOUSING,Housing and Community Services,20204,Housing Administration Account,A2202,Recruitment expenses,619.75,JPIMedia Publishing Ltd,Recruitment expenses Advertising Vacant Post,2018516,202004
Rother District Council,22/06/2020,091HOUSING,Housing and Community Services,20204,Housing Administration Account,A2202,Recruitment expenses,619.75,JPIMedia Publishing Ltd,Recruitment expenses Advertising Vacant Post,2018515,202004
Rother District Council,22/06/2020,091HOUSING,Housing and Community Services,20125,Coast Protection,B1100,Repairs to Premises,31.39,Saint-Gobain Building Distribution Ltd t/a Jewson,Repairs to Premises - Purchase of Materials - Build Maint,2018239,202004
Rother District Council,22/06/2020,091HOUSING,Housing and Community Services,20128,Public Conveniences,B1100,Repairs to Premises,141.79,Graham,Repairs to Premises - Purchase of Materials - Build Maint,2018240,202004
Rother District Council,22/06/2020,091HOUSING,Housing and Community Services,20261,"TA Purchases (prev - 41 Jameson Mews, Bexhill on Sea)",B1100,Repairs to Premises,39.33,Saint-Gobain Building Distribution Ltd t/a Jewson,Repairs to Premises - Purchase of Materials - Build Maint,2018238,202004
Rother District Council,22/06/2020,031RESOURCES,Executive Directors & Corporate Core,20171,Human Resources,D2922,Subscriptions,79.8,Agora Business Publications LLP,Subscriptions - Subscription to Organisations,2018101,202004
Rother District Council,23/06/2020,031RESOURCES,Executive Directors & Corporate Core,20276,COVID19 RDC expenditure,D2514,Accommodation Costs,120,Crowhurst Park Holiday Village,Accomodation Costs - Housing Due to Covid 19,2017856,202004
Rother District Council,23/06/2020,031RESOURCES,Executive Directors & Corporate Core,20276,COVID19 RDC expenditure,D2514,Accommodation Costs,280,Crowhurst Park Holiday Village,Accomodation Costs - Housing Due to Covid 19,2017857,202004
Rother District Council,23/06/2020,031RESOURCES,Executive Directors & Corporate Core,20176,Administrative Offices - Print Room,B2201,Electricity,284.38,Laser Energy Buying Group (Kent County Council Commercial Services),Electricity - Electricity Charges,2019353,202006
Rother District Council,23/06/2020,031RESOURCES,Executive Directors & Corporate Core,20175,Administrative Offices - T.H. Annex (NOT CHP),B2201,Electricity,586.55,Laser Energy Buying Group (Kent County Council Commercial Services),Electricity - Electricity Charges,2019353,202006
Rother District Council,23/06/2020,031RESOURCES,Executive Directors & Corporate Core,20173,Administrative Offices - Town Hall,B2201,Electricity,2136.87,Laser Energy Buying Group (Kent County Council Commercial Services),Electricity - Electricity Charges,2019353,202006
Rother District Council,23/06/2020,031RESOURCES,Executive Directors & Corporate Core,20173,Administrative Offices - Town Hall,B2201,Electricity,2081.66,Laser Energy Buying Group (Kent County Council Commercial Services),Electricity - Electricity Charges,2019353,202006
Rother District Council,23/06/2020,081ACQUISIT,"Acquisitions, Transformation and Regeneration",20153,"Elva Business Centre, Bexhill",B2201,Electricity,458.81,Laser Energy Buying Group (Kent County Council Commercial Services),Electricity - Electricity Charges,2019353,202006
Rother District Council,23/06/2020,081ACQUISIT,"Acquisitions, Transformation and Regeneration",20154,Committee Property Account,B2201,Electricity,39.95,Laser Energy Buying Group (Kent County Council Commercial Services),Electricity - Electricity Charges,2019353,202006
Rother District Council,23/06/2020,081ACQUISIT,"Acquisitions, Transformation and Regeneration",20154,Committee Property Account,B2201,Electricity,39.94,Laser Energy Buying Group (Kent County Council Commercial Services),Electricity - Electricity Charges,2019353,202006
Rother District Council,23/06/2020,081ACQUISIT,"Acquisitions, Transformation and Regeneration",20154,Committee Property Account,B2201,Electricity,39.94,Laser Energy Buying Group (Kent County Council Commercial Services),Electricity - Electricity Charges,2019353,202006
Rother District Council,23/06/2020,091HOUSING,Housing and Community Services,20128,Public Conveniences,B2201,Electricity,29.61,Laser Energy Buying Group (Kent County Council Commercial Services),Electricity - Electricity Charges,2019353,202006
Rother District Council,23/06/2020,091HOUSING,Housing and Community Services,20128,Public Conveniences,B2201,Electricity,91.48,Laser Energy Buying Group (Kent County Council Commercial Services),Electricity - Electricity Charges,2019353,202006
Rother District Council,23/06/2020,091HOUSING,Housing and Community Services,20128,Public Conveniences,B2201,Electricity,31.39,Laser Energy Buying Group (Kent County Council Commercial Services),Electricity - Electricity Charges,2019353,202006
Rother District Council,23/06/2020,091HOUSING,Housing and Community Services,20125,Coast Protection,B2201,Electricity,518.33,Laser Energy Buying Group (Kent County Council Commercial Services),Electricity - Electricity Charges,2019353,202006
Rother District Council,23/06/2020,091HOUSING,Housing and Community Services,20108,Bexhill Promenade & Foreshore,B2201,Electricity,39.94,Laser Energy Buying Group (Kent County Council Commercial Services),Electricity - Electricity Charges,2019353,202006
Rother District Council,23/06/2020,081ACQUISIT,"Acquisitions, Transformation and Regeneration",20155,Investment properties,B2201,Electricity,45.7,Laser Energy Buying Group (Kent County Council Commercial Services),Electricity - Electricity Charges,2019353,202006
Rother District Council,23/06/2020,031RESOURCES,Executive Directors & Corporate Core,20173,Administrative Offices - Town Hall,B2202,Gas,124.62,Laser Energy Buying Group (Kent County Council Commercial Services),Gas - Gas Charges,2019354,202006
Rother District Council,23/06/2020,031RESOURCES,Executive Directors & Corporate Core,20175,Administrative Offices - T.H. Annex (NOT CHP),B2202,Gas,175.71,Laser Energy Buying Group (Kent County Council Commercial Services),Gas - Gas Charges,2019354,202006
Rother District Council,23/06/2020,031RESOURCES,Executive Directors & Corporate Core,20176,Administrative Offices - Print Room,B2202,Gas,57.51,Laser Energy Buying Group (Kent County Council Commercial Services),Gas - Gas Charges,2019354,202006
Rother District Council,23/06/2020,081ACQUISIT,"Acquisitions, Transformation and Regeneration",20154,Committee Property Account,B2202,Gas,10.23,Laser Energy Buying Group (Kent County Council Commercial Services),Gas - Gas Charges,2019354,202006
Rother District Council,23/06/2020,081ACQUISIT,"Acquisitions, Transformation and Regeneration",20155,Investment properties,B2202,Gas,27.02,Laser Energy Buying Group (Kent County Council Commercial Services),Gas - Gas Charges,2019354,202006
Rother District Council,23/06/2020,101RESOURCES,Resources,20216,Cost Of Collection,D2513,Hired and Contracted services,6,H M Land Registry,Hired and contracted services - Council Tax-Land Registry Enquiries,2018781,202006
Rother District Council,23/06/2020,041ENVIRON,Environmental Services,32141,EH Alcohol Licensing R + W Partnership,D2513,Hired and Contracted services,135,H M Land Registry,Hired and contracted services - Env H-Land Registry,2018781,202006
Rother District Council,23/06/2020,041ENVIRON,Environmental Services,32134,EH Pollution R + W Partnership,D2513,Hired and Contracted services,3,H M Land Registry,Hired and contracted services - Env H-Land Registry,2018781,202006
Rother District Council,23/06/2020,041ENVIRON,Environmental Services,32144,EH Environmental Services Admin R + W Partnership,D2513,Hired and Contracted services,12,H M Land Registry,Hired and contracted services - Env H-Land Registry,2018781,202006
Rother District Council,23/06/2020,091HOUSING,Housing and Community Services,20200,Housing Needs - HB (Housing Benefit),D2513,Hired and Contracted services,9,H M Land Registry,Hired and contracted services - Housing-Land Registry,2018781,202006
Rother District Council,23/06/2020,031RESOURCES,Executive Directors & Corporate Core,20173,Administrative Offices - Town Hall,B1100,Repairs to Premises,1.74,Trade UK Account (Screwfix & B&Q),Repairs to Premises - Purchase of Materials - Build Maint,2017882,202004
Rother District Council,23/06/2020,091HOUSING,Housing and Community Services,20137,Car Parks,B1100,Repairs to Premises,4.09,Parker Building Supplies Ltd,Repairs to Premises - Purchase of Materials - Build Maint,2017881,202004
Rother District Council,23/06/2020,091HOUSING,Housing and Community Services,20261,"TA Purchases (prev - 41 Jameson Mews, Bexhill on Sea)",B1100,Repairs to Premises,20.38,Saint-Gobain Building Distribution Ltd t/a Jewson,Repairs to Premises - Purchase of Materials - Build Maint,2018241,202004
Rother District Council,23/06/2020,091HOUSING,Housing and Community Services,20261,"TA Purchases (prev - 41 Jameson Mews, Bexhill on Sea)",B1100,Repairs to Premises,13.85,Graham,Repairs to Premises - Purchase of Materials - Build Maint,2018242,202004
Rother District Council,23/06/2020,091HOUSING,Housing and Community Services,20128,Public Conveniences,B2422,Sewerage,330,CountyClean Environmental Services Ltd,Sewerage - Sewage/Cesspool Emptying,2017876,202004
Rother District Council,24/06/2020,999NOREPORT,Housing and Community Services,70714,Capital - Grants Halls and Community Projects,N1011,Capital Grants,5000,The Camber Memorial Hall,Capital Grants - Community Grants Scheme,2017994,202004
Rother District Council,24/06/2020,101RESOURCES,Resources,20241,Stationery,D2420,General office supplies (Stationery purchased from ext suppliers),20.79,Office Depot UK Ltd,General office supplies - Stationery (Stationery Services to buy ONLY),2017899,202004
Rother District Council,24/06/2020,091HOUSING,Housing and Community Services,20235,Rye Community Help Point,B2311,Rents and service charges,2300,East Sussex County Council,Rents and service charges - Rent - Rye CHP,2018067,202005
Rother District Council,24/06/2020,091HOUSING,Housing and Community Services,20102,Rother Museum Services,B1100,Repairs to Premises,255,CountyClean Environmental Services Ltd,Repairs to Premises - Cesspool Pumping station service/Call out,2017880,202004
Rother District Council,24/06/2020,081ACQUISIT,"Acquisitions, Transformation and Regeneration",20148,Misc Land & Buildings,B1100,Repairs to Premises,511.08,Alfa Electric Ltd,Repairs to Premises - Parks - Electrical Works,2017895,202004
Rother District Council,24/06/2020,091HOUSING,Housing and Community Services,20114,Bexhill Parks & Open Spaces,B1100,Repairs to Premises,327.88,Alfa Electric Ltd,Repairs to Premises - Parks - Electrical Works,2017895,202004
Rother District Council,24/06/2020,091HOUSING,Housing and Community Services,20114,Bexhill Parks & Open Spaces,B1100,Repairs to Premises,347.72,Alfa Electric Ltd,Repairs to Premises - Parks - Electrical Works,2017895,202004
Rother District Council,24/06/2020,091HOUSING,Housing and Community Services,20114,Bexhill Parks & Open Spaces,B1100,Repairs to Premises,143.52,Alfa Electric Ltd,Repairs to Premises - Parks - Electrical Works,2017895,202004
Rother District Council,24/06/2020,091HOUSING,Housing and Community Services,20114,Bexhill Parks & Open Spaces,B1100,Repairs to Premises,225.2,Alfa Electric Ltd,Repairs to Premises - Parks - Electrical Works,2017895,202004
Rother District Council,24/06/2020,091HOUSING,Housing and Community Services,20114,Bexhill Parks & Open Spaces,B1100,Repairs to Premises,184.36,Alfa Electric Ltd,Repairs to Premises - Parks - Electrical Works,2017895,202004
Rother District Council,24/06/2020,091HOUSING,Housing and Community Services,20114,Bexhill Parks & Open Spaces,B1100,Repairs to Premises,102.68,Alfa Electric Ltd,Repairs to Premises - Parks - Electrical Works,2017895,202004
Rother District Council,24/06/2020,091HOUSING,Housing and Community Services,20114,Bexhill Parks & Open Spaces,B1100,Repairs to Premises,347.72,Alfa Electric Ltd,Repairs to Premises - Parks - Electrical Works,2017895,202004
Rother District Council,24/06/2020,091HOUSING,Housing and Community Services,20115,Rye Area Parks & Gardens,B1100,Repairs to Premises,102.68,Alfa Electric Ltd,Repairs to Premises - Parks - Electrical Works,2017895,202004
Rother District Council,24/06/2020,031RESOURCES,Executive Directors & Corporate Core,20173,Administrative Offices - Town Hall,B1100,Repairs to Premises,15.81,Graham,Repairs to Premises - Purchase of Materials - Build Maint,2018244,202004
Rother District Council,24/06/2020,091HOUSING,Housing and Community Services,20128,Public Conveniences,B1100,Repairs to Premises,27.53,Graham,Repairs to Premises - Purchase of Materials - Build Maint,2018243,202004
Rother District Council,24/06/2020,091HOUSING,Housing and Community Services,20128,Public Conveniences,B2422,Sewerage,353.13,Scottish Water Business Stream Limited,Sewerage - Sewerage Charges,2018029,202004
Rother District Council,24/06/2020,101RESOURCES,Resources,20239,Computer Services,D2621,Telephones,267.68,Interoute Networks Ltd,Telephones - Leased Line Rental,2017886,202004
Rother District Council,24/06/2020,081ACQUISIT,"Acquisitions, Transformation and Regeneration",20272,Major Projects unit,A2203,Training,480,Wilmington Shared Services Ltd T/A Central Law Training Ltd,Training,2018064,202004
Rother District Council,24/06/2020,091HOUSING,Housing and Community Services,20128,Public Conveniences,B2421,Water,279.78,Scottish Water Business Stream Limited,Water - Water Charges,2018029,202004
Rother District Council,25/06/2020,031RESOURCES,Executive Directors & Corporate Core,20276,COVID19 RDC expenditure,D1201,Equipment & Materials,9,BJA Trading Ltd t/a Sanique,Equipment & Materials - Carriage/Handling Charge,2017931,202004
Rother District Council,25/06/2020,031RESOURCES,Executive Directors & Corporate Core,20276,COVID19 RDC expenditure,D1201,Equipment & Materials,120,BJA Trading Ltd t/a Sanique,Equipment & materials - Miscellaneous,2017931,202004
Rother District Council,25/06/2020,031RESOURCES,Executive Directors & Corporate Core,20162,Electoral Registration,D1201,Equipment & Materials,410.73,Pitney Bowes Ltd,Hired and contracted services - election misc payment-net,2018068,202004
Rother District Council,25/06/2020,101RESOURCES,Resources,20216,Cost Of Collection,D2626,Postages,391.48,DSI Billing Services Ltd,Postages - DSI Billing,2017908,202004
Rother District Council,25/06/2020,031RESOURCES,Executive Directors & Corporate Core,20173,Administrative Offices - Town Hall,B1100,Repairs to Premises,13.29,Graham,Repairs to Premises - Purchase of Materials - Build Maint,2018247,202004
Rother District Council,25/06/2020,091HOUSING,Housing and Community Services,20137,Car Parks,B1100,Repairs to Premises,31.33,Saint-Gobain Building Distribution Ltd t/a Jewson,Repairs to Premises - Purchase of Materials - Build Maint,2018246,202004
Rother District Council,25/06/2020,091HOUSING,Housing and Community Services,20108,Bexhill Promenade & Foreshore,B1100,Repairs to Premises,84.64,Saint-Gobain Building Distribution Ltd t/a Jewson,Repairs to Premises - Purchase of Materials - Build Maint,2018245,202004
Rother District Council,25/06/2020,101RESOURCES,Resources,20242,Communications-Phones,D2621,Telephones,3052.96,KCOM Group Plc,Telephones - KCOM Smartnumber Charges,2017894,202004
Rother District Council,26/06/2020,999NOREPORT,"Acquisitions, Transformation and Regeneration",70735,Capital - Wainwright Road Development,N1004,Architects & Consultant Fees,8293.47,The Lawson Partnership Ltd t/a Lawson Queay,Architects & Consultant Fees Capital-Architect and Conslt Fees,2018086,202004
Rother District Council,26/06/2020,101RESOURCES,Resources,20209,Corporate management,D2516,Audit fees,9267,Grant Thornton UK LLP,Audit Fees - External Audit,2019213,202006
Rother District Council,26/06/2020,101RESOURCES,Resources,20239,Computer Services,D2635,Computer Licences,645,NCC Services Ltd (T/A NCC Group Escrow Ltd),Computer Licences - Advance Pay ESCROW Agreement,2017916,202004
Rother District Council,26/06/2020,101RESOURCES,Resources,20239,Computer Services,D2635,Computer Licences,645,NCC Services Ltd (T/A NCC Group Escrow Ltd),Computer Licences - Advance Pay ESCROW Agreement,2017917,202004
Rother District Council,26/06/2020,091HOUSING,Housing and Community Services,20145,Maintenance Services,D1201,Equipment & Materials,4.92,Sussex Plumbing Supplies Ltd,Equipment & Materials - Purchase of Tools,2018772,202005
Rother District Council,26/06/2020,101RESOURCES,Resources,20216,Cost Of Collection,D2513,Hired and Contracted services,15,H M Land Registry,Hired and contracted services - Council Tax-Land Registry Enquiries,2018782,202006
Rother District Council,26/06/2020,071STRAT,Strategy and Planning,20258,BC Dangerous Structures H+R Partnership,D2513,Hired and Contracted services,12,H M Land Registry,Hired and contracted services - Env H-Land Registry,2018782,202006
Rother District Council,26/06/2020,071STRAT,Strategy and Planning,20246,Planning Applications,D2513,Hired and Contracted services,6,H M Land Registry,Hired and contracted services - Land Registry-Planning,2018782,202006
Rother District Council,26/06/2020,081ACQUISIT,"Acquisitions, Transformation and Regeneration",20144,Property Management,D2513,Hired and Contracted services,6,H M Land Registry,Hired and contracted services - Land Registry-Property Management,2018782,202006
Rother District Council,26/06/2020,091HOUSING,Housing and Community Services,20128,Public Conveniences,B1100,Repairs to Premises,36.35,Saint-Gobain Building Distribution Ltd t/a Jewson,Repairs to Premises - Purchase of Materials - Build Maint,2018248,202004
Rother District Council,27/06/2020,091HOUSING,Housing and Community Services,20145,Maintenance Services,D1201,Equipment & Materials,39.15,Trade UK Account (Screwfix & B&Q),Clothing and Uniforms - Mens Protective-Trousers,2017955,202004
Rother District Council,27/06/2020,101RESOURCES,Resources,20209,Corporate management,D2513,Hired and Contracted services,40,BT British Telecommunications plc,Interest Paid - Late Invoice Payment Fee,2018133,202004
Rother District Council,27/06/2020,101RESOURCES,Resources,20242,Communications-Phones,D2621,Telephones,285.58,BT British Telecommunications plc,Telephones - BT-Rental-General,2018133,202004
Rother District Council,28/06/2020,031RESOURCES,Executive Directors & Corporate Core,20276,COVID19 RDC expenditure,D2514,Accommodation Costs,300,Specialist Care UK Group Ltd,Accomodation Costs - Housing Due to Covid 19,2017921,202004
Rother District Council,28/06/2020,031RESOURCES,Executive Directors & Corporate Core,20276,COVID19 RDC expenditure,D2514,Accommodation Costs,350,Specialist Care UK Group Ltd,Accomodation Costs - Housing Due to Covid 19,2017928,202004
Rother District Council,28/06/2020,101RESOURCES,Resources,20222,Accountancy,D2635,Computer Licences,2266.42,Integra Associates Ltd,Computer Licences - New Computer Software,2018249,202004
Rother District Council,28/06/2020,101RESOURCES,Resources,20222,Accountancy,D2635,Computer Licences,-1133.21,Integra Associates Ltd,Computer Licences - New Computer Software,2018250,202004
Rother District Council,28/06/2020,101RESOURCES,Resources,20222,Accountancy,D2635,Computer Licences,-1133.21,Integra Associates Ltd,Computer Licences - New Computer Software,2018251,202004
Rother District Council,28/06/2020,101RESOURCES,Resources,20222,Accountancy,D2635,Computer Licences,1133.21,Integra Associates Ltd,Computer Licences - New Computer Software,2018360,202004
Rother District Council,28/06/2020,091HOUSING,Housing and Community Services,20206,Syrians,D2513,Hired and Contracted services,1018.75,REDACTED PERSONAL DATA,Hired and contracted services - Syrian-Translation Services,2018118,202004
Rother District Council,28/06/2020,071STRAT,Strategy and Planning,20246,Planning Applications,D2519,Statutory Advertising,273.6,Reach Publishing Services Ltd,Statutory Advertising - Planadv-Kent+East Sussex Courier,2018062,202004
Rother District Council,28/06/2020,091HOUSING,Housing and Community Services,20200,Housing Needs - HB (Housing Benefit),D2514,Accommodation Costs,350,Specialist Care UK Group Ltd,Accommodation Costs,2017924,202004
Rother District Council,28/06/2020,091HOUSING,Housing and Community Services,20200,Housing Needs - HB (Housing Benefit),D2514,Accommodation Costs,262.5,Specialist Care UK Group Ltd,Accommodation Costs,2017925,202004
Rother District Council,28/06/2020,091HOUSING,Housing and Community Services,20200,Housing Needs - HB (Housing Benefit),D2514,Accommodation Costs,187.5,Specialist Care UK Group Ltd,Accommodation Costs,2017922,202004
Rother District Council,28/06/2020,091HOUSING,Housing and Community Services,20329,Rough Sleeping Initiative,D2514,Accommodation Costs,175,Specialist Care UK Group Ltd,Accommodation Costs,2017923,202004
Rother District Council,28/06/2020,091HOUSING,Housing and Community Services,20200,Housing Needs - HB (Housing Benefit),D2514,Accommodation Costs,262.5,Specialist Care UK Group Ltd,Accommodation Costs,2017926,202004
Rother District Council,28/06/2020,091HOUSING,Housing and Community Services,20200,Housing Needs - HB (Housing Benefit),D2514,Accommodation Costs,1500,Specialist Care UK Group Ltd,Accommodation Costs,2017929,202004
